{"text_format":"1","workbook":"xlsx","n_sheets":15,"sheets":["Legend Reference","1. Agency Information","2. General Information","3. Mileage and Transport","4. Staffing Information","5. Vehicle Expenses","6. Occupancy Expenses","7. Revenue","8. Expense","9. Reconciliation","10. Accuracy of Report","Provider List","Errors","System Data","Raw Data for Amb"],"not_rendered":{"charts":0,"images":3,"macros":1,"external_links":2,"defined_names":744,"comments":0,"pivot_tables":0},"unopened":[],"bounds":{"document_bytes":16777216,"sheet_cells":100000,"rows_first":2000,"rows_last":500,"rows_between":2000,"halvings":0,"cell_chars":16384,"cell_head_chars":4096},"cells_cut":0,"cells_raw":0,"read":"whole","date_system":"1900"}

{"sheet":"Legend Reference","index":0,"n_rows":10,"n_cols":5,"rows_kept":10,"cut":false,"hidden":false,"merged":[[9,2,9,3],[8,2,8,3],[0,1,0,4],[1,1,1,4],[3,1,3,4],[6,2,6,3],[7,2,7,3]]}
[null,"Ambulance and Wheelchair Van Cost Report"]
[null,"Legend"]
[null,null,null,null,"R.5-0 Industries Inc."]
[null,{"$f":"'1. Agency Information'!C9","v":0}]
[]
[]
[null,null,"Provider Input"]
[null,null,"Calculated"]
[null,null,"Populated/Linked"]
[null,null,"No Data to be Entered in Cell"]

{"sheet":"1. Agency Information","index":1,"n_rows":75,"n_cols":7,"rows_kept":75,"cut":false,"hidden":false,"merged":[[13,4,14,5],[10,4,10,5],[12,4,12,5],[8,4,8,5],[0,1,0,5],[1,1,1,5],[3,1,3,5],[2,1,2,4],[9,4,9,5]]}
[null,"Ambulance and Wheelchair Van Cost Report",null,null,null,null,"v4"]
[null,"Tab 1 - Agency Information"]
[null,null,null,null,null,"R.5-0 Industries Inc."]
[null,{"$f":"C9","v":0}]
[]
[]
[null,"Organization"]
[]
[null,"Provider Name"]
[null,"Federal Employee ID Number (FEIN)"]
[null,"MassHealth Provider ID"]
[null,"National Provider Identifier (NPI)"]
[null,"Mailing Address"]
[null,"City"]
[null,"State"]
[null,"Zip Code"]
[null,"Main Phone Number"]
[null,"Provider Type"]
[null,"Fiscal Year Ending"]
[null,"EMS Region: Please select \"Yes\" or \"No\" below for each region you operate in:"]
[null,"     1 - Western MA"]
[null,"     2 - Central MA"]
[null,"     3 - Northeastern MA"]
[null,"     4 - Metro Boston"]
[null,"     5 - Southeastern MA/Cape Cod"]
[null,"Licensure Level:"]
[null,"Did your organization earn $100k in MassHealth revenue during the fiscal year?","Yes - Earned greater than $100k in MassHealth revenue in your organization's FY"]
[]
[null,"Cost Report Contact Information"]
[null,"Name "]
[null,"Title"]
[null,"Phone Number"]
[null,"Extension"]
[null,"E-mail Address"]
[null,"Fax Number"]
[]
[]
[]
[]
[]
[null,"Ambulance"]
[null,"Wheelchair Van"]
[null,"Ambulance and Wheelchair Van"]
[null,"Air Ambulance"]
[]
[]
[]
[]
[null,"2022-01-01"]
[null,"2022-02-01"]
[null,"2022-03-01"]
[null,"2022-04-01"]
[null,"2022-05-01"]
[null,"2022-06-01"]
[null,"2022-07-01"]
[null,"2022-08-01"]
[null,"2022-09-01"]
[null,"2022-10-01"]
[null,"2022-11-01"]
[null,"2022-12-01"]
[]
[null,"Advanced Life Support (ALS)"]
[null,"Basic Life Support (BLS)"]
[null,"Advanced Life Support (ALS) & Critical Care"]
[]
[]
[null,"Yes"]
[null,"No"]
[]
[]
[]
[]
[]
[null,"Yes - Earned greater than $100k in MassHealth revenue in your organization's FY"]
[null,"No - Earned less than $100k in MassHealth revenue in your organization's FY"]

{"sheet":"2. General Information","index":2,"n_rows":92,"n_cols":6,"rows_kept":92,"cut":false,"hidden":false,"merged":[[15,4,15,5],[0,1,0,5],[1,1,1,5],[2,1,2,4],[3,1,3,5],[8,4,8,5],[9,4,9,5],[12,1,12,2]]}
[null,"Ambulance and Wheelchair Van Cost Report"]
[null,"Tab 2 - General Information"]
[null,null,null,null,null,"R.5-0 Industries Inc."]
[null,{"$f":"'1. Agency Information'!C9","v":0}]
[]
[]
[null,"Organization Type"]
[]
[null,"Provider Type"]
[null,"Profit Type"]
[null,"Hospital Service Type"]
[]
[null,"Level of Services: Please select \"Yes\" or \"No\" below."]
[]
[null,"a. 911 Emergency Contracts:"]
[null,"b. Other Emergency:"]
[null,"      Describe Other Emergency Service Type:\n"]
[null,"c. Non-Emergency:"]
[null,"d. ALS:"]
[null,"e. ALS Other:"]
[null,"      Describe Other ALS Service Type:"]
[null,"f. BLS:"]
[null,"g. Wheelchair Van:"]
[null,"h. Air Ambulance:"]
[null,"I. Other:"]
[null,"      Describe Other Service Type:"]
[]
[null,"Staffing"]
[null,"Staffing Type:"]
[null,"Describe Other Staffing Type:"]
[null,"Hours in normal work week:"]
[]
[null,"Hours of Operation"]
[null,"ALS"]
[null,"a. Days Per Week"]
[null,"b. Hours Per Day"]
[null,"BLS"]
[null,"a. Days Per Week"]
[null,"b. Hours Per Day"]
[null,"Wheelchair Van"]
[null,"a. Days Per Week"]
[null,"b. Hours Per Day"]
[null,"Rotor Wing"]
[null,"a. Days Per Week"]
[null,"b. Hours Per Day",null,null," "]
[null,"Fixed Wing"]
[null,"a. Days Per Week"]
[null,"b. Hours Per Day",null,null," "]
[]
[null,"               Vehicle Information: Report the average number of certified vehicles during the reporting period. (As defined by the Department of Public Health in 105 CMR 170.000)"]
[]
[null,"a. Class I:"]
[null,"b. Class V:"]
[null,"c. Wheelchair Van:"]
[null,"d. Class IV:"]
[null,"e. Other Vehicles (support):"]
[]
[]
[]
[null,"Yes"]
[null,"No"]
[]
[]
[]
[]
[]
[]
[null,"Private"]
[null,"Hospital Based"]
[null,"Volunteer/Independent"]
[]
[]
[]
[]
[]
[]
[null,"For Profit"]
[null,"Not For Profit"]
[]
[]
[null,"N/A"]
[null,"Hospital Transporting"]
[null,"Hospital Non-Transporting"]
[]
[]
[]
[]
[null,"Mixed"]
[null,"On Call"]
[null,"Paid"]
[null,"Volunteer"]
[null,"Other Staffing Type"]

{"sheet":"3. Mileage and Transport","index":3,"n_rows":34,"n_cols":7,"rows_kept":34,"cut":false,"hidden":false,"merged":[[0,1,0,6],[1,1,1,6],[2,1,2,5],[3,1,3,6],[32,3,32,4]]}
[null,"Ambulance and Wheelchair Van Cost Report"]
[null,"Tab 3 - Mileage and Transport Information"]
[null,null,null,null,null,null,"R.5-0 Industries Inc."]
[null,{"$f":"'1. Agency Information'!C9","v":0}]
[]
[]
[null,"Line #","Mileage"]
[null,1,"Total Ambulance mileage for the entire fiscal year"]
[null,2,"Total Wheelchair Van mileage for the entire fiscal year"]
[null,3,"Total Air Ambulance mileage for the entire fiscal year"]
[null,4,"Total All Other mileage for the entire fiscal year"]
[null,5,"Total Miles",{"$f":"SUM(D8:D11)","v":0}]
[]
[null,null,"Loaded Mileage"]
[null,6,"A0425 - Ambulance Mileage (Loaded Miles only)"]
[null,7,"S0215 - Wheelchair Van Mileage (Loaded Miles only)"]
[null,8,"All Other Loaded Miles"]
[null,9,"Total Loaded Miles",{"$f":"SUM(D15:D17)","v":0}]
[]
[null,null,"Transport Profile by Type of Service (Number of Trips)"]
[null,10,"A0426 - ALS 1"]
[null,11,"A0427 - ALS 1 Emergency"]
[null,12,"A0428 - BLS"]
[null,13,"A0429 - BLS Emergency"]
[null,14,"A0433 - ALS 2"]
[null,15,"A0434 - Specialty Care Transport"]
[null,16,"A0130 - Wheelchair van"]
[null,17,"T2001 - Wheelchair van patient attendant/escort"]
[null,18,"A0120 - Nonemergency wheelchair van transport for COVID-19"]
[null,19,"A0431 - Rotor Wing"]
[null,20,"A0430 - Fixed Wing"]
[null,21,"All Other Transports (Please Describe in Line 21)"]
[null,22,"      Describe all other transports, if applicable"]
[null,23,"Total Number of Transports",{"$f":"SUM(D21:D32)","v":0}]

{"sheet":"4. Staffing Information","index":4,"n_rows":24,"n_cols":24,"rows_kept":24,"cut":false,"hidden":false,"merged":[[0,1,0,8],[1,1,1,8],[2,1,2,7],[3,1,3,8]]}
[null,"Ambulance and Wheelchair Van Cost Report"]
[null,"Tab 4 - Staffing Information"]
[null,null,null,null,null,null,null,null,"R.5-0 Industries Inc.",null,null,null,null,null,null,null,null,null,null,null,null,null,null,"R.5-0 Industries Inc."]
[null,{"$f":"'1. Agency Information'!C9","v":0}]
[]
[]
[null,"Employee Category","TOTAL FTE","TOTAL DOLLARS","ADMIN FTE","ADMIN DOLLARS","ALS FTE","ALS DOLLARS","BLS FTE","BLS DOLLARS","WHEELCHAIR VAN FTE","WHEELCHAIR VAN DOLLARS","ROTOR WING FTE","ROTOR WING DOLLARS","FIXED WING FTE","FIXED WING DOLLARS","OTHER SERVICES FTE","OTHER SERVICES DOLLARS"]
["Line #",null,1,2,3,4,5,6,7,8,9,10,11,12,13,14,15,16]
[1,"Executive Officer(s)",{"$f":"SUM(E9,G9,I9,K9,Q9,M9,O9)","v":0},{"$f":"SUM(F9,H9,J9,L9,N9,P9,R9)","v":0}]
[2,"Fiscal Officer(s)",{"$f":"SUM(E10,G10,I10,K10,Q10,M10,O10)","v":0},{"$f":"SUM(F10,H10,J10,L10,N10,P10,R10)","v":0}]
[3,"Billing/Collection",0,0]
[4,"Clerical/Support",0,0]
[5,"Communications Personnel (Call takers, dispatchers)",0,0]
[6,"Maintenance Staff",0,0]
[7,"Other Admin. Staff",0,0]
[8,"TOTAL \nADMINISTRATIVE \nSTAFF (Sum Line 1 to Line 7)",{"$f":"SUM(C9:C15)","v":0},0,0,0,0,0,0,0,0,0,0,0,0,0,0,0]
[9,"EMT - Basic",{"$f":"SUM(E17,G17,I17,K17,M17,O17,Q17)","v":0},{"$f":"SUM(F17,H17,J17,L17,R17,N17,P17)","v":0}]
[10,"EMT - Intermediate",{"$f":"SUM(E18,G18,I18,K18,M18,O18,Q18)","v":0},{"$f":"SUM(F18,H18,J18,L18,R18,N18,P18)","v":0}]
[11,"EMT - Paramedic",0,0]
[12,"Driver - Attendant (Wheelchair Van)",0,0]
[13,"Operations/Field \nSupervisors",0,0]
[14,"Clinical \nTraining/Medical \nDirector",0,0]
[15,"TOTAL DIRECT SERVICE STAFF (Sum Line 9 to Line 14)",{"$f":"SUM(C17:C22)","v":0},{"$f":"SUM(D17:D22)","v":0},{"$f":"SUM(E17:E22)","v":0},0,0,0,0,0,0,0,0,0,0,0,0,0]
[16,"TOTAL EMPLOYEE\n FTE/SALARY & WAGES \n(Line 8 + Line 15)",{"$f":"C23+C16","v":0},{"$f":"D23+D16","v":0},{"$f":"E23+E16","v":0},0,0,0,0,0,0,0,0,0,0,0,0,0]

{"sheet":"5. Vehicle Expenses","index":5,"n_rows":37,"n_cols":22,"rows_kept":37,"cut":false,"hidden":false,"merged":[[18,2,18,4],[3,1,3,10],[3,14,3,21],[0,1,0,10],[0,14,0,21],[1,1,1,10],[1,14,1,21],[2,1,2,9],[2,14,2,20]]}
[null,"Ambulance and Wheelchair Van Cost Report"]
[null,"Tab 5 - Vehicle Information"]
[null,null,null,null,null,null,null,null,null,null,"R.5-0 Industries Inc.",null,null,null,null,null,null,null,null,null,null,"R.5-0 Industries Inc."]
[null,{"$f":"'1. Agency Information'!C9","v":0}]
[]
[]
[null,"Expense Category","TOTAL","ADMIN","ADVANCED LIFE SUPPORT","BASIC LIFE SUPPORT","WHEELCHAIR VAN","ROTOR WING","FIXED WING","OTHER\n SERVICES","EXPENSES NOT DIRECTLY ALLOCABLE"]
["Line #",null,1,2,3,4,5,6,7,8,9]
[1,"Leasing Expense",{"$f":"SUM(D9:K9)","v":0}]
[2,"Vehicle Insurance",{"$f":"SUM(D10:K10)","v":0}]
[3,"Interest Expense",0]
[4,"Vehicle Depreciation",0]
[5,"Repairs and Maintenance",0]
[6,"Gas, Oil and other Vehicle Related \nFluids",0]
[7,"Taxes (Includes Excise and Sales)",0]
[8,"Vehicle Licenses and Registrations",0]
[9,"Tolls",0]
[10,"Other (Please Describe Below)",0]
[11,"      Other Vehicle Expenses Description"]
[12,"TOTAL VEHICLE OPERATING EXPENSES \n(Sum Line 1 to Line 10)",{"$f":"SUM(C9:C18)","v":0},{"$f":"SUM(D9:D18)","v":0},{"$f":"SUM(E9:E18)","v":0},0,{"$f":"SUM(G9:G18)","v":0},{"$f":"SUM(H9:H16,H18)","v":0},{"$f":"SUM(I9:I16,I18)","v":0},0,0]
[]
[null,"Allocation of Vehicle Operating Expenses"]
[13,"Unallocated Expenses (Line 12, Column 2 + Line 12, Column 9)",null,null,null,null,null,null,null,null,{"$f":"D20+K20","v":0}]
[14,"Allocation based on number of \ntransports (see table below)",null,null,{"$f":"ROUND(D30*K23,0)","v":0},{"$f":"ROUND(D31*K23,0)","v":0},{"$f":"ROUND(D32*K23,0)","v":0},{"$f":"ROUND(D33*K23,0)","v":0},{"$f":"ROUND(D34*K23,0)","v":0},{"$f":"ROUND(D35*K23,0)","v":0}]
[15,"Directly Allocated Operating Expenses (Line 12)",null,null,{"$f":"E20","v":0},{"$f":"F20","v":0},{"$f":"G20","v":0},0,0,0]
[16,"TOTAL VEHICLE EXPENSES (TO Tab 8, Line 8)",{"$f":"SUM(E26:J26)","v":0},null,{"$f":"SUM(E24,E25)","v":0},{"$f":"SUM(F24,F25)","v":0},0,0,0,0]
[]
[null,"Allocation Based on Number of Transports"]
[null,"Transport Category","TRANSPORTS","PERCENT (%) OF TOTAL TRANSPORTS"]
[17,"Advanced Life Support (FROM Tab 3, ALS)",{"$f":"SUM('3. Mileage and Transport'!D21,'3. Mileage and Transport'!D22,'3. Mileage and Transport'!D25,'3. Mileage and Transport'!D26)","v":0},{"$f":"IFERROR(C30/$C$36,0)","v":0}]
[18,"Basic Life Support (FROM Tab 3, BLS)",{"$f":"SUM('3. Mileage and Transport'!D23,'3. Mileage and Transport'!D24)","v":0},{"$f":"IFERROR(C31/$C$36,0)","v":0}]
[19,"Wheelchair Van (FROM Tab 3, Wheelchair Van)",{"$f":"SUM('3. Mileage and Transport'!D27,'3. Mileage and Transport'!D29,'3. Mileage and Transport'!D28)","v":0},0]
[20,"Rotor Wing (FROM Tab 3, Rotor Wing)",{"$f":"'3. Mileage and Transport'!D30","v":0},0]
[21,"Fixed Wing (FROM Tab 3, Fixed Wing)",{"$f":"'3. Mileage and Transport'!D31","v":0},0]
[22,"Other Services (FROM Tab 3, Other Transports)",{"$f":"'3. Mileage and Transport'!D32","v":0},0]
[23,"TOTAL",{"$f":"SUM(C30:C35)","v":0},{"$f":"SUM(D30:D35)","v":0}]
[null,"Note: Expenditures should be directly allocated to the cost center to which they apply. If insufficient detail is maintained to permit direct allocation, these costs should be reported in Column 7 and then allocated on the basis of transports as indicated above."]

{"sheet":"6. Occupancy Expenses","index":6,"n_rows":39,"n_cols":22,"rows_kept":39,"cut":false,"hidden":false,"merged":[[37,2,37,4],[3,1,3,10],[3,14,3,21],[0,1,0,10],[0,14,0,21],[1,1,1,10],[1,14,1,21],[2,1,2,9],[2,14,2,20],[18,2,18,4]]}
[null,"Ambulance and Wheelchair Van Cost Report"]
[null,"Tab 6 - Occupancy Expenses"]
[null,null,null,null,null,null,null,null,null,null,"R.5-0 Industries Inc.",null,null,null,null,null,null,null,null,null,null,"R.5-0 Industries Inc."]
[null,{"$f":"'1. Agency Information'!C9","v":0}]
[null,""]
[]
[null,"Employee Category","TOTAL","ADMIN","ADVANCED LIFE SUPPORT","BASIC LIFE SUPPORT","WHEELCHAIR VAN","ROTOR WING","FIXED WING","OTHER\n SERVICES","EXPENSES NOT DIRECTLY ALLOCABLE"]
["Line #",null,1,2,3,4,5,6,7,8,9]
[1,"Rent",{"$f":"SUM(D9:K9)","v":0}]
[2,"Mortgage Interest",{"$f":"SUM(D10:K10)","v":0}]
[3,"Depreciation (Building)",0]
[4,"Depreciation (Equipment)",0]
[5,"Repairs and Maintenance (Building)",0]
[6,"Property Tax",0]
[7,"Insurance (Building and Equipment)",0]
[8,"Utilities",0]
[9,"Donated Space",0]
[10,"Other (Please Describe Below)",0]
[null,"      Other Occupancy Expenses Description"]
[11,"TOTAL OCCUPANCY EXPENSES (Sum \nLine 1 to Line 10)",{"$f":"SUM(C9:C18)","v":0},{"$f":"SUM(D9:D18)","v":0},0,0,0,0,0,0,0]
[]
[null,"ALLOCATION OF OCCUPANCY \nEXPENSES"]
[12,"Unallocated Expenses (Line 11, Column 9)",null,null,null,null,null,null,null,null,{"$f":"K20","v":0}]
[13,"Allocation based on square footage \n(table below)",null,{"$f":"ROUND(D30*$K$23,0)","v":0},{"$f":"ROUND(D31*$K$23,0)","v":0},{"$f":"ROUND(D32*$K$23,0)","v":0},{"$f":"ROUND(D33*$K$23,0)","v":0},{"$f":"ROUND(D34*$K$23,0)","v":0},{"$f":"ROUND(D35*$K$23,0)","v":0},{"$f":"ROUND(D36*$K$23,0)","v":0}]
[14,"Directly Allocated Occupancy \nExpenses (Line 11)",null,{"$f":"D20","v":0},{"$f":"E20","v":0},{"$f":"F20","v":0},0,0,0,0]
[15,"TOTAL OCCPANCY EXPENSES (TO Tab 8, Line 9)",{"$f":"SUM(D26:K26)","v":0},{"$f":"SUM(D23:D25)","v":0},{"$f":"SUM(E23:E25)","v":0},0,{"$f":"SUM(G23:G25)","v":0},0,0,0]
[]
[null,"Allocation Based on Square Footage"]
[null,"Occupancy Category","SQUARE FOOTAGE","PERCENT (%) OF TOTAL SQUARE FOOTAGE"]
[16,"Administration",null,{"$f":"IFERROR(ROUND(C30/$C$37,2),0)","v":0}]
[17,"Advanced Life Support",null,0]
[18,"Basic Life Support",null,{"$f":"IFERROR(ROUND(C32/$C$37,2),0)","v":0}]
[19,"Wheelchair Van",null,0]
[20,"Rotor Wing",null,0]
[21,"Fixed Wing",null,0]
[22,"Other Programs (Please describe in Line 23)",null,0]
[23,"TOTAL",{"$f":"SUM(C30:C36)","v":0},{"$f":"ROUND(SUM(D30:D36),2)","v":0}]
[24,"      Other Programs Description"]
[null,"Note: Expenditures should be directly allocated to the cost center to which they apply.If insufficient detail is maintained to permit direct allocation, these costs should be reported in Column 7 and then allocated on the basis of square footage as indicated below."]

{"sheet":"7. Revenue","index":7,"n_rows":52,"n_cols":22,"rows_kept":52,"cut":false,"hidden":false,"merged":[[0,1,0,10],[0,14,0,21],[1,1,1,10],[1,14,1,21],[2,1,2,9],[2,14,2,20],[35,2,35,4],[44,2,44,4],[48,2,48,4],[3,1,3,10],[3,14,3,21]]}
[null,"Ambulance and Wheelchair Van Cost Report"]
[null,"Tab 7 - Revenue"]
[null,null,null,null,null,null,null,null,null,null,"R.5-0 Industries Inc.",null,null,null,null,null,null,null,null,null,null,"R.5-0 Industries Inc."]
[null,{"$f":"'1. Agency Information'!C9","v":0}]
[]
[]
[null,"Revenue Category","TOTAL","ADVANCED LIFE SUPPORT","BASIC LIFE SUPPORT","WHEELCHAIR VAN","ROTOR WING","FIXED WING","OTHER SERVICES"]
["Line #",null,1,2,3,4,5,6,7]
[null,"Massachusetts Revenue Only"]
[1,"Self-Pay / Private Pay",{"$f":"SUM(D10:I10)","v":0}]
[2,"Medicare",{"$f":"SUM(D11:I11)","v":0}]
[3,"Medicaid",0]
[4,"Commercial (Blue Cross, HMO, Other Third Party)",0]
[5,"Contracts (PPS, DRG or Other)",0]
[6,"Municipal Subsidy",0]
[7,"All Other Payers",{"$f":"SUM(D16:I16)","v":0}]
[8,"TOTAL MASSACHUSETTS OPERATING REVENUE (Sum Line 1 to Line 7)",{"$f":"SUM(C10:C16)","v":0},{"$f":"SUM(D10:D16)","v":0},0,0,0,0,0]
[]
[null,"All Other States Except Massachusetts Revenue"]
[9,"Self-Pay / Private Pay",{"$f":"SUM(D20:I20)","v":0}]
[10,"Medicare",{"$f":"SUM(D21:I21)","v":0}]
[11,"Medicaid",0]
[12,"Commercial (Blue Cross, HMO, Other Third Party)",0]
[13,"Contracts (PPS, DRG or Other)",0]
[14,"Municipal Subsidy",0]
[15,"All Other Payers",{"$f":"SUM(D26:I26)","v":0}]
[16,"TOTAL ALL OTHER STATES OPERATING REVENUE (Sum Line 9 to Line 15)",{"$f":"SUM(C20:C26)","v":0},{"$f":"SUM(D20:D26)","v":0},0,0,0,0,0]
[17,"TOTAL OPERATING REVENUE (Line 8 + Line 16)",{"$f":"SUM(C17,C27)","v":0},0,0,0,0,0,0]
[]
[18,"Unrestricted Government Grants"]
[19,"Unrestricted Private Sources"]
[20,"Unrestricted Donated Services"]
[21,"Unrestricted Donations (other than cash gifts)"]
[22,"Unrestricted Cash Gifts"]
[23,"Unrestricted Other (Please Describe in Line 24)"]
[24,"      Unrestricted Other Description"]
[25,"TOTAL UNRESTRICTED GRANTS, GIFTS, DONATIONS (Sum Line 18 to Line 24)",{"$f":"SUM(C30:C35)","v":0}]
[]
[26,"Restricted Government Grants"]
[27,"Restricted Private Sources"]
[28,"Restricted Donated Services"]
[29,"Restricted Donations (other than cash gifts)"]
[30,"Restricted Cash Gifts"]
[31,"Restricted Other (Please Describe in Line 32)"]
[32,"      Restricted Other Description"]
[33,"TOTAL RESTRICTED GRANTS, GIFTS, DONATIONS (Sum Line 26 to Line 32)",{"$f":"SUM(C39:C44)","v":0}]
[]
[34,"Non-Operating Income (Please describe in Line 35)"]
[35,"      Non-Operating Income Description"]
[36,"TOTAL OTHER INCOME (Line 34)",{"$f":"C48","v":0}]
[]
[37,"TOTAL REVENUE FROM ALL SOURCES (Sum Lines 17 + 25 + 33 + 36)",{"$f":"SUM(C28,C46,C37,C50)","v":0}]

{"sheet":"8. Expense","index":8,"n_rows":68,"n_cols":22,"rows_kept":68,"cut":false,"hidden":false,"merged":[[33,2,33,4],[51,2,51,4],[59,2,59,4],[3,1,3,10],[3,14,3,21],[0,1,0,10],[0,14,0,21],[1,1,1,10],[1,14,1,21],[2,1,2,9],[2,14,2,20]]}
[null,"Ambulance and Wheelchair Van Cost Report"]
[null,"Tab 8 - Expense"]
[null,null,null,null,null,null,null,null,null,null,"R.5-0 Industries Inc.",null,null,null,null,null,null,null,null,null,null,"R.5-0 Industries Inc."]
[null,{"$f":"'1. Agency Information'!C9","v":0}]
[]
[]
[null,"Expense Category","TOTAL","ADMIN","ADVANCED LIFE SUPPORT","BASIC LIFE SUPPORT","WHEELCHAIR VAN","ROTOR WING","FIXED WING","OTHER SERVICES"]
["Line #",null,1,2,3,4,5,null,null,6]
[1,"Administrative Staff Salary/Wages (From Tab 4 Line 8)",{"$f":"'4. Staffing Information'!D16","v":0},{"$f":"'4. Staffing Information'!F16","v":0},{"$f":"'4. Staffing Information'!H16","v":0},{"$f":"'4. Staffing Information'!J16","v":0},{"$f":"'4. Staffing Information'!L16","v":0},{"$f":"'4. Staffing Information'!N16","v":0},{"$f":"'4. Staffing Information'!P16","v":0},{"$f":"'4. Staffing Information'!R16","v":0}]
[2,"Direct Service Staff Salary/Wages (From Tab 4, Line 15)",{"$f":"'4. Staffing Information'!D23","v":0},{"$f":"'4. Staffing Information'!F23","v":0},{"$f":"'4. Staffing Information'!H23","v":0},{"$f":"'4. Staffing Information'!J23","v":0},{"$f":"'4. Staffing Information'!L23","v":0},{"$f":"'4. Staffing Information'!N23","v":0},{"$f":"'4. Staffing Information'!P23","v":0},{"$f":"'4. Staffing Information'!R23","v":0}]
[3,"TOTAL SALARY/WAGES (Line 1 + Line 2)",{"$f":"SUM(C9:C10)","v":0},{"$f":"SUM(D9:D10)","v":0},0,0,0,0,0,0]
[]
[4,"Payroll Taxes",{"$f":"SUM(D13:J13)","v":0}]
[5,"Non-Salary Related Benefits",{"$f":"SUM(D14:J14)","v":0}]
[6,"Retirement Plan",0]
[7,"TOTAL EMPLOYEE COMP.& RELATED EXP. (Sum Line 4 - Line 6)",{"$f":"SUM(C13:C15)","v":0},{"$f":"SUM(D13:D15)","v":0},0,0,0,0,0,0]
[]
[8,"Total Vehicle Expenses (From Tab 5, Line 16)",{"$f":"'5. Vehicle Expenses'!C26","v":0},{"$f":"'5. Vehicle Expenses'!D26","v":0},{"$f":"'5. Vehicle Expenses'!E26","v":0},{"$f":"'5. Vehicle Expenses'!F26","v":0},{"$f":"'5. Vehicle Expenses'!G26","v":0},{"$f":"'5. Vehicle Expenses'!H26","v":0},{"$f":"'5. Vehicle Expenses'!I26","v":0},{"$f":"'5. Vehicle Expenses'!J26","v":0}]
[9,"Total Occupancy Expenses (From Tab 6, Line 15)",{"$f":"'6. Occupancy Expenses'!C26","v":0},{"$f":"'6. Occupancy Expenses'!D26","v":0},{"$f":"'6. Occupancy Expenses'!E26","v":0},{"$f":"'6. Occupancy Expenses'!F26","v":0},{"$f":"'6. Occupancy Expenses'!G26","v":0},{"$f":"'6. Occupancy Expenses'!H26","v":0},{"$f":"'6. Occupancy Expenses'!I26","v":0},{"$f":"'6. Occupancy Expenses'!J26","v":0}]
[10,"Subcontracted Staff",{"$f":"SUM(D20:J20)","v":0}]
[11,"Staff Training",{"$f":"SUM(D21:J21)","v":0}]
[12,"Medicine/Pharmacy",0]
[13,"Medical Supplies and Equipment",0]
[14,"Communications Equipment",0]
[15,"Laundry, Uniform Expense",0]
[16,"Marketing/Development",0]
[17,"Donations",0]
[18,"Travel/Entertainment",0]
[19,"Meals",0]
[20,"Collection Fees",0]
[21,"Public Relations",0]
[22,"Penalties and Late Charges",0]
[23,"Other (Please Describe in Line 24)",0]
[24,"      Other Description"]
[25,"TOTAL DIRECT ALLOCABLE EXPENSES \n(Sum Line 8 - Line 23)",{"$f":"SUM(C18:C33)","v":0},{"$f":"SUM(D18:D33)","v":0},0,0,0,0,0,0]
[]
[26,"ALLOCATION FOR ADMINISTRATIVE EXPENSES"]
[27,"Office Supplies, Postage, Printing",{"$f":"SUM(D38:J38)","v":0}]
[28,"Insurance",{"$f":"SUM(D39:J39)","v":0}]
[29,"Interest (other than vehicle and mortgage)",0]
[30,"Computer and Other Equipment",0]
[31,"Legal Fees",0]
[32,"Accounting Fees",0]
[33,"Accounting/Bookkeeping",0]
[34,"Payroll Service",0]
[35,"Billing Service",0]
[36,"Business Planning",0]
[37,"Lobbying",0]
[38,"Medical Director",0]
[39,"Information Systems",0]
[40,"Other Professional Fees (Please Describe in Line 41)",0]
[41,"      Other Professional Fees Description"]
[42,"Income Taxes",{"$f":"SUM(D53:J53)","v":0}]
[43,"Bad Debt Expense (if no bad debt amount, please enter $0)",{"$f":"SUM(D54:J54)","v":0}]
[44,"Parent Organization Expense",0]
[45,"Dues/Subscriptions",0]
[46,"Telephone/Internet",0]
[47,"Subcontractors",0]
[48,"Other (Please Describe in Line 49)",0]
[49,"      Other Description"]
[50,"TOTAL GENERAL ADMINISTRATIVE \nEXPENSE (Sum Line 26 -  48)",{"$f":"SUM(C37:C51,C53:C59)","v":0},{"$f":"SUM(D37:D51,D53:D59)","v":0}]
[]
[51,"Directly Allocated Expenses (Line 3 + Line 7 + Line 25)",null,{"$f":"SUM(D11,D16,D35)","v":0},0,0,0,0,0,0]
[52,"Percent of Directly Allocated Expenses",null,null,{"$f":"IFERROR(ROUND(E63/(SUM($E$63:$J$63)),2),0)","v":0},0,0,0,0,0]
[53,"Total General Administrative Expense (Column 2, Line 50 + Line 51)",null,{"$f":"D61+D63","v":0}]
[54,"TOTAL EXPENSE",{"$f":"ROUND(SUM(C61,C35,C16,C11),0)","v":0}]
[55,"TOTAL REVENUE (FROM Tab 7, Line 37)",{"$f":"'7. Revenue'!C52","v":0}]
[56,"EXCESS OF REVENUE OVER EXPENSES \n(Line 55 - Line 54)",{"$f":"C67-C66","v":0}]

{"sheet":"9. Reconciliation","index":9,"n_rows":29,"n_cols":8,"rows_kept":29,"cut":false,"hidden":false,"merged":[[0,1,0,8],[1,1,1,8],[63,2,63,4],[2,1,2,8],[37,2,37,4],[55,2,55,4],[3,1,3,8],[22,2,24,2],[22,3,24,3],[22,4,24,4],[22,5,24,5],[63,11,63,13],[63,20,63,21],[0,12,0,19],[1,12,1,19],[2,12,2,18],[3,12,3,19],[37,11,37,13],[37,20,37,21],[55,11,55,13],[55,20,55,21],[22,0,24,0],[22,6,24,6],[22,7,24,7],[22,1,24,1],[28,1,29,1]]}
[null,"Ambulance and Wheelchair Van Cost Report"]
[null,"Tab 9 - Reconciliation"]
[]
[null,{"$f":"'1. Agency Information'!C9","v":0}]
[]
["Line #"]
[1,"Total Revenue in Cost Report (Tab 7, Line 37)",{"$f":"'7. Revenue'!C52","v":0}]
[2,"Total Revenue in Financial Statement"]
[3,"Revenue Variance",{"$f":"ABS(C7-C8)","v":0}]
[]
[4,"Total Expenses in Cost Report (Tab 8, Line 54)",{"$f":"'8. Expense'!C66","v":0}]
[5,"Total Expenses in Financial Statement"]
[6,"Expense Variance",{"$f":"ABS(C11-C12)","v":0}]
[]
[7,"Total Variance",{"$f":"C9+C13","v":0}]
[]
[null,"In the blanks below, please provide the items accounting for any variance between your Cost Report and Financial Statement, with the amount of variance and an explanation. If there is no variance you may leave these blank."]
[null,"Note: all variance values must be reported as positive numbers."]
[]
[null,null,"Item 1","Item 2","Item 3","Item 4","Item 5","Item 6"]
[8,"Name"]
[9,"Variance (Dollar Amount)"]
[10,"Explanation"]
[]
[]
[]
[11,"Sum of Items Accounting for Total Variance",{"$f":"SUM(C22:H22)","v":0}]
[]
[12,"Is Line 11 equal to the reported differences between your cost report and financial statement?",{"$f":"IF(SUM('9. Reconciliation'!C9,'9. Reconciliation'!C13)<>'9. Reconciliation'!C27,\"No - Please Fix\", \"Yes\")","v":"Yes"}]

{"sheet":"10. Accuracy of Report","index":10,"n_rows":41,"n_cols":6,"rows_kept":41,"cut":false,"hidden":false,"merged":[[30,2,30,3],[5,2,5,5],[0,1,0,5],[1,1,1,5],[2,2,2,4],[3,1,3,5],[4,2,4,5],[26,2,26,3],[6,1,6,5],[7,2,7,5],[8,1,8,5],[9,1,9,5],[10,1,10,5],[11,2,11,5],[16,2,16,5],[21,1,21,5],[22,2,22,3],[23,2,23,3],[25,2,25,3],[29,2,29,3],[28,2,28,3],[34,2,34,3],[36,2,36,3],[37,2,37,3],[40,2,40,3],[31,2,31,3],[32,2,32,3],[33,2,33,3],[35,2,35,3],[39,2,39,3]]}
[null,"Ambulance and Wheelchair Van Cost Report"]
[null,"Tab 10 - Accuracy of Report"]
[null,null,null,null,null,"R.5-0 Industries Inc."]
[null,{"$f":"'1. Agency Information'!C9","v":0}]
[]
[]
[null,"CERTIFICATION BY PROVIDER"]
[]
[null,"I declare and affirm under the penalties of perjury that this report thas been examined by me, and to the best of my knowledge and belief, is true and correct statement."]
[null,"This payment reporting form is subject to audit and verification by the Center for Health Informtion and Analysis."]
[null,"By filling out the boxes below I hereby certify that I am authorized by the provider to submit this information."]
[]
[null,null,null,"Total Revenue",{"$f":"'7. Revenue'!C52","v":0}]
[null,null,null,"Total Expense",{"$f":"'8. Expense'!C66","v":0}]
[null,null,null,"Profit/Loss",{"$f":"E13-E14","v":0}]
[null,null,null,"Profitability ",{"$f":"IFERROR(ROUND(((E13-E14)/E13),2), \"0\")","v":"0"}]
[]
[null,null,null,"Signature of Authorized Submitter\n(Type electronic signature):"]
[null,null,null,"Date of Submission (mm/dd/yyyy):"]
[null,null,null,"Submitter's Acknowledgement:"]
[]
[null,"You may submit when each line says \"No Action Required\". You will not be able to successfully submit if you see an \"Error\" message below. "]
[null,"Tab 1","Provider name is chosen (Tab 1)",null,{"$f":"IF(ProviderName=\"\",\"ERROR\", \"No Action Required\")","v":"ERROR"}]
[null,"Tab 1","MassHealth ID is entered (Tab 1)",null,{"$f":"IF(MassHealthProviderID=\"\",\"ERROR\", \"No Action Required\")","v":"ERROR"}]
[null,null,"National Provider Identifier (NPI) is entered (Tab 1)",null,{"$f":"IF('1. Agency Information'!C12=\"\",\"ERROR\", \"No Action Required\")","v":"ERROR"}]
[null,"Tab 2","Provider type is selected (Tab 1)",null,{"$f":"IF('1. Agency Information'!C18=\"\",\"ERROR\", \"No Action Required\")","v":"ERROR"}]
[null,"Tab 2","Fiscal year ending date is selected (Tab 1)",null,{"$f":"IF('1. Agency Information'!C19=\"\",\"ERROR\", \"No Action Required\")","v":"ERROR"}]
[null,null,"Option selected for if MassHealth Revenue is greater or less than $100k (Tab 1)",null,{"$f":"IF('1. Agency Information'!C27=\"\",\"ERROR\",\"No Action Required\")","v":"No Action Required"}]
[null,null,"Contact Information is complete (Name, Phone Number, and Email Address) (Tab 1)",null,{"$f":"IF(OR('1. Agency Information'!C30=\"\",'1. Agency Information'!C32=\"\",'1. Agency Information'!C34=\"\"),\"ERROR\",\"No Action Required\")","v":"ERROR"}]
[null,"Tab 2","If you select \"Hospital Based\" for your organization, you must select \"Hospital Service Type\" (Tab 2)",null,{"$f":"IF('1. Agency Information'!C27='1. Agency Information'!B75,\"No Action Required\",IF('2. General Information'!ProviderName<>\"Hospital Based\",\"No Action Required\",IF(AND('2. General Information'!ProviderName=\"Hospital Based\",OR('2. General Information'!C11=\"N/A\",'2. General Information'!C11=\"\")),\"ERROR\",\"No Action Required\")))","v":"No Action Required"}]
[null,null,"All Level of Services fields are filled out with \"Yes\" or \"No\" (Tab 2)",null,{"$f":"IF('1. Agency Information'!C27='1. Agency Information'!B75,\"No Action Required\",IF(OR('2. General Information'!C15=\"\",'2. General Information'!C16=\"\",'2. General Information'!C18=\"\",'2. General Information'!C19=\"\",'2. General Information'!C20=\"\",'2. General Information'!C22=\"\",'2. General Information'!C23=\"\",'2. General Information'!C24=\"\",'2. General Information'!C25=\"\"),\"ERROR\",\"No Action Required\"))","v":"ERROR"}]
[null,"Tab 3","Mileage and Transport (Tab 3) is filled out for the Provider Types selected in Tab 1, cell C18.",null,{"$f":"IF('1. Agency Information'!C27='1. Agency Information'!B75,\"No Action Required\",IFERROR(IF(VLOOKUP('1. Agency Information'!C18,Table2[],2,FALSE)=\"No Action Required\",(IF(VLOOKUP('1. Agency Information'!C18,Table2[],3,FALSE)=\"No Action Required\",VLOOKUP('1. Agency Information'!C18,Table2[],4,FALSE),VLOOKUP('1. Agency Information'!C18,Table2[],3,FALSE))),VLOOKUP('1. Agency Information'!C18,Table2[],2,FALSE)),\"Error - Select provider type on Tab 1\"))","v":"Error - Select provider type on Tab 1"}]
[null,"Tab 3","Staffing Information (Tab 4) is filled out for the Provider Types selected in Tab 1, cell C18.",null,{"$f":"IF('1. Agency Information'!C27='1. Agency Information'!B75,\"No Action Required\",IFERROR(IF(VLOOKUP('1. Agency Information'!C18,Table2[],5,FALSE)=\"No Action Required\",VLOOKUP('1. Agency Information'!C18,Table2[],6,FALSE),VLOOKUP('1. Agency Information'!C18,Table2[],5,FALSE)),\"Error - Select provider type on Tab 1\"))","v":"Error - Select provider type on Tab 1"}]
[null,"Tab 3","Vehicle Expenses (Tab 5) is filled out for the Provider Types selected in Tab 1, cell C18.",null,{"$f":"IF('1. Agency Information'!C27='1. Agency Information'!B75,\"No Action Required\",IFERROR(VLOOKUP('1. Agency Information'!C18,Table2[],7,FALSE), \"Error - Select provider type on Tab 1\"))","v":"Error - Select provider type on Tab 1"}]
[null,"Tab 4","Occupancy Expenses (Tab 6) is filled out for the Provider Types selected in Tab 1, cell C18.",null,{"$f":"IF('1. Agency Information'!C27='1. Agency Information'!B75,\"No Action Required\",IFERROR(VLOOKUP('1. Agency Information'!C18,Table2[],8,FALSE), \"Error - Select provider type on Tab 1\"))","v":"Error - Select provider type on Tab 1"}]
[null,null,"If you have expenses not directly allocable on your Occupancy Expenses, (Tab 6, column K), you must fill out the square footage section (lines 16 - 22) for allocation.",null,{"$f":"IF('1. Agency Information'!C27='1. Agency Information'!B75,\"No Action Required\",IF('6. Occupancy Expenses'!K20=0, \"No Action Required\", IF(AND('6. Occupancy Expenses'!K20>0,'6. Occupancy Expenses'!C37>0),\"No Action Required\", \"ERROR\")))","v":"No Action Required"}]
[null,"Tab 5","Operating Revenue (Tab 7) is filled out for the Provider Types selected in Tab 1, cell C18.",null,{"$f":"IFERROR(VLOOKUP('1. Agency Information'!C18,Table2[],9,FALSE), \"Error - Select provider type on Tab 1\")","v":"Error - Select provider type on Tab 1"}]
[null,"Tab 5","Expense (Tab 8) is filled out for the Provider Types selected in Tab 1, cell C18.",null,{"$f":"IF('1. Agency Information'!C27='1. Agency Information'!B75,\"No Action Required\",IFERROR(VLOOKUP('1. Agency Information'!C18,Table2[],10,FALSE), \"Error - Select provider type on Tab 1\"))","v":"Error - Select provider type on Tab 1"}]
[null,null,"Bad Debt amount is entered on Tab 8, Line 43. (Please enter $0 if no bad debt amount.)",null,{"$f":"IF('8. Expense'!D54=\"\",\"ERROR\",\"No Action Required\")","v":"ERROR"}]
[null,null,"The reported differences between your cost report and financial statement must equal the sum of the variances reported in the Reconciliation (Tab 9).",null,{"$f":"IF('1. Agency Information'!C27='1. Agency Information'!B75,\"No Action Required\",IF(SUM('9. Reconciliation'!C9,'9. Reconciliation'!C13)<>'9. Reconciliation'!C27,\"ERROR\", \"No Action Required\"))","v":"No Action Required"}]
[null,"Tab 8","Above Certification by Provider is complete.",null,{"$f":"IF(OR(E18=0,E19=0,E20=0), \"ERROR\", \"No Action Required\")","v":"ERROR"}]

{"sheet":"Provider List","index":11,"n_rows":240,"n_cols":2,"rows_kept":240,"cut":false,"hidden":true,"merged":[[3,2,4,3],[5,2,5,3],[7,2,7,3]]}
[null,"Provider List"]
[]
["Org ID","Organization Name"]
[]
[null,"Select your provider name."]
[6383,"A&M Taxi"]
[6385,"Aaron's"]
[14322,"Access Ambulance Service"]
[3177,"Action Ambulance Service, Inc."]
[4739,"Acushnet Emergency Medical Service"]
[4740,"Adams Ambulance Service"]
[4477,"Agawam Ambulance Service"]
[20444,"AirMed International LLC"]
[4701,"Alert Ambulance Service, Inc."]
[20436,"Alternative Transportation Systems"]
[12597,"American Ambulance, Inc."]
[20442,"American Ambulance Service, Inc."]
[4703,"American Medical Response of Massachusetts, Inc."]
[10329,"Angels Ambulance, Inc."]
[4481,"Arlington Rescue"]
[3212,"Armstrong Ambulance Service"]
[4483,"Ashby Ambulance & Rescue"]
[4484,"Ashfield Ambulance Service"]
[6387,"Athol (Orange Cab)"]
[4704,"Atlantic Ambulance Service"]
[4490,"Ayer Ambulance Service"]
[8008,"B K Transportation Ltd."]
[6388,"Baker Transportation"]
[4491,"Barnstable Rescue Squad"]
[4492,"Barre Ambulance Service"]
[4741,"Baystate Health Ambulance"]
[6389,"Beauport Ambulance Service, Inc."]
[4499,"Berlin Emergency Rescue Squad"]
[13207,"Best Ride INC."]
[10750,"Better Community Living, Inc."]
[12570,"Better Community Living, Inc. - Ambulance"]
[4500,"Beverly Civil Defense"]
[4501,"Billerica Ambulance Service"]
[6390,"Bill's Taxi Service, Inc."]
[12975,"BMT Company Corp"]
[4503,"Bolton Volunteer Ambulance Squad"]
[4504,"Boston Emergency Medical Services"]
[4742,"Boston MedFlight"]
[6392,"Braintree Blue Cab (RAZ Inc)"]
[10667,"Brandeis Emergency Medical Corps"]
[12620,"Brewster Ambulance Service, Inc."]
[10188,"Bridgewater State College Police Department Emergency Medical Services"]
[4743,"Brimfield Ambulance Service, Inc."]
[4510,"Brookfield Emergency Squad"]
[6393,"Brown's Transportation Services, Inc."]
[6394,"Busy Bee Transportation Inc"]
[6395,"Butlee's Handicap Adventures Corp."]
[4705,"Cape Cod Medical Enterprises, Inc. - Cape Cod Ambulance"]
[6396,"Cape Cod Wheelchair Transit"]
[4515,"Carver Ambulance Service"]
[4708,"Cataldo Ambulance Service, Inc."]
[4516,"Centerville-Osterville-Marston Mills"]
[6398,"Central Wheelchair and Van Transportation, Inc."]
[6399,"Chair Car Services Inc."]
[6384,"Chair-To-There"]
[6400,"Charlton Shuttle"]
[10669,"Children's Hospital Boston Ambulance Services"]
[6403,"CJT Transport"]
[6404,"Client Care Solutions, Inc."]
[6405,"Clinton Livery, Inc"]
[6406,"CMARC, Inc"]
[13175,"Coastal Medical Transportation Services"]
[4523,"Colrain Volunteer Ambulance Association"]
[6407,"Community Chair Car"]
[12802,"Community EMS, Inc."]
[8010,"Concern Company, Inc."]
[4709,"County Ambulance Service"]
[10668,"County Rainbow Taxi, Inc."]
[6408,"Cowens Transportation"]
[6409,"Cross Roads Trolley, Inc."]
[4745,"Dalton Ambulance and Rescue, Inc."]
[4527,"Deerfield Emergency Rescue"]
[6410,"Dial-A-Bat"]
[6415,"E.M.T. Corporation"]
[4710,"EasCare Ambulance Service"]
[10334,"Eastern Ambulance Service"]
[6413,"Eastern Mass Transportation Services"]
[6414,"Elite Transportation, Inc."]
[4466,"Emerson Hospital Emergency Medical Services"]
[6416,"Essex Group Transportation, Inc."]
[8011,"Events EMS, Inc."]
[6417,"F & H Transport"]
[6418,"F.M. Kuzmeskus"]
[4712,"Fallon Ambulance Service"]
[12811,"Fallon Emergency Medical Services, Inc"]
[13187,"Fitchburg EMS. Inc."]
[6420,"FOR Community Services"]
[6421,"Friendly Harbor"]
[6422,"GAAMHA"]
[13189,"Gardner EMS, Inc."]
[6429,"Geriatric Authority of Holyoke"]
[12568,"Global Care Transportation, Inc."]
[4548,"Gloucester Fire Department Rescue"]
[6423,"GMTA"]
[4552,"Groton Emergency Medical Services"]
[4714,"Guardian Ambulance"]
[6426,"Habilitation Assistance Corporation"]
[6427,"Handi-Call"]
[4746,"Hardwick Rescue and Emergency Squad"]
[4557,"Harvard Ambulance Service"]
[4559,"Hatfield Ambulance Service"]
[13199,"Health Line Transport, Inc."]
[6428,"Helping Hands Transportation Inc"]
[10336,"Highland Ambulance EMS, Inc."]
[8014,"Hilltown Community Ambulance"]
[4747,"Hinsdale Volunteer Firemen's Association"]
[6430,"Horace Mann Educational Associates (HMEA) Transportation"]
[6431,"Hulmes Transportation Services, Ltd."]
[6432,"Idea"]
[6433,"ISTOK Inc"]
[6434,"Kiessling Transit Inc"]
[4716,"K's Personal Transport, Inc."]
[6435,"L & D Transport"]
[4571,"Lancaster Ambulance Service"]
[4572,"Lanesborough Volunteer Fireman's Association"]
[4468,"Lawrence General Paramedic Services"]
[4575,"Lenox Volunteer Ambulance Squad"]
[4576,"Leominster Emergency Management Agency"]
[4717,"Lifecare Ambulance Service"]
[10305,"LifeLine Ambulance Service"]
[6436,"Lifeworks Inc"]
[6437,"Link Transportation"]
[6438,"Littleton Limo and Trans Inc"]
[4749,"Lower Cape Ambulance Association, Inc."]
[4582,"Ludlow Ambulance Service"]
[4718,"Lyons Ambulance Service, LLC"]
[10670,"M.I.T. - EMS"]
[4588,"Marion Emergency Medical Service"]
[4719,"Marlboro-Hudson Ambulance and Wheelchair Service, Inc."]
[6440,"Mass Services for Seniors"]
[4593,"Massachusetts State Police Academy"]
[6441,"MassTran Corporation"]
[6442,"McCall Transportation, LLC"]
[6443,"Med First"]
[12806,"Medcare Emergency Health Inc."]
[8017,"Medical Express Operator"]
[10332,"Medical Services Ambulance"]
[8018,"MedStar Ambulance, Inc."]
[13186,"Medstar EMS Inc"]
[6444,"Metro Transportation (ZAMS Inc)"]
[6445,"MI Transportation, Inc."]
[4605,"Nahant Ambulance Service"]
[10193,"National Ambulance LLC"]
[6446,"Need-A-Lift Medi Van, Inc."]
[4608,"Needham Ambulance Service"]
[4609,"New Bedford Emergency Medical Services"]
[13115,"New England Life Flight Inc. dba Boston MedFlight"]
[6447,"New England Transportation"]
[6448,"Newton Veterans Taxi Inc"]
[4610,"Norfolk Ambulance Service"]
[4752,"North Adams Ambulance Service, Inc."]
[4753,"North Brookfield EMS"]
[6449,"North End Community Health Center - Ambulance"]
[10266,"Northeast Regional Ambulance Service, Inc."]
[10676,"Northeastern University Public Safety"]
[4752,"Northern Berkshire EMS"]
[4616,"Northfield EMS"]
[6450,"Number 1 Transportation Co, Inc"]
[4620,"Oak Bluffs Ambulance Service"]
[4623,"Orleans Rescue Squad"]
[4754,"Otis Rescue Squad, Inc."]
[9362,"P&M Transportation"]
[4755,"Palmer Ambulance Service, Inc."]
[4725,"Patriot Ambulance, Inc."]
[6451,"Patriot Limo"]
[4626,"Pepperell Ambulance Service"]
[13188,"Pioneer Valley EMS, Inc."]
[10335,"PrideStar Emergency Medical Services, Inc."]
[6452,"PRN Medical"]
[4727,"Professional Ambulance and Oxygen Service, Inc."]
[4756,"Protection Fire Company #1"]
[6454,"PTS Transportation"]
[6455,"Quality Chairvan Service"]
[10681,"RAM Ambulance, Inc."]
[10677,"Rapid Ambulance Service"]
[4757,"Rehoboth Ambulance Committee, Inc."]
[20454,"Rescue, Inc."]
[4729,"Response Ambulance Service, Inc."]
[6459,"Ride In Time, Inc."]
[6460,"Ride Rite Medi-Van, Inc"]
[12587,"Riteway LLC."]
[4730,"Riverside Park Enterprise"]
[4635,"Rochester Ambulance Service"]
[6462,"Royal Care Transportation, Inc."]
[6463,"RTA Transit Service, Inc."]
[20456,"Safeway Luxury Transportation, LLC"]
[6464,"SBE Transportation"]
[6465,"SCM Community Transportation Corp."]
[4644,"Sharon Ambulance Service"]
[6466,"Shelburne COA"]
[4647,"Shirley Ambulance Service"]
[4649,"South Hadley Ambulance"]
[6467,"South Shore Community Action Council, Inc."]
[10331,"South Shore Hospital Ambulance"]
[10189,"Southcoast Emergency Medical Services, Inc."]
[4758,"Southern Berkshire Volunteer Ambulance"]
[4759,"Spaulding Rehabilitation Hospital Ambulance"]
[4760,"Spencer Rescue and Emergency Squad, Inc."]
[6468,"Springfield Chair & Car Service"]
[4733,"STAT Ambulance Service of New England, Inc."]
[4732,"STAT Ambulance Service, Inc."]
[6470,"STAVROS"]
[4707,"Steward Norwood Hospital Emergency Medical Services"]
[8020,"Suburban Home Care Medride Corp."]
[20453,"SurriMassini, Inc."]
[4184,"Swansea Ambulance Corps"]
[20188,"TAMF Companies LLC"]
[6471,"Taunton Motorized Carriage"]
[6472,"The Masonic Nursing Home"]
[6473,"Tommy's Taxi, Inc."]
[10330,"Top Ambulance Service, Inc."]
[6474,"Trans Care"]
[6475,"Travelers Transit"]
[4734,"Trinity EMS, Inc."]
[4665,"Tri-Town Ambulance"]
[4666,"Truro Rescue Squad"]
[10675,"Tufts Emergency Medical Service"]
[10267,"UMass Memorial Life Flight"]
[4474,"UMass Memorial Medical Center Emergency Medical Services"]
[10678,"Universal Ambulance Service"]
[6477,"VHS Transportation"]
[4736,"Village Ambulance Service, Inc."]
[10679,"Vital Emergency Medical Services"]
[15523,"Vital Emergency Medical Transportation"]
[4673,"Wareham Emergency Medical Services"]
[4737,"Webster Emergency Medical Services, Inc."]
[4762,"West Brookfield Rescue Squad"]
[6479,"Whaling City Transit, Inc."]
[4693,"Winchendon Ambulance Service"]
[6480,"Winchendon Community Action Committee, Inc"]
[4738,"Wood's Ambulance, Inc."]
[20455,"Worcester County Transportation LLC"]
[20199,"Worcester Medical Transportation LLC"]
[4697,"Wrentham Developmental Center"]
[6481,"Yellow Cab Norwood"]

{"sheet":"Errors","index":12,"n_rows":7,"n_cols":11,"rows_kept":7,"cut":false,"hidden":true,"merged":[[1,2,1,4],[1,5,1,6]]}
[]
[null,null,"Tab 3",null,null,"Tab 4",null,"Tab 5","Tab 6","Tab 7","Tab 8"]
[null,"Provider Type ","Tab 3 - Mileage","Tab 3 - Loaded Mileage","Tab 3 - Transports","Tab 4 - Staffing Expenses","Tab 4 - Staffing FTE","Tab 5 - Vehicle Expenses","Tab 6 - Occupancy Expenses","Tab 7 - Revenue","Tab 8 - Expenses"]
[null,"Ambulance",{"$f":"IF(AND('1. Agency Information'!C18=Errors!B4,'3. Mileage and Transport'!D8<=0),\"Error in \"& Errors!C3&\" for provider type must be greater than zero\",\"No Action Required\")","v":"No Action Required"},{"$f":"IF(AND('1. Agency Information'!C18=Errors!B4,'3. Mileage and Transport'!D15<=0),\"Error in \"& Errors!D3&\" for provider type must be greater than zero\",\"No Action Required\")","v":"No Action Required"},{"$f":"IF(AND('1. Agency Information'!C18=Errors!B4,(SUM('3. Mileage and Transport'!D21:D25)<=0)),\"Error in \"& Errors!E3&\" for provider type must be greater than zero\",\"No Action Required\")","v":"No Action Required"},{"$f":"IF(AND('1. Agency Information'!C18=Errors!B4,'4. Staffing Information'!J24<=0,'4. Staffing Information'!H24<=0),\"Error in \"& Errors!F3&\" for provider type must be greater than zero\",\"No Action Required\")","v":"No Action Required"},{"$f":"IF(AND('1. Agency Information'!C18=Errors!B4,'4. Staffing Information'!G24<=0,'4. Staffing Information'!I24<=0),\"Error in \"& Errors!G3&\" for provider type must be greater than zero\",\"No Action Required\")","v":"No Action Required"},{"$f":"IF(AND('1. Agency Information'!C18=Errors!B4,'5. Vehicle Expenses'!E20<=0,'5. Vehicle Expenses'!F20<=0),\"Error in \"& Errors!H3&\" for provider type must be greater than zero\",\"No Action Required\")","v":"No Action Required"},{"$f":"IF(AND('1. Agency Information'!C18=Errors!B4,'6. Occupancy Expenses'!E26<=0,'6. Occupancy Expenses'!F26<=0),\"Error in \"& Errors!I3&\" for provider type must be greater than zero\",\"No Action Required\")","v":"No Action Required"},{"$f":"IF(AND('1. Agency Information'!C18=Errors!B4,'7. Revenue'!D28<=0,'7. Revenue'!E28<=0),\"Error in \"& Errors!J3&\" for provider type must be greater than zero\",\"No Action Required\")","v":"No Action Required"},{"$f":"IF(AND('1. Agency Information'!C18=Errors!B4,'8. Expense'!E63<=0,'8. Expense'!F63<=0),\"Error in \"& Errors!K3&\" for provider type must be greater than zero\",\"No Action Required\")","v":"No Action Required"}]
[null,"Wheelchair Van",{"$f":"IF(AND('1. Agency Information'!C18=Errors!B5,'3. Mileage and Transport'!D9<=0),\"Error in \"& Errors!C3&\" for provider type must be greater than zero\",\"No Action Required\")","v":"No Action Required"},{"$f":"IF(AND('1. Agency Information'!C18=Errors!B5,'3. Mileage and Transport'!D16<=0),\"Error in \"& Errors!D3&\" for provider type must be greater than zero\",\"No Action Required\")","v":"No Action Required"},{"$f":"IF(AND('1. Agency Information'!C18=Errors!B5,'3. Mileage and Transport'!D27<=0),\"Error in \"& Errors!E3&\" for provider type must be greater than zero\",\"No Action Required\")","v":"No Action Required"},{"$f":"IF(AND('1. Agency Information'!C18=Errors!B5,'4. Staffing Information'!L24<=0),\"Error in \"& Errors!F3&\" for provider type must be greater than zero\",\"No Action Required\")","v":"No Action Required"},{"$f":"IF(AND('1. Agency Information'!C18=Errors!B5,'4. Staffing Information'!K24<=0),\"Error in \"& Errors!G3&\" for provider type must be greater than zero\",\"No Action Required\")","v":"No Action Required"},{"$f":"IF(AND('1. Agency Information'!C18=Errors!B5,'5. Vehicle Expenses'!G20<=0),\"Error in \"& Errors!H3&\" for provider type must be greater than zero\",\"No Action Required\")","v":"No Action Required"},{"$f":"IF(AND('1. Agency Information'!C18=Errors!B5,'6. Occupancy Expenses'!G26<=0),\"Error in \"& Errors!I3&\" for provider type must be greater than zero\",\"No Action Required\")","v":"No Action Required"},{"$f":"IF(AND('1. Agency Information'!C18=Errors!B5,'7. Revenue'!F28<=0),\"Error in \"& Errors!J3&\" for provider type must be greater than zero\",\"No Action Required\")","v":"No Action Required"},{"$f":"IF(AND('1. Agency Information'!C18=Errors!B5,'8. Expense'!G63<=0),\"Error in \"& Errors!K3&\" for provider type must be greater than zero\",\"No Action Required\")","v":"No Action Required"}]
[null,"Ambulance and Wheelchair Van",{"$f":"IF(OR(AND('1. Agency Information'!C18=Errors!B6,'3. Mileage and Transport'!D9<=0),AND('1. Agency Information'!C18=Errors!B6,'3. Mileage and Transport'!D8<=0)),\"Error in \"& Errors!C3&\" for provider type must be greater than zero\",\"No Action Required\")","v":"No Action Required"},{"$f":"IF(OR(AND('1. Agency Information'!C18=Errors!B6,'3. Mileage and Transport'!D16<=0),AND('1. Agency Information'!C18=Errors!B6,'3. Mileage and Transport'!D15<=0)),\"Error in \"& Errors!D3&\" for provider type must be greater than zero\",\"No Action Required\")","v":"No Action Required"},{"$f":"IF(OR(AND('1. Agency Information'!C18=Errors!B6,'3. Mileage and Transport'!D27<=0),AND('1. Agency Information'!C18=Errors!B6,(SUM('3. Mileage and Transport'!D21:D25)<=0))),\"Error in \"& Errors!E3&\" for provider type must be greater than zero\",\"No Action Required\")","v":"No Action Required"},{"$f":"IF(OR(AND('1. Agency Information'!C18=Errors!B6,'4. Staffing Information'!L24<=0),AND('1. Agency Information'!C18=Errors!B6,'4. Staffing Information'!J24<=0,'4. Staffing Information'!H24<=0)),\"Error in \"& Errors!F3&\" for provider type must be greater than zero\",\"No Action Required\")","v":"No Action Required"},{"$f":"IF(OR(AND('1. Agency Information'!C18=Errors!B6,'4. Staffing Information'!K24<=0),AND('1. Agency Information'!C18=Errors!B6,'4. Staffing Information'!G24<=0,'4. Staffing Information'!I24<=0)),\"Error in \"& Errors!G3&\" for provider type must be greater than zero\",\"No Action Required\")","v":"No Action Required"},{"$f":"IF(OR(AND('1. Agency Information'!C18=Errors!B6,'5. Vehicle Expenses'!G20<=0),AND('1. Agency Information'!C18=Errors!B6,'5. Vehicle Expenses'!E20<=0,'5. Vehicle Expenses'!F20<=0)),\"Error in \"& Errors!H3&\" for provider type must be greater than zero\",\"No Action Required\")","v":"No Action Required"},{"$f":"IF(OR(AND('1. Agency Information'!C18=Errors!B6,'6. Occupancy Expenses'!G26<=0),AND('1. Agency Information'!C18=Errors!B6,'6. Occupancy Expenses'!F26<=0,'6. Occupancy Expenses'!E26<=0)),\"Error in \"& Errors!I3&\" for provider type must be greater than zero\",\"No Action Required\")","v":"No Action Required"},{"$f":"IF(OR(AND('1. Agency Information'!C18=Errors!B6,'7. Revenue'!F28<=0),AND('1. Agency Information'!C18=Errors!B6,'7. Revenue'!D28<=0,'7. Revenue'!E28<=0)),\"Error in \"& Errors!J3&\" for provider type must be greater than zero\",\"No Action Required\")","v":"No Action Required"},{"$f":"IF(OR(AND('1. Agency Information'!C18=Errors!B6,'8. Expense'!G63<=0),AND('1. Agency Information'!C18=Errors!B6,'8. Expense'!E63<=0,'8. Expense'!F63<=0)),\"Error in \"& Errors!K3&\" for provider type must be greater than zero\",\"No Action Required\")","v":"No Action Required"}]
[null,"Air Ambulance",{"$f":"IF(AND('1. Agency Information'!C18=Errors!B7,'3. Mileage and Transport'!D10<=0),\"Error in \"& Errors!C3&\" for provider type must be greater than zero\",\"No Action Required\")","v":"No Action Required"},"No Action Required",{"$f":"IF(AND('1. Agency Information'!C18=Errors!B7,'3. Mileage and Transport'!D30<=0,'3. Mileage and Transport'!D31<=0),\"Error in \"& Errors!E3&\" for provider type must be greater than zero\",\"No Action Required\")","v":"No Action Required"},{"$f":"IF(AND('1. Agency Information'!C18=Errors!B7,'4. Staffing Information'!N24<=0,'4. Staffing Information'!P24<=0),\"Error in \"& Errors!F3&\" for provider type must be greater than zero\",\"No Action Required\")","v":"No Action Required"},{"$f":"IF(AND('1. Agency Information'!C18=Errors!B7,'4. Staffing Information'!M24<=0,'4. Staffing Information'!O24<=0),\"Error in \"& Errors!G3&\" for provider type must be greater than zero\",\"No Action Required\")","v":"No Action Required"},{"$f":"IF(AND('1. Agency Information'!C18=Errors!B7,'5. Vehicle Expenses'!H20<=0,'5. Vehicle Expenses'!I20<=0),\"Error in \"& Errors!H3&\" for provider type must be greater than zero\",\"No Action Required\")","v":"No Action Required"},{"$f":"IF(AND('1. Agency Information'!C18=Errors!B7,'6. Occupancy Expenses'!H26<=0,'6. Occupancy Expenses'!I26<=0),\"Error in \"& Errors!I3&\" for provider type must be greater than zero\",\"No Action Required\")","v":"No Action Required"},{"$f":"IF(AND('1. Agency Information'!C18=Errors!B7,'7. Revenue'!G28<=0,'7. Revenue'!H28<=0),\"Error in \"& Errors!J3&\" for provider type must be greater than zero\",\"No Action Required\")","v":"No Action Required"},{"$f":"IF(AND('1. Agency Information'!C18=Errors!B7,'8. Expense'!H63<=0,'8. Expense'!I63<=0),\"Error in \"& Errors!K3&\" for provider type must be greater than zero\",\"No Action Required\")","v":"No Action Required"}]

{"sheet":"System Data","index":13,"n_rows":88,"n_cols":17,"rows_kept":88,"cut":false,"hidden":true,"merged":[]}
["00:00:00","MinimumTimeInputValue"]
["23:59:59","MaximumTimeInputValue"]
["2016-07-01","MinimumDateInputValue"]
["9999-12-31","MaximumDateInputValue"]
[-999999999999,"MinimumDollarInputValue"]
[999999999999,"MaximumDollarInputValue"]
[-999999999999.98999,"Minimum2DecimalInputValue"]
[999999999999.98999,"Maximum2DecimalInputValue"]
["ADHCRabHAF-0195.xlsm","DevTemplateFilenameNVersion"]
[{"$f":"INDEX('Provider List'!A5:B240,MATCH(vProviderName,'Provider List'!B5:B240,0),1)","v":{"$error":"#N/A"}},"OrgID",{"$f":"LOOKUP(vProviderName,FacilityList)","v":{"$error":"#N/A"}},{"$f":"INDEX(FacilityList,C10,1)","v":{"$error":"#N/A"}}]
[{"$f":"'1. Agency Information'!C19","v":"00:00:00"},"FiscalYear"]
[true,"OnSaveFlag"]
[{"$f":"IF(AND(NOT(ISBLANK(ProviderName)),(IF(ProviderName<>DefaultUnselectedProviderName,TRUE,FALSE))),TRUE,FALSE)","v":false},"cfProviderSelected"]
[{"$f":"ProviderName","v":0},"vProviderName"]
["Select your provider name:","DefaultUnselectedProviderName"]
["Select your Provider Name in Tab 1, Cell C9","DefaultMessageWhenUnselectedProviderName"]
[{"$f":"IF(cfProviderSelected,vProviderName,DefaultMessageWhenUnselectedProviderName)","v":"Select your Provider Name in Tab 1, Cell C9"},"ProviderNameHeader"]
["Select your provider name in Tab 1, Cell C9","vPromptText",null,"NEEDED?????"]
[{"$f":"IF(NOT(ISBLANK(FYStart)),IF(NOT(ISBLANK(FYEnd)),IF(FYEnd > FYStart,FALSE,TRUE),TRUE),FALSE)","v":{"$error":"#NAME?"}},"DVRFYEndGTFYStart"]
[{"$f":"IF(AND(NOT(ISBLANK(FYStart)),NOT(ISBLANK(FYEnd))),IF(FYEnd>FYStart,TRUE,FALSE),TRUE)","v":{"$error":"#NAME?"}},"FYEndGTFYStart"]
["No Action Required","NAR"]
[]
[{"$f":"IF(LEN(MassHealthProviderID)<>10,FALSE,AND(IF(ISNUMBER(VALUE(LEFT(MassHealthProviderID,9))),IF(VALUE(LEFT(MassHealthProviderID,9))>0,IF(VALUE(LEFT(MassHealthProviderID))<1000000000,TRUE,FALSE)),FALSE),IF(UPPER(RIGHT(MassHealthProviderID,1))>=\"A\",IF(UPPER(RIGHT(MassHealthProviderID,1))<=\"Z\",TRUE,FALSE),FALSE)))","v":false},"HSDV01"]
[{"$f":"IF(LegalRelationship=\"Multi-Service Agency Affiliated\",AND(IF('4. Staffing Information'!V23>0,TRUE,FALSE),IF(#REF!>0,TRUE,FALSE)),TRUE)","v":{"$error":"#NAME?"}},"HSDV02"]
[{"$f":"NOT(ISBLANK(FYStart))","v":true},"HSDV03"]
[{"$f":"NOT(ISBLANK(FYEnd))","v":true},"HSDV04"]
[{"$f":"IF(AND(NOT(HSDV03),NOT(HSDV04)),FALSE,IF(FYStart<FYEnd,TRUE,FALSE))","v":{"$error":"#NAME?"}},"HSDV05"]
[{"$f":"IF(HoursPerWeek>0,TRUE,FALSE)","v":{"$error":"#REF!"}},"HSDV06"]
[{"$f":"AND(HSDV07_1,HSDV07_2,HSDV07_3,HSDV07_4,HSDV07_5,HSDV07_6,HSDV07_7,HSDV07_8,HSDV07_9,HSDV07_10,HSDV07_11,HSDV07_12,HSDV07_13,HSDV07_14,HSDV07_15,HSDV07_16,HSDV07_17,HSDV07_18,HSDV07_19,HSDV07_20)","v":false},"HSDV07","–","–","–","–","–","–","–","–","–","–","–","––––––––>",{"$f":"IF(AND(NOT(ISBLANK('3. Mileage and Transport'!#REF!))),TRUE,FALSE)","v":true},"HSDV07_1"]
[{"$f":"IF(SUM('4. Staffing Information'!C9,'4. Staffing Information'!C10,'4. Staffing Information'!C11,'4. Staffing Information'!C23)>0,TRUE,FALSE)","v":false},"HSDV08",null,null,null,null,null,null,null,null,null,null,null,null,{"$f":"IF(AND(NOT(ISBLANK('3. Mileage and Transport'!D8))),TRUE,FALSE)","v":false},"HSDV07_2"]
[{"$f":"IF(AND(NOT(ISBLANK('4. Staffing Information'!J9)),NOT(ISBLANK('4. Staffing Information'!J10)),NOT(ISBLANK('4. Staffing Information'!J11)),NOT(ISBLANK('4. Staffing Information'!J12)),NOT(ISBLANK('4. Staffing Information'!J13)),NOT(ISBLANK('4. Staffing Information'!J14)),NOT(ISBLANK('4. Staffing Information'!J15)),NOT(ISBLANK('4. Staffing Information'!J16)),NOT(ISBLANK('4. Staffing Information'!J17)),NOT(ISBLANK('4. Staffing Information'!J18)),NOT(ISBLANK('4. Staffing Information'!J19)),NOT(ISBLANK('4. Staffing Information'!J20)),NOT(ISBLANK('4. Staffing Information'!J21))),TRUE,FALSE)","v":false},"HSDV09",null,null,null,null,null,null,null,null,null,null,null,null,{"$f":"IF(AND(NOT(ISBLANK('3. Mileage and Transport'!D9))),TRUE,FALSE)","v":false},"HSDV07_3"]
[{"$f":"AND(HSDV10_1,HSDV10_2,HSDV10_3,HSDV10_4,HSDV10_5,HSDV10_6,HSDV10_7,HSDV10_8,HSDV10_9,HSDV10_10,HSDV10_11,HSDV10_12,HSDV10_13,HSDV10_16,HSDV10_17,HSDV10_18,HSDV10_19,HSDV10_20,HSDV10_21,HSDV10_22,HSDV10_23,HSDV10_24,HSDV10_25,HSDV10_26,HSDV10_27,HSDV10_28,HSDV10_29,HSDV10_30,HSDV10_31,HSDV10_32,HSDV10_33,HSDV10_34,HSDV10_35,HSDV10_36,HSDV10_37,HSDV10_38,HSDV10_39,HSDV10_40)","v":true},"HSDV10","–","–","–","–","–","–","–","–","–","––––––––>",{"$f":"IF(AND(NOT(ISBLANK('4. Staffing Information'!H9))),IF(OR(AND(NOT(ISBLANK('4. Staffing Information'!I9))),AND(NOT(ISBLANK('4. Staffing Information'!J9))),),TRUE,FALSE),TRUE)","v":true},"HSDV10_1",{"$f":"IF(AND(NOT(ISBLANK('3. Mileage and Transport'!D11))),TRUE,FALSE)","v":false},"HSDV07_4"]
[{"$f":"AND(HSDV11_1,HSDV11_2,HSDV11_3,HSDV11_4,HSDV11_5,HSDV11_6,HSDV11_7,HSDV11_8,HSDV11_9,HSDV11_10,HSDV11_11,HSDV11_12,HSDV11_13,HSDV11_16,HSDV11_17,HSDV11_18,HSDV11_19,HSDV11_20,HSDV11_21,HSDV11_22,HSDV11_23,HSDV11_24,HSDV11_25,HSDV11_26,HSDV11_27,HSDV11_28,HSDV11_29,HSDV11_30,HSDV11_31,HSDV11_32,HSDV11_33,HSDV11_34,HSDV11_35,HSDV11_36,HSDV11_37,HSDV11_38,HSDV11_39,HSDV11_40)","v":true},"HSDV11","–","–","–","–","–","–","–","––––––––>",{"$f":"IF(OR(AND(NOT(ISBLANK('4. Staffing Information'!I9))),AND(NOT(ISBLANK('4. Staffing Information'!J9)))),AND(NOT(ISBLANK('4. Staffing Information'!H9))),TRUE)","v":true},"HSDV11_1",{"$f":"IF(AND(NOT(ISBLANK('4. Staffing Information'!H10))),IF(OR(AND(NOT(ISBLANK('4. Staffing Information'!I10))),AND(NOT(ISBLANK('4. Staffing Information'!J10))),),TRUE,FALSE),TRUE)","v":true},"HSDV10_2",{"$f":"IF(AND(NOT(ISBLANK('3. Mileage and Transport'!D12))),TRUE,FALSE)","v":true},"HSDV07_5"]
[{"$f":"IF(AND(NOT(ISBLANK('4. Staffing Information'!I24)),IF('4. Staffing Information'!I24>0,TRUE,FALSE)),TRUE,FALSE)","v":false},"HSDV12",null,null,null,null,null,null,null,null,{"$f":"IF(OR(AND(NOT(ISBLANK('4. Staffing Information'!I10))),AND(NOT(ISBLANK('4. Staffing Information'!J10)))),AND(NOT(ISBLANK('4. Staffing Information'!H10))),TRUE)","v":true},"HSDV11_2",{"$f":"IF(AND(NOT(ISBLANK('4. Staffing Information'!H11))),IF(OR(AND(NOT(ISBLANK('4. Staffing Information'!I11))),AND(NOT(ISBLANK('4. Staffing Information'!J11))),),TRUE,FALSE),TRUE)","v":true},"HSDV10_3",{"$f":"IF(AND(NOT(ISBLANK('3. Mileage and Transport'!#REF!))),TRUE,FALSE)","v":true},"HSDV07_6"]
[{"$f":"AND(HSDV13_1,HSDV13_2,HSDV13_3,HSDV13_4,HSDV13_5,HSDV13_6,HSDV13_7,HSDV13_8,HSDV13_9,HSDV13_10,HSDV13_11,HSDV13_12,HSDV13_13,HSDV13_16,HSDV13_17,HSDV13_18,HSDV13_19,HSDV13_20,HSDV13_21,HSDV13_22,HSDV13_23,HSDV13_24,HSDV13_25,HSDV13_26,HSDV13_27,HSDV13_28,HSDV13_29,HSDV13_30,HSDV13_31,HSDV13_32,HSDV13_33,HSDV13_34,HSDV13_35,HSDV13_36,HSDV13_37,HSDV13_38,HSDV13_39,HSDV13_40)","v":false},"HSDV13","–","–","–","–","–","––––––––>",{"$f":"IF(AND(NOT(ISBLANK('4. Staffing Information'!I9))),AND(NOT(ISBLANK('4. Staffing Information'!S9))),TRUE)","v":true},"HSDV13_1",{"$f":"IF(OR(AND(NOT(ISBLANK('4. Staffing Information'!I11))),AND(NOT(ISBLANK('4. Staffing Information'!J11)))),AND(NOT(ISBLANK('4. Staffing Information'!H11))),TRUE)","v":true},"HSDV11_3",{"$f":"IF(AND(NOT(ISBLANK('4. Staffing Information'!H12))),IF(OR(AND(NOT(ISBLANK('4. Staffing Information'!I12))),AND(NOT(ISBLANK('4. Staffing Information'!J12))),),TRUE,FALSE),TRUE)","v":true},"HSDV10_4",{"$f":"IF(AND(NOT(ISBLANK('3. Mileage and Transport'!#REF!))),TRUE,FALSE)","v":true},"HSDV07_7"]
[{"$f":"AND(HSDV14_1,HSDV14_2,HSDV14_3,HSDV14_4,HSDV14_5,HSDV14_6,HSDV14_7,HSDV14_8,HSDV14_9,HSDV14_10,HSDV14_11,HSDV14_12,HSDV14_13,HSDV14_16,HSDV14_17,HSDV14_18,HSDV14_19,HSDV14_20,HSDV14_21,HSDV14_22,HSDV14_23,HSDV14_24,HSDV14_25,HSDV14_26,HSDV14_27,HSDV14_28,HSDV14_29,HSDV14_30,HSDV14_31,HSDV14_32,HSDV14_33,HSDV14_34,HSDV14_35,HSDV14_36,HSDV14_37,HSDV14_38,HSDV14_39,HSDV14_40)","v":true},"HSDV14","–","–","–","––––––––>",{"$f":"IF(AND(NOT(ISBLANK('4. Staffing Information'!S9))),AND(NOT(ISBLANK('4. Staffing Information'!I9))),TRUE)","v":true},"HSDV14_1",{"$f":"IF(AND(NOT(ISBLANK('4. Staffing Information'!I10))),AND(NOT(ISBLANK('4. Staffing Information'!S10))),TRUE)","v":true},"HSDV13_2",{"$f":"IF(OR(AND(NOT(ISBLANK('4. Staffing Information'!I12))),AND(NOT(ISBLANK('4. Staffing Information'!J12)))),AND(NOT(ISBLANK('4. Staffing Information'!H12))),TRUE)","v":true},"HSDV11_4",{"$f":"IF(AND(NOT(ISBLANK('4. Staffing Information'!H13))),IF(OR(AND(NOT(ISBLANK('4. Staffing Information'!I13))),AND(NOT(ISBLANK('4. Staffing Information'!J13))),),TRUE,FALSE),TRUE)","v":true},"HSDV10_5",{"$f":"IF(AND(NOT(ISBLANK('3. Mileage and Transport'!#REF!))),TRUE,FALSE)","v":true},"HSDV07_8"]
[{"$f":"AND(HSDV15_1,HSDV15_2,HSDV15_3,HSDV15_4,HSDV15_5,HSDV15_6,HSDV15_7,HSDV15_8,HSDV15_9,HSDV15_10,HSDV15_11,HSDV15_12,HSDV15_13,HSDV15_16,HSDV15_17,HSDV15_18,HSDV15_19,HSDV15_20,HSDV15_21,HSDV15_22,HSDV15_23,HSDV15_24,HSDV15_25,HSDV15_26,HSDV15_27,HSDV15_28,HSDV15_29,HSDV15_30,HSDV15_31,HSDV15_32,HSDV15_33,HSDV15_34,HSDV15_35,HSDV15_36,HSDV15_37,HSDV15_38,HSDV15_39,HSDV15_40)","v":false},"HSDV15","–","––––––––>",{"$f":"IF(AND(NOT(ISBLANK('4. Staffing Information'!J9))),AND(NOT(ISBLANK('4. Staffing Information'!T9))),TRUE)","v":true},"HSDV15_1",{"$f":"IF(AND(NOT(ISBLANK('4. Staffing Information'!S10))),AND(NOT(ISBLANK('4. Staffing Information'!I10))),TRUE)","v":true},"HSDV14_2",{"$f":"IF(AND(NOT(ISBLANK('4. Staffing Information'!I11))),AND(NOT(ISBLANK('4. Staffing Information'!S11))),TRUE)","v":true},"HSDV13_3",{"$f":"IF(OR(AND(NOT(ISBLANK('4. Staffing Information'!I13))),AND(NOT(ISBLANK('4. Staffing Information'!J13)))),AND(NOT(ISBLANK('4. Staffing Information'!H13))),TRUE)","v":true},"HSDV11_5",{"$f":"IF(AND(NOT(ISBLANK('4. Staffing Information'!H14))),IF(OR(AND(NOT(ISBLANK('4. Staffing Information'!I14))),AND(NOT(ISBLANK('4. Staffing Information'!J14))),),TRUE,FALSE),TRUE)","v":true},"HSDV10_6",{"$f":"IF(AND(NOT(ISBLANK('3. Mileage and Transport'!#REF!))),TRUE,FALSE)","v":true},"HSDV07_9"]
[{"$f":"AND(HSDV16_1,HSDV16_2,HSDV16_3,HSDV16_4,HSDV16_5,HSDV16_6,HSDV16_7,HSDV16_8,HSDV16_9,HSDV16_10,HSDV16_11,HSDV16_12,HSDV16_13,HSDV16_16,HSDV16_17,HSDV16_18,HSDV16_19,HSDV16_20,HSDV16_21,HSDV16_22,HSDV16_23,HSDV16_24,HSDV16_25,HSDV16_26,HSDV16_27,HSDV16_28,HSDV16_29,HSDV16_30,HSDV16_31,HSDV16_32,HSDV16_33,HSDV16_34,HSDV16_35,HSDV16_36,HSDV16_37,HSDV16_38,HSDV16_39,HSDV16_40)","v":true},"HSDV16",{"$f":"IF(AND(NOT(ISBLANK('4. Staffing Information'!T9))),AND(NOT(ISBLANK('4. Staffing Information'!J9))),TRUE)","v":true},"HSDV16_1",{"$f":"IF(AND(NOT(ISBLANK('4. Staffing Information'!J10))),AND(NOT(ISBLANK('4. Staffing Information'!T10))),TRUE)","v":true},"HSDV15_2",{"$f":"IF(AND(NOT(ISBLANK('4. Staffing Information'!S11))),AND(NOT(ISBLANK('4. Staffing Information'!I11))),TRUE)","v":true},"HSDV14_3",{"$f":"IF(AND(NOT(ISBLANK('4. Staffing Information'!I12))),AND(NOT(ISBLANK('4. Staffing Information'!S12))),TRUE)","v":true},"HSDV13_4",{"$f":"IF(OR(AND(NOT(ISBLANK('4. Staffing Information'!I14))),AND(NOT(ISBLANK('4. Staffing Information'!J14)))),AND(NOT(ISBLANK('4. Staffing Information'!H14))),TRUE)","v":true},"HSDV11_6",{"$f":"IF(AND(NOT(ISBLANK('4. Staffing Information'!H15))),IF(OR(AND(NOT(ISBLANK('4. Staffing Information'!I15))),AND(NOT(ISBLANK('4. Staffing Information'!J15))),),TRUE,FALSE),TRUE)","v":true},"HSDV10_7",{"$f":"IF(AND(NOT(ISBLANK('3. Mileage and Transport'!D15))),TRUE,FALSE)","v":false},"HSDV07_10"]
[null,null,{"$f":"IF(AND(NOT(ISBLANK('4. Staffing Information'!T10))),AND(NOT(ISBLANK('4. Staffing Information'!J10))),TRUE)","v":true},"HSDV16_2",{"$f":"IF(AND(NOT(ISBLANK('4. Staffing Information'!J11))),AND(NOT(ISBLANK('4. Staffing Information'!T11))),TRUE)","v":true},"HSDV15_3",{"$f":"IF(AND(NOT(ISBLANK('4. Staffing Information'!S12))),AND(NOT(ISBLANK('4. Staffing Information'!I12))),TRUE)","v":true},"HSDV14_4",{"$f":"IF(AND(NOT(ISBLANK('4. Staffing Information'!I13))),AND(NOT(ISBLANK('4. Staffing Information'!S13))),TRUE)","v":true},"HSDV13_5",{"$f":"IF(OR(AND(NOT(ISBLANK('4. Staffing Information'!I15))),AND(NOT(ISBLANK('4. Staffing Information'!J15)))),AND(NOT(ISBLANK('4. Staffing Information'!H15))),TRUE)","v":true},"HSDV11_7",{"$f":"IF(AND(NOT(ISBLANK('4. Staffing Information'!H16))),IF(OR(AND(NOT(ISBLANK('4. Staffing Information'!I16))),AND(NOT(ISBLANK('4. Staffing Information'!J16))),),TRUE,FALSE),TRUE)","v":true},"HSDV10_8",{"$f":"IF(AND(NOT(ISBLANK('3. Mileage and Transport'!D16))),TRUE,FALSE)","v":false},"HSDV07_11"]
[null,null,{"$f":"IF(AND(NOT(ISBLANK('4. Staffing Information'!T11))),AND(NOT(ISBLANK('4. Staffing Information'!J11))),TRUE)","v":true},"HSDV16_3",{"$f":"IF(AND(NOT(ISBLANK('4. Staffing Information'!J12))),AND(NOT(ISBLANK('4. Staffing Information'!T12))),TRUE)","v":true},"HSDV15_4",{"$f":"IF(AND(NOT(ISBLANK('4. Staffing Information'!S13))),AND(NOT(ISBLANK('4. Staffing Information'!I13))),TRUE)","v":true},"HSDV14_5",{"$f":"IF(AND(NOT(ISBLANK('4. Staffing Information'!I14))),AND(NOT(ISBLANK('4. Staffing Information'!S14))),TRUE)","v":true},"HSDV13_6",{"$f":"IF(OR(AND(NOT(ISBLANK('4. Staffing Information'!I16))),AND(NOT(ISBLANK('4. Staffing Information'!J16)))),AND(NOT(ISBLANK('4. Staffing Information'!H16))),TRUE)","v":true},"HSDV11_8",{"$f":"IF(AND(NOT(ISBLANK('4. Staffing Information'!H17))),IF(OR(AND(NOT(ISBLANK('4. Staffing Information'!I17))),AND(NOT(ISBLANK('4. Staffing Information'!J17))),),TRUE,FALSE),TRUE)","v":true},"HSDV10_9",{"$f":"IF(AND(NOT(ISBLANK('3. Mileage and Transport'!D17))),TRUE,FALSE)","v":false},"HSDV07_12"]
[null,null,{"$f":"IF(AND(NOT(ISBLANK('4. Staffing Information'!T12))),AND(NOT(ISBLANK('4. Staffing Information'!J12))),TRUE)","v":true},"HSDV16_4",{"$f":"IF(AND(NOT(ISBLANK('4. Staffing Information'!J13))),AND(NOT(ISBLANK('4. Staffing Information'!T13))),TRUE)","v":true},"HSDV15_5",{"$f":"IF(AND(NOT(ISBLANK('4. Staffing Information'!S14))),AND(NOT(ISBLANK('4. Staffing Information'!I14))),TRUE)","v":true},"HSDV14_6",{"$f":"IF(AND(NOT(ISBLANK('4. Staffing Information'!I15))),AND(NOT(ISBLANK('4. Staffing Information'!S15))),TRUE)","v":true},"HSDV13_7",{"$f":"IF(OR(AND(NOT(ISBLANK('4. Staffing Information'!I17))),AND(NOT(ISBLANK('4. Staffing Information'!J17)))),AND(NOT(ISBLANK('4. Staffing Information'!H17))),TRUE)","v":true},"HSDV11_9",{"$f":"IF(AND(NOT(ISBLANK('4. Staffing Information'!H18))),IF(OR(AND(NOT(ISBLANK('4. Staffing Information'!I18))),AND(NOT(ISBLANK('4. Staffing Information'!J18))),),TRUE,FALSE),TRUE)","v":true},"HSDV10_10",{"$f":"IF(AND(NOT(ISBLANK('3. Mileage and Transport'!D18))),TRUE,FALSE)","v":true},"HSDV07_13"]
[null,null,{"$f":"IF(AND(NOT(ISBLANK('4. Staffing Information'!T13))),AND(NOT(ISBLANK('4. Staffing Information'!J13))),TRUE)","v":true},"HSDV16_5",{"$f":"IF(AND(NOT(ISBLANK('4. Staffing Information'!J14))),AND(NOT(ISBLANK('4. Staffing Information'!T14))),TRUE)","v":true},"HSDV15_6",{"$f":"IF(AND(NOT(ISBLANK('4. Staffing Information'!S15))),AND(NOT(ISBLANK('4. Staffing Information'!I15))),TRUE)","v":true},"HSDV14_7",{"$f":"IF(AND(NOT(ISBLANK('4. Staffing Information'!I16))),AND(NOT(ISBLANK('4. Staffing Information'!S16))),TRUE)","v":false},"HSDV13_8",{"$f":"IF(OR(AND(NOT(ISBLANK('4. Staffing Information'!I18))),AND(NOT(ISBLANK('4. Staffing Information'!J18)))),AND(NOT(ISBLANK('4. Staffing Information'!H18))),TRUE)","v":true},"HSDV11_10",{"$f":"IF(AND(NOT(ISBLANK('4. Staffing Information'!H19))),IF(OR(AND(NOT(ISBLANK('4. Staffing Information'!I19))),AND(NOT(ISBLANK('4. Staffing Information'!J19))),),TRUE,FALSE),TRUE)","v":true},"HSDV10_11",{"$f":"IF(AND(NOT(ISBLANK('3. Mileage and Transport'!F20))),TRUE,FALSE)","v":false},"HSDV07_14"]
[null,null,{"$f":"IF(AND(NOT(ISBLANK('4. Staffing Information'!T14))),AND(NOT(ISBLANK('4. Staffing Information'!J14))),TRUE)","v":true},"HSDV16_6",{"$f":"IF(AND(NOT(ISBLANK('4. Staffing Information'!J15))),AND(NOT(ISBLANK('4. Staffing Information'!T15))),TRUE)","v":true},"HSDV15_7",{"$f":"IF(AND(NOT(ISBLANK('4. Staffing Information'!S16))),AND(NOT(ISBLANK('4. Staffing Information'!I16))),TRUE)","v":true},"HSDV14_8",{"$f":"IF(AND(NOT(ISBLANK('4. Staffing Information'!I17))),AND(NOT(ISBLANK('4. Staffing Information'!S17))),TRUE)","v":true},"HSDV13_9",{"$f":"IF(OR(AND(NOT(ISBLANK('4. Staffing Information'!I19))),AND(NOT(ISBLANK('4. Staffing Information'!J19)))),AND(NOT(ISBLANK('4. Staffing Information'!H19))),TRUE)","v":true},"HSDV11_11",{"$f":"IF(AND(NOT(ISBLANK('4. Staffing Information'!H20))),IF(OR(AND(NOT(ISBLANK('4. Staffing Information'!I20))),AND(NOT(ISBLANK('4. Staffing Information'!J20))),),TRUE,FALSE),TRUE)","v":true},"HSDV10_12",{"$f":"IF(AND(NOT(ISBLANK('3. Mileage and Transport'!D21))),TRUE,FALSE)","v":false},"HSDV07_15"]
[null,null,{"$f":"IF(AND(NOT(ISBLANK('4. Staffing Information'!T15))),AND(NOT(ISBLANK('4. Staffing Information'!J15))),TRUE)","v":true},"HSDV16_7",{"$f":"IF(AND(NOT(ISBLANK('4. Staffing Information'!J16))),AND(NOT(ISBLANK('4. Staffing Information'!T16))),TRUE)","v":false},"HSDV15_8",{"$f":"IF(AND(NOT(ISBLANK('4. Staffing Information'!S17))),AND(NOT(ISBLANK('4. Staffing Information'!I17))),TRUE)","v":true},"HSDV14_9",{"$f":"IF(AND(NOT(ISBLANK('4. Staffing Information'!I18))),AND(NOT(ISBLANK('4. Staffing Information'!S18))),TRUE)","v":true},"HSDV13_10",{"$f":"IF(OR(AND(NOT(ISBLANK('4. Staffing Information'!I20))),AND(NOT(ISBLANK('4. Staffing Information'!J20)))),AND(NOT(ISBLANK('4. Staffing Information'!H20))),TRUE)","v":true},"HSDV11_12",{"$f":"IF(AND(NOT(ISBLANK('4. Staffing Information'!H21))),IF(OR(AND(NOT(ISBLANK('4. Staffing Information'!I21))),AND(NOT(ISBLANK('4. Staffing Information'!J21))),),TRUE,FALSE),TRUE)","v":true},"HSDV10_13",{"$f":"IF(AND(NOT(ISBLANK('3. Mileage and Transport'!D22))),TRUE,FALSE)","v":false},"HSDV07_16"]
[null,null,{"$f":"IF(AND(NOT(ISBLANK('4. Staffing Information'!T16))),AND(NOT(ISBLANK('4. Staffing Information'!J16))),TRUE)","v":true},"HSDV16_8",{"$f":"IF(AND(NOT(ISBLANK('4. Staffing Information'!J17))),AND(NOT(ISBLANK('4. Staffing Information'!T17))),TRUE)","v":true},"HSDV15_9",{"$f":"IF(AND(NOT(ISBLANK('4. Staffing Information'!S18))),AND(NOT(ISBLANK('4. Staffing Information'!I18))),TRUE)","v":true},"HSDV14_10",{"$f":"IF(AND(NOT(ISBLANK('4. Staffing Information'!I19))),AND(NOT(ISBLANK('4. Staffing Information'!S19))),TRUE)","v":true},"HSDV13_11",{"$f":"IF(OR(AND(NOT(ISBLANK('4. Staffing Information'!I21))),AND(NOT(ISBLANK('4. Staffing Information'!J21)))),AND(NOT(ISBLANK('4. Staffing Information'!H21))),TRUE)","v":true},"HSDV11_13",{"$f":"IF(AND(NOT(ISBLANK('4. Staffing Information'!H26))),IF(OR(AND(NOT(ISBLANK('4. Staffing Information'!I26))),AND(NOT(ISBLANK('4. Staffing Information'!J26))),),TRUE,FALSE),TRUE)","v":true},"HSDV10_16",{"$f":"IF(AND(NOT(ISBLANK('3. Mileage and Transport'!D23))),TRUE,FALSE)","v":false},"HSDV07_17"]
[null,null,{"$f":"IF(AND(NOT(ISBLANK('4. Staffing Information'!T17))),AND(NOT(ISBLANK('4. Staffing Information'!J17))),TRUE)","v":true},"HSDV16_9",{"$f":"IF(AND(NOT(ISBLANK('4. Staffing Information'!J18))),AND(NOT(ISBLANK('4. Staffing Information'!T18))),TRUE)","v":true},"HSDV15_10",{"$f":"IF(AND(NOT(ISBLANK('4. Staffing Information'!S19))),AND(NOT(ISBLANK('4. Staffing Information'!I19))),TRUE)","v":true},"HSDV14_11",{"$f":"IF(AND(NOT(ISBLANK('4. Staffing Information'!I20))),AND(NOT(ISBLANK('4. Staffing Information'!S20))),TRUE)","v":true},"HSDV13_12",{"$f":"IF(OR(AND(NOT(ISBLANK('4. Staffing Information'!I26))),AND(NOT(ISBLANK('4. Staffing Information'!J26)))),AND(NOT(ISBLANK('4. Staffing Information'!H26))),TRUE)","v":true},"HSDV11_16",{"$f":"IF(AND(NOT(ISBLANK('4. Staffing Information'!H27))),IF(OR(AND(NOT(ISBLANK('4. Staffing Information'!I27))),AND(NOT(ISBLANK('4. Staffing Information'!J27))),),TRUE,FALSE),TRUE)","v":true},"HSDV10_17",{"$f":"IF(AND(NOT(ISBLANK('3. Mileage and Transport'!D24))),TRUE,FALSE)","v":false},"HSDV07_18"]
[null,null,{"$f":"IF(AND(NOT(ISBLANK('4. Staffing Information'!T18))),AND(NOT(ISBLANK('4. Staffing Information'!J18))),TRUE)","v":true},"HSDV16_10",{"$f":"IF(AND(NOT(ISBLANK('4. Staffing Information'!J19))),AND(NOT(ISBLANK('4. Staffing Information'!T19))),TRUE)","v":true},"HSDV15_11",{"$f":"IF(AND(NOT(ISBLANK('4. Staffing Information'!S20))),AND(NOT(ISBLANK('4. Staffing Information'!I20))),TRUE)","v":true},"HSDV14_12",{"$f":"IF(AND(NOT(ISBLANK('4. Staffing Information'!I21))),AND(NOT(ISBLANK('4. Staffing Information'!S21))),TRUE)","v":true},"HSDV13_13",{"$f":"IF(OR(AND(NOT(ISBLANK('4. Staffing Information'!I27))),AND(NOT(ISBLANK('4. Staffing Information'!J27)))),AND(NOT(ISBLANK('4. Staffing Information'!H27))),TRUE)","v":true},"HSDV11_17",{"$f":"IF(AND(NOT(ISBLANK('4. Staffing Information'!H28))),IF(OR(AND(NOT(ISBLANK('4. Staffing Information'!I28))),AND(NOT(ISBLANK('4. Staffing Information'!J28))),),TRUE,FALSE),TRUE)","v":true},"HSDV10_18",{"$f":"IF(AND(NOT(ISBLANK('3. Mileage and Transport'!D26))),TRUE,FALSE)","v":false},"HSDV07_19"]
[null,null,{"$f":"IF(AND(NOT(ISBLANK('4. Staffing Information'!T19))),AND(NOT(ISBLANK('4. Staffing Information'!J19))),TRUE)","v":true},"HSDV16_11",{"$f":"IF(AND(NOT(ISBLANK('4. Staffing Information'!J20))),AND(NOT(ISBLANK('4. Staffing Information'!T20))),TRUE)","v":true},"HSDV15_12",{"$f":"IF(AND(NOT(ISBLANK('4. Staffing Information'!S21))),AND(NOT(ISBLANK('4. Staffing Information'!I21))),TRUE)","v":true},"HSDV14_13",{"$f":"IF(AND(NOT(ISBLANK('4. Staffing Information'!I26))),AND(NOT(ISBLANK('4. Staffing Information'!S26))),TRUE)","v":true},"HSDV13_16",{"$f":"IF(OR(AND(NOT(ISBLANK('4. Staffing Information'!I28))),AND(NOT(ISBLANK('4. Staffing Information'!J28)))),AND(NOT(ISBLANK('4. Staffing Information'!H28))),TRUE)","v":true},"HSDV11_18",{"$f":"IF(AND(NOT(ISBLANK('4. Staffing Information'!H29))),IF(OR(AND(NOT(ISBLANK('4. Staffing Information'!I29))),AND(NOT(ISBLANK('4. Staffing Information'!J29))),),TRUE,FALSE),TRUE)","v":true},"HSDV10_19",{"$f":"IF(AND(NOT(ISBLANK('3. Mileage and Transport'!#REF!))),TRUE,FALSE)","v":true},"HSDV07_20"]
[null,null,{"$f":"IF(AND(NOT(ISBLANK('4. Staffing Information'!T20))),AND(NOT(ISBLANK('4. Staffing Information'!J20))),TRUE)","v":true},"HSDV16_12",{"$f":"IF(AND(NOT(ISBLANK('4. Staffing Information'!J21))),AND(NOT(ISBLANK('4. Staffing Information'!T21))),TRUE)","v":true},"HSDV15_13",{"$f":"IF(AND(NOT(ISBLANK('4. Staffing Information'!S26))),AND(NOT(ISBLANK('4. Staffing Information'!I26))),TRUE)","v":true},"HSDV14_16",{"$f":"IF(AND(NOT(ISBLANK('4. Staffing Information'!I27))),AND(NOT(ISBLANK('4. Staffing Information'!S27))),TRUE)","v":true},"HSDV13_17",{"$f":"IF(OR(AND(NOT(ISBLANK('4. Staffing Information'!I29))),AND(NOT(ISBLANK('4. Staffing Information'!J29)))),AND(NOT(ISBLANK('4. Staffing Information'!H29))),TRUE)","v":true},"HSDV11_19",{"$f":"IF(AND(NOT(ISBLANK('4. Staffing Information'!H30))),IF(OR(AND(NOT(ISBLANK('4. Staffing Information'!I30))),AND(NOT(ISBLANK('4. Staffing Information'!J30))),),TRUE,FALSE),TRUE)","v":true},"HSDV10_20",{"$f":"IF(AND(NOT(ISBLANK('3. Mileage and Transport'!#REF!)),IF('3. Mileage and Transport'!#REF!>=0,TRUE,FALSE)),TRUE,FALSE)","v":{"$error":"#REF!"}},"HSDV07_21","XXX"]
[null,null,{"$f":"IF(AND(NOT(ISBLANK('4. Staffing Information'!T21))),AND(NOT(ISBLANK('4. Staffing Information'!J21))),TRUE)","v":true},"HSDV16_13",{"$f":"IF(AND(NOT(ISBLANK('4. Staffing Information'!J26))),AND(NOT(ISBLANK('4. Staffing Information'!T26))),TRUE)","v":true},"HSDV15_16",{"$f":"IF(AND(NOT(ISBLANK('4. Staffing Information'!S27))),AND(NOT(ISBLANK('4. Staffing Information'!I27))),TRUE)","v":true},"HSDV14_17",{"$f":"IF(AND(NOT(ISBLANK('4. Staffing Information'!I28))),AND(NOT(ISBLANK('4. Staffing Information'!S28))),TRUE)","v":true},"HSDV13_18",{"$f":"IF(OR(AND(NOT(ISBLANK('4. Staffing Information'!I30))),AND(NOT(ISBLANK('4. Staffing Information'!J30)))),AND(NOT(ISBLANK('4. Staffing Information'!H30))),TRUE)","v":true},"HSDV11_20",{"$f":"IF(AND(NOT(ISBLANK('4. Staffing Information'!H31))),IF(OR(AND(NOT(ISBLANK('4. Staffing Information'!I31))),AND(NOT(ISBLANK('4. Staffing Information'!J31))),),TRUE,FALSE),TRUE)","v":true},"HSDV10_21",{"$f":"IF(AND(NOT(ISBLANK('3. Mileage and Transport'!#REF!)),IF('3. Mileage and Transport'!#REF!>=0,TRUE,FALSE)),TRUE,FALSE)","v":{"$error":"#REF!"}},"HSDV07_22","XXX"]
[null,null,{"$f":"IF(AND(NOT(ISBLANK('4. Staffing Information'!T26))),AND(NOT(ISBLANK('4. Staffing Information'!J26))),TRUE)","v":true},"HSDV16_16",{"$f":"IF(AND(NOT(ISBLANK('4. Staffing Information'!J27))),AND(NOT(ISBLANK('4. Staffing Information'!T27))),TRUE)","v":true},"HSDV15_17",{"$f":"IF(AND(NOT(ISBLANK('4. Staffing Information'!S28))),AND(NOT(ISBLANK('4. Staffing Information'!I28))),TRUE)","v":true},"HSDV14_18",{"$f":"IF(AND(NOT(ISBLANK('4. Staffing Information'!I29))),AND(NOT(ISBLANK('4. Staffing Information'!S29))),TRUE)","v":true},"HSDV13_19",{"$f":"IF(OR(AND(NOT(ISBLANK('4. Staffing Information'!I31))),AND(NOT(ISBLANK('4. Staffing Information'!J31)))),AND(NOT(ISBLANK('4. Staffing Information'!H31))),TRUE)","v":true},"HSDV11_21",{"$f":"IF(AND(NOT(ISBLANK('4. Staffing Information'!H32))),IF(OR(AND(NOT(ISBLANK('4. Staffing Information'!I32))),AND(NOT(ISBLANK('4. Staffing Information'!J32))),),TRUE,FALSE),TRUE)","v":true},"HSDV10_22",{"$f":"IF(AND(NOT(ISBLANK('3. Mileage and Transport'!#REF!)),IF('3. Mileage and Transport'!#REF!>=0,TRUE,FALSE)),TRUE,FALSE)","v":{"$error":"#REF!"}},"HSDV07_23","XXX"]
[null,null,{"$f":"IF(AND(NOT(ISBLANK('4. Staffing Information'!T27))),AND(NOT(ISBLANK('4. Staffing Information'!J27))),TRUE)","v":true},"HSDV16_17",{"$f":"IF(AND(NOT(ISBLANK('4. Staffing Information'!J28))),AND(NOT(ISBLANK('4. Staffing Information'!T28))),TRUE)","v":true},"HSDV15_18",{"$f":"IF(AND(NOT(ISBLANK('4. Staffing Information'!S29))),AND(NOT(ISBLANK('4. Staffing Information'!I29))),TRUE)","v":true},"HSDV14_19",{"$f":"IF(AND(NOT(ISBLANK('4. Staffing Information'!I30))),AND(NOT(ISBLANK('4. Staffing Information'!S30))),TRUE)","v":true},"HSDV13_20",{"$f":"IF(OR(AND(NOT(ISBLANK('4. Staffing Information'!I32))),AND(NOT(ISBLANK('4. Staffing Information'!J32)))),AND(NOT(ISBLANK('4. Staffing Information'!H32))),TRUE)","v":true},"HSDV11_22",{"$f":"IF(AND(NOT(ISBLANK('4. Staffing Information'!H33))),IF(OR(AND(NOT(ISBLANK('4. Staffing Information'!I33))),AND(NOT(ISBLANK('4. Staffing Information'!J33))),),TRUE,FALSE),TRUE)","v":true},"HSDV10_23",{"$f":"IF(AND(NOT(ISBLANK('3. Mileage and Transport'!#REF!)),IF('3. Mileage and Transport'!#REF!>=0,TRUE,FALSE)),TRUE,FALSE)","v":{"$error":"#REF!"}},"HSDV07_24","XXX"]
[null,null,{"$f":"IF(AND(NOT(ISBLANK('4. Staffing Information'!T28))),AND(NOT(ISBLANK('4. Staffing Information'!J28))),TRUE)","v":true},"HSDV16_18",{"$f":"IF(AND(NOT(ISBLANK('4. Staffing Information'!J29))),AND(NOT(ISBLANK('4. Staffing Information'!T29))),TRUE)","v":true},"HSDV15_19",{"$f":"IF(AND(NOT(ISBLANK('4. Staffing Information'!S30))),AND(NOT(ISBLANK('4. Staffing Information'!I30))),TRUE)","v":true},"HSDV14_20",{"$f":"IF(AND(NOT(ISBLANK('4. Staffing Information'!I31))),AND(NOT(ISBLANK('4. Staffing Information'!S31))),TRUE)","v":true},"HSDV13_21",{"$f":"IF(OR(AND(NOT(ISBLANK('4. Staffing Information'!I33))),AND(NOT(ISBLANK('4. Staffing Information'!J33)))),AND(NOT(ISBLANK('4. Staffing Information'!H33))),TRUE)","v":true},"HSDV11_23",{"$f":"IF(AND(NOT(ISBLANK('4. Staffing Information'!H34))),IF(OR(AND(NOT(ISBLANK('4. Staffing Information'!I34))),AND(NOT(ISBLANK('4. Staffing Information'!J34))),),TRUE,FALSE),TRUE)","v":true},"HSDV10_24",{"$f":"IF(AND(NOT(ISBLANK('3. Mileage and Transport'!#REF!)),IF('3. Mileage and Transport'!#REF!>=0,TRUE,FALSE)),TRUE,FALSE)","v":{"$error":"#REF!"}},"HSDV07_25","XXX"]
[null,null,{"$f":"IF(AND(NOT(ISBLANK('4. Staffing Information'!T29))),AND(NOT(ISBLANK('4. Staffing Information'!J29))),TRUE)","v":true},"HSDV16_19",{"$f":"IF(AND(NOT(ISBLANK('4. Staffing Information'!J30))),AND(NOT(ISBLANK('4. Staffing Information'!T30))),TRUE)","v":true},"HSDV15_20",{"$f":"IF(AND(NOT(ISBLANK('4. Staffing Information'!S31))),AND(NOT(ISBLANK('4. Staffing Information'!I31))),TRUE)","v":true},"HSDV14_21",{"$f":"IF(AND(NOT(ISBLANK('4. Staffing Information'!I32))),AND(NOT(ISBLANK('4. Staffing Information'!S32))),TRUE)","v":true},"HSDV13_22",{"$f":"IF(OR(AND(NOT(ISBLANK('4. Staffing Information'!I34))),AND(NOT(ISBLANK('4. Staffing Information'!J34)))),AND(NOT(ISBLANK('4. Staffing Information'!H34))),TRUE)","v":true},"HSDV11_24",{"$f":"IF(AND(NOT(ISBLANK('4. Staffing Information'!H35))),IF(OR(AND(NOT(ISBLANK('4. Staffing Information'!I35))),AND(NOT(ISBLANK('4. Staffing Information'!J35))),),TRUE,FALSE),TRUE)","v":true},"HSDV10_25",{"$f":"IF(AND(NOT(ISBLANK('3. Mileage and Transport'!#REF!)),IF('3. Mileage and Transport'!#REF!>=0,TRUE,FALSE)),TRUE,FALSE)","v":{"$error":"#REF!"}},"HSDV07_26","XXX"]
[null,null,{"$f":"IF(AND(NOT(ISBLANK('4. Staffing Information'!T30))),AND(NOT(ISBLANK('4. Staffing Information'!J30))),TRUE)","v":true},"HSDV16_20",{"$f":"IF(AND(NOT(ISBLANK('4. Staffing Information'!J31))),AND(NOT(ISBLANK('4. Staffing Information'!T31))),TRUE)","v":true},"HSDV15_21",{"$f":"IF(AND(NOT(ISBLANK('4. Staffing Information'!S32))),AND(NOT(ISBLANK('4. Staffing Information'!I32))),TRUE)","v":true},"HSDV14_22",{"$f":"IF(AND(NOT(ISBLANK('4. Staffing Information'!I33))),AND(NOT(ISBLANK('4. Staffing Information'!S33))),TRUE)","v":true},"HSDV13_23",{"$f":"IF(OR(AND(NOT(ISBLANK('4. Staffing Information'!I35))),AND(NOT(ISBLANK('4. Staffing Information'!J35)))),AND(NOT(ISBLANK('4. Staffing Information'!H35))),TRUE)","v":true},"HSDV11_25",{"$f":"IF(AND(NOT(ISBLANK('4. Staffing Information'!H36))),IF(OR(AND(NOT(ISBLANK('4. Staffing Information'!I36))),AND(NOT(ISBLANK('4. Staffing Information'!J36))),),TRUE,FALSE),TRUE)","v":true},"HSDV10_26",{"$f":"IF(AND(NOT(ISBLANK('3. Mileage and Transport'!#REF!)),IF('3. Mileage and Transport'!#REF!>=0,TRUE,FALSE)),TRUE,FALSE)","v":{"$error":"#REF!"}},"HSDV07_27","XXX"]
[null,null,{"$f":"IF(AND(NOT(ISBLANK('4. Staffing Information'!T31))),AND(NOT(ISBLANK('4. Staffing Information'!J31))),TRUE)","v":true},"HSDV16_21",{"$f":"IF(AND(NOT(ISBLANK('4. Staffing Information'!J32))),AND(NOT(ISBLANK('4. Staffing Information'!T32))),TRUE)","v":true},"HSDV15_22",{"$f":"IF(AND(NOT(ISBLANK('4. Staffing Information'!S33))),AND(NOT(ISBLANK('4. Staffing Information'!I33))),TRUE)","v":true},"HSDV14_23",{"$f":"IF(AND(NOT(ISBLANK('4. Staffing Information'!I34))),AND(NOT(ISBLANK('4. Staffing Information'!S34))),TRUE)","v":true},"HSDV13_24",{"$f":"IF(OR(AND(NOT(ISBLANK('4. Staffing Information'!I36))),AND(NOT(ISBLANK('4. Staffing Information'!J36)))),AND(NOT(ISBLANK('4. Staffing Information'!H36))),TRUE)","v":true},"HSDV11_26",{"$f":"IF(AND(NOT(ISBLANK('4. Staffing Information'!H37))),IF(OR(AND(NOT(ISBLANK('4. Staffing Information'!I37))),AND(NOT(ISBLANK('4. Staffing Information'!J37))),),TRUE,FALSE),TRUE)","v":true},"HSDV10_27",{"$f":"IF(AND(NOT(ISBLANK('3. Mileage and Transport'!#REF!)),IF('3. Mileage and Transport'!#REF!>=0,TRUE,FALSE)),TRUE,FALSE)","v":{"$error":"#REF!"}},"HSDV07_28","XXX"]
[null,null,{"$f":"IF(AND(NOT(ISBLANK('4. Staffing Information'!T32))),AND(NOT(ISBLANK('4. Staffing Information'!J32))),TRUE)","v":true},"HSDV16_22",{"$f":"IF(AND(NOT(ISBLANK('4. Staffing Information'!J33))),AND(NOT(ISBLANK('4. Staffing Information'!T33))),TRUE)","v":true},"HSDV15_23",{"$f":"IF(AND(NOT(ISBLANK('4. Staffing Information'!S34))),AND(NOT(ISBLANK('4. Staffing Information'!I34))),TRUE)","v":true},"HSDV14_24",{"$f":"IF(AND(NOT(ISBLANK('4. Staffing Information'!I35))),AND(NOT(ISBLANK('4. Staffing Information'!S35))),TRUE)","v":true},"HSDV13_25",{"$f":"IF(OR(AND(NOT(ISBLANK('4. Staffing Information'!I37))),AND(NOT(ISBLANK('4. Staffing Information'!J37)))),AND(NOT(ISBLANK('4. Staffing Information'!H37))),TRUE)","v":true},"HSDV11_27",{"$f":"IF(AND(NOT(ISBLANK('4. Staffing Information'!H38))),IF(OR(AND(NOT(ISBLANK('4. Staffing Information'!I38))),AND(NOT(ISBLANK('4. Staffing Information'!J38))),),TRUE,FALSE),TRUE)","v":true},"HSDV10_28",{"$f":"IF(AND(NOT(ISBLANK('3. Mileage and Transport'!#REF!)),IF('3. Mileage and Transport'!#REF!>=0,TRUE,FALSE)),TRUE,FALSE)","v":{"$error":"#REF!"}},"HSDV07_29","XXX"]
[null,null,{"$f":"IF(AND(NOT(ISBLANK('4. Staffing Information'!T33))),AND(NOT(ISBLANK('4. Staffing Information'!J33))),TRUE)","v":true},"HSDV16_23",{"$f":"IF(AND(NOT(ISBLANK('4. Staffing Information'!J34))),AND(NOT(ISBLANK('4. Staffing Information'!T34))),TRUE)","v":true},"HSDV15_24",{"$f":"IF(AND(NOT(ISBLANK('4. Staffing Information'!S35))),AND(NOT(ISBLANK('4. Staffing Information'!I35))),TRUE)","v":true},"HSDV14_25",{"$f":"IF(AND(NOT(ISBLANK('4. Staffing Information'!I36))),AND(NOT(ISBLANK('4. Staffing Information'!S36))),TRUE)","v":true},"HSDV13_26",{"$f":"IF(OR(AND(NOT(ISBLANK('4. Staffing Information'!I38))),AND(NOT(ISBLANK('4. Staffing Information'!J38)))),AND(NOT(ISBLANK('4. Staffing Information'!H38))),TRUE)","v":true},"HSDV11_28",{"$f":"IF(AND(NOT(ISBLANK('4. Staffing Information'!H39))),IF(OR(AND(NOT(ISBLANK('4. Staffing Information'!I39))),AND(NOT(ISBLANK('4. Staffing Information'!J39))),),TRUE,FALSE),TRUE)","v":true},"HSDV10_29",{"$f":"IF(AND(NOT(ISBLANK('3. Mileage and Transport'!#REF!)),IF('3. Mileage and Transport'!#REF!>=0,TRUE,FALSE)),TRUE,FALSE)","v":{"$error":"#REF!"}},"HSDV07_30","XXX"]
[null,null,{"$f":"IF(AND(NOT(ISBLANK('4. Staffing Information'!T34))),AND(NOT(ISBLANK('4. Staffing Information'!J34))),TRUE)","v":true},"HSDV16_24",{"$f":"IF(AND(NOT(ISBLANK('4. Staffing Information'!J35))),AND(NOT(ISBLANK('4. Staffing Information'!T35))),TRUE)","v":true},"HSDV15_25",{"$f":"IF(AND(NOT(ISBLANK('4. Staffing Information'!S36))),AND(NOT(ISBLANK('4. Staffing Information'!I36))),TRUE)","v":true},"HSDV14_26",{"$f":"IF(AND(NOT(ISBLANK('4. Staffing Information'!I37))),AND(NOT(ISBLANK('4. Staffing Information'!S37))),TRUE)","v":true},"HSDV13_27",{"$f":"IF(OR(AND(NOT(ISBLANK('4. Staffing Information'!I39))),AND(NOT(ISBLANK('4. Staffing Information'!J39)))),AND(NOT(ISBLANK('4. Staffing Information'!H39))),TRUE)","v":true},"HSDV11_29",{"$f":"IF(AND(NOT(ISBLANK('4. Staffing Information'!H40))),IF(OR(AND(NOT(ISBLANK('4. Staffing Information'!I40))),AND(NOT(ISBLANK('4. Staffing Information'!J40))),),TRUE,FALSE),TRUE)","v":true},"HSDV10_30",{"$f":"IF(AND(NOT(ISBLANK('3. Mileage and Transport'!#REF!)),IF('3. Mileage and Transport'!#REF!>=0,TRUE,FALSE)),TRUE,FALSE)","v":{"$error":"#REF!"}},"HSDV07_31","XXX"]
[null,null,{"$f":"IF(AND(NOT(ISBLANK('4. Staffing Information'!T35))),AND(NOT(ISBLANK('4. Staffing Information'!J35))),TRUE)","v":true},"HSDV16_25",{"$f":"IF(AND(NOT(ISBLANK('4. Staffing Information'!J36))),AND(NOT(ISBLANK('4. Staffing Information'!T36))),TRUE)","v":true},"HSDV15_26",{"$f":"IF(AND(NOT(ISBLANK('4. Staffing Information'!S37))),AND(NOT(ISBLANK('4. Staffing Information'!I37))),TRUE)","v":true},"HSDV14_27",{"$f":"IF(AND(NOT(ISBLANK('4. Staffing Information'!I38))),AND(NOT(ISBLANK('4. Staffing Information'!S38))),TRUE)","v":true},"HSDV13_28",{"$f":"IF(OR(AND(NOT(ISBLANK('4. Staffing Information'!I40))),AND(NOT(ISBLANK('4. Staffing Information'!J40)))),AND(NOT(ISBLANK('4. Staffing Information'!H40))),TRUE)","v":true},"HSDV11_30",{"$f":"IF(AND(NOT(ISBLANK('4. Staffing Information'!H41))),IF(OR(AND(NOT(ISBLANK('4. Staffing Information'!I41))),AND(NOT(ISBLANK('4. Staffing Information'!J41))),),TRUE,FALSE),TRUE)","v":true},"HSDV10_31",{"$f":"IF(AND(NOT(ISBLANK('3. Mileage and Transport'!#REF!)),IF('3. Mileage and Transport'!#REF!>=0,TRUE,FALSE)),TRUE,FALSE)","v":{"$error":"#REF!"}},"HSDV07_32","XXX"]
[null,null,{"$f":"IF(AND(NOT(ISBLANK('4. Staffing Information'!T36))),AND(NOT(ISBLANK('4. Staffing Information'!J36))),TRUE)","v":true},"HSDV16_26",{"$f":"IF(AND(NOT(ISBLANK('4. Staffing Information'!J37))),AND(NOT(ISBLANK('4. Staffing Information'!T37))),TRUE)","v":true},"HSDV15_27",{"$f":"IF(AND(NOT(ISBLANK('4. Staffing Information'!S38))),AND(NOT(ISBLANK('4. Staffing Information'!I38))),TRUE)","v":true},"HSDV14_28",{"$f":"IF(AND(NOT(ISBLANK('4. Staffing Information'!I39))),AND(NOT(ISBLANK('4. Staffing Information'!S39))),TRUE)","v":true},"HSDV13_29",{"$f":"IF(OR(AND(NOT(ISBLANK('4. Staffing Information'!I41))),AND(NOT(ISBLANK('4. Staffing Information'!J41)))),AND(NOT(ISBLANK('4. Staffing Information'!H41))),TRUE)","v":true},"HSDV11_31",{"$f":"IF(AND(NOT(ISBLANK('4. Staffing Information'!H42))),IF(OR(AND(NOT(ISBLANK('4. Staffing Information'!I42))),AND(NOT(ISBLANK('4. Staffing Information'!J42))),),TRUE,FALSE),TRUE)","v":true},"HSDV10_32",{"$f":"IF(AND(NOT(ISBLANK('3. Mileage and Transport'!#REF!)),IF('3. Mileage and Transport'!#REF!>=0,TRUE,FALSE)),TRUE,FALSE)","v":{"$error":"#REF!"}},"HSDV07_33","XXX"]
[null,null,{"$f":"IF(AND(NOT(ISBLANK('4. Staffing Information'!T37))),AND(NOT(ISBLANK('4. Staffing Information'!J37))),TRUE)","v":true},"HSDV16_27",{"$f":"IF(AND(NOT(ISBLANK('4. Staffing Information'!J38))),AND(NOT(ISBLANK('4. Staffing Information'!T38))),TRUE)","v":true},"HSDV15_28",{"$f":"IF(AND(NOT(ISBLANK('4. Staffing Information'!S39))),AND(NOT(ISBLANK('4. Staffing Information'!I39))),TRUE)","v":true},"HSDV14_29",{"$f":"IF(AND(NOT(ISBLANK('4. Staffing Information'!I40))),AND(NOT(ISBLANK('4. Staffing Information'!S40))),TRUE)","v":true},"HSDV13_30",{"$f":"IF(OR(AND(NOT(ISBLANK('4. Staffing Information'!I42))),AND(NOT(ISBLANK('4. Staffing Information'!J42)))),AND(NOT(ISBLANK('4. Staffing Information'!H42))),TRUE)","v":true},"HSDV11_32",{"$f":"IF(AND(NOT(ISBLANK('4. Staffing Information'!H43))),IF(OR(AND(NOT(ISBLANK('4. Staffing Information'!I43))),AND(NOT(ISBLANK('4. Staffing Information'!J43))),),TRUE,FALSE),TRUE)","v":true},"HSDV10_33",{"$f":"IF(AND(NOT(ISBLANK('3. Mileage and Transport'!#REF!)),IF('3. Mileage and Transport'!#REF!>=0,TRUE,FALSE)),TRUE,FALSE)","v":{"$error":"#REF!"}},"HSDV07_34","XXX"]
[null,null,{"$f":"IF(AND(NOT(ISBLANK('4. Staffing Information'!T38))),AND(NOT(ISBLANK('4. Staffing Information'!J38))),TRUE)","v":true},"HSDV16_28",{"$f":"IF(AND(NOT(ISBLANK('4. Staffing Information'!J39))),AND(NOT(ISBLANK('4. Staffing Information'!T39))),TRUE)","v":true},"HSDV15_29",{"$f":"IF(AND(NOT(ISBLANK('4. Staffing Information'!S40))),AND(NOT(ISBLANK('4. Staffing Information'!I40))),TRUE)","v":true},"HSDV14_30",{"$f":"IF(AND(NOT(ISBLANK('4. Staffing Information'!I41))),AND(NOT(ISBLANK('4. Staffing Information'!S41))),TRUE)","v":true},"HSDV13_31",{"$f":"IF(OR(AND(NOT(ISBLANK('4. Staffing Information'!I43))),AND(NOT(ISBLANK('4. Staffing Information'!J43)))),AND(NOT(ISBLANK('4. Staffing Information'!H43))),TRUE)","v":true},"HSDV11_33",{"$f":"IF(AND(NOT(ISBLANK('4. Staffing Information'!H44))),IF(OR(AND(NOT(ISBLANK('4. Staffing Information'!I44))),AND(NOT(ISBLANK('4. Staffing Information'!J44))),),TRUE,FALSE),TRUE)","v":true},"HSDV10_34"]
[null,null,{"$f":"IF(AND(NOT(ISBLANK('4. Staffing Information'!T39))),AND(NOT(ISBLANK('4. Staffing Information'!J39))),TRUE)","v":true},"HSDV16_29",{"$f":"IF(AND(NOT(ISBLANK('4. Staffing Information'!J40))),AND(NOT(ISBLANK('4. Staffing Information'!T40))),TRUE)","v":true},"HSDV15_30",{"$f":"IF(AND(NOT(ISBLANK('4. Staffing Information'!S41))),AND(NOT(ISBLANK('4. Staffing Information'!I41))),TRUE)","v":true},"HSDV14_31",{"$f":"IF(AND(NOT(ISBLANK('4. Staffing Information'!I42))),AND(NOT(ISBLANK('4. Staffing Information'!S42))),TRUE)","v":true},"HSDV13_32",{"$f":"IF(OR(AND(NOT(ISBLANK('4. Staffing Information'!I44))),AND(NOT(ISBLANK('4. Staffing Information'!J44)))),AND(NOT(ISBLANK('4. Staffing Information'!H44))),TRUE)","v":true},"HSDV11_34",{"$f":"IF(AND(NOT(ISBLANK('4. Staffing Information'!H45))),IF(OR(AND(NOT(ISBLANK('4. Staffing Information'!I45))),AND(NOT(ISBLANK('4. Staffing Information'!J45))),),TRUE,FALSE),TRUE)","v":true},"HSDV10_35"]
[null,null,{"$f":"IF(AND(NOT(ISBLANK('4. Staffing Information'!T40))),AND(NOT(ISBLANK('4. Staffing Information'!J40))),TRUE)","v":true},"HSDV16_30",{"$f":"IF(AND(NOT(ISBLANK('4. Staffing Information'!J41))),AND(NOT(ISBLANK('4. Staffing Information'!T41))),TRUE)","v":true},"HSDV15_31",{"$f":"IF(AND(NOT(ISBLANK('4. Staffing Information'!S42))),AND(NOT(ISBLANK('4. Staffing Information'!I42))),TRUE)","v":true},"HSDV14_32",{"$f":"IF(AND(NOT(ISBLANK('4. Staffing Information'!I43))),AND(NOT(ISBLANK('4. Staffing Information'!S43))),TRUE)","v":true},"HSDV13_33",{"$f":"IF(OR(AND(NOT(ISBLANK('4. Staffing Information'!I45))),AND(NOT(ISBLANK('4. Staffing Information'!J45)))),AND(NOT(ISBLANK('4. Staffing Information'!H45))),TRUE)","v":true},"HSDV11_35",{"$f":"IF(AND(NOT(ISBLANK('4. Staffing Information'!H46))),IF(OR(AND(NOT(ISBLANK('4. Staffing Information'!I46))),AND(NOT(ISBLANK('4. Staffing Information'!J46))),),TRUE,FALSE),TRUE)","v":true},"HSDV10_36"]
[null,null,{"$f":"IF(AND(NOT(ISBLANK('4. Staffing Information'!T41))),AND(NOT(ISBLANK('4. Staffing Information'!J41))),TRUE)","v":true},"HSDV16_31",{"$f":"IF(AND(NOT(ISBLANK('4. Staffing Information'!J42))),AND(NOT(ISBLANK('4. Staffing Information'!T42))),TRUE)","v":true},"HSDV15_32",{"$f":"IF(AND(NOT(ISBLANK('4. Staffing Information'!S43))),AND(NOT(ISBLANK('4. Staffing Information'!I43))),TRUE)","v":true},"HSDV14_33",{"$f":"IF(AND(NOT(ISBLANK('4. Staffing Information'!I44))),AND(NOT(ISBLANK('4. Staffing Information'!S44))),TRUE)","v":true},"HSDV13_34",{"$f":"IF(OR(AND(NOT(ISBLANK('4. Staffing Information'!I46))),AND(NOT(ISBLANK('4. Staffing Information'!J46)))),AND(NOT(ISBLANK('4. Staffing Information'!H46))),TRUE)","v":true},"HSDV11_36",{"$f":"IF(AND(NOT(ISBLANK('4. Staffing Information'!H47))),IF(OR(AND(NOT(ISBLANK('4. Staffing Information'!I47))),AND(NOT(ISBLANK('4. Staffing Information'!J47))),),TRUE,FALSE),TRUE)","v":true},"HSDV10_37"]
[null,null,{"$f":"IF(AND(NOT(ISBLANK('4. Staffing Information'!T42))),AND(NOT(ISBLANK('4. Staffing Information'!J42))),TRUE)","v":true},"HSDV16_32",{"$f":"IF(AND(NOT(ISBLANK('4. Staffing Information'!J43))),AND(NOT(ISBLANK('4. Staffing Information'!T43))),TRUE)","v":true},"HSDV15_33",{"$f":"IF(AND(NOT(ISBLANK('4. Staffing Information'!S44))),AND(NOT(ISBLANK('4. Staffing Information'!I44))),TRUE)","v":true},"HSDV14_34",{"$f":"IF(AND(NOT(ISBLANK('4. Staffing Information'!I45))),AND(NOT(ISBLANK('4. Staffing Information'!S45))),TRUE)","v":true},"HSDV13_35",{"$f":"IF(OR(AND(NOT(ISBLANK('4. Staffing Information'!I47))),AND(NOT(ISBLANK('4. Staffing Information'!J47)))),AND(NOT(ISBLANK('4. Staffing Information'!H47))),TRUE)","v":true},"HSDV11_37",{"$f":"IF(AND(NOT(ISBLANK('4. Staffing Information'!H48))),IF(OR(AND(NOT(ISBLANK('4. Staffing Information'!I48))),AND(NOT(ISBLANK('4. Staffing Information'!J48))),),TRUE,FALSE),TRUE)","v":true},"HSDV10_38"]
[null,null,{"$f":"IF(AND(NOT(ISBLANK('4. Staffing Information'!T43))),AND(NOT(ISBLANK('4. Staffing Information'!J43))),TRUE)","v":true},"HSDV16_33",{"$f":"IF(AND(NOT(ISBLANK('4. Staffing Information'!J44))),AND(NOT(ISBLANK('4. Staffing Information'!T44))),TRUE)","v":true},"HSDV15_34",{"$f":"IF(AND(NOT(ISBLANK('4. Staffing Information'!S45))),AND(NOT(ISBLANK('4. Staffing Information'!I45))),TRUE)","v":true},"HSDV14_35",{"$f":"IF(AND(NOT(ISBLANK('4. Staffing Information'!I46))),AND(NOT(ISBLANK('4. Staffing Information'!S46))),TRUE)","v":true},"HSDV13_36",{"$f":"IF(OR(AND(NOT(ISBLANK('4. Staffing Information'!I48))),AND(NOT(ISBLANK('4. Staffing Information'!J48)))),AND(NOT(ISBLANK('4. Staffing Information'!H48))),TRUE)","v":true},"HSDV11_38",{"$f":"IF(AND(NOT(ISBLANK('4. Staffing Information'!H49))),IF(OR(AND(NOT(ISBLANK('4. Staffing Information'!I49))),AND(NOT(ISBLANK('4. Staffing Information'!J49))),),TRUE,FALSE),TRUE)","v":true},"HSDV10_39"]
[null,null,{"$f":"IF(AND(NOT(ISBLANK('4. Staffing Information'!T44))),AND(NOT(ISBLANK('4. Staffing Information'!J44))),TRUE)","v":true},"HSDV16_34",{"$f":"IF(AND(NOT(ISBLANK('4. Staffing Information'!J45))),AND(NOT(ISBLANK('4. Staffing Information'!T45))),TRUE)","v":true},"HSDV15_35",{"$f":"IF(AND(NOT(ISBLANK('4. Staffing Information'!S46))),AND(NOT(ISBLANK('4. Staffing Information'!I46))),TRUE)","v":true},"HSDV14_36",{"$f":"IF(AND(NOT(ISBLANK('4. Staffing Information'!I47))),AND(NOT(ISBLANK('4. Staffing Information'!S47))),TRUE)","v":true},"HSDV13_37",{"$f":"IF(OR(AND(NOT(ISBLANK('4. Staffing Information'!I49))),AND(NOT(ISBLANK('4. Staffing Information'!J49)))),AND(NOT(ISBLANK('4. Staffing Information'!H49))),TRUE)","v":true},"HSDV11_39",{"$f":"IF(AND(NOT(ISBLANK('4. Staffing Information'!H50))),IF(OR(AND(NOT(ISBLANK('4. Staffing Information'!I50))),AND(NOT(ISBLANK('4. Staffing Information'!J50))),),TRUE,FALSE),TRUE)","v":true},"HSDV10_40"]
[null,null,{"$f":"IF(AND(NOT(ISBLANK('4. Staffing Information'!T45))),AND(NOT(ISBLANK('4. Staffing Information'!J45))),TRUE)","v":true},"HSDV16_35",{"$f":"IF(AND(NOT(ISBLANK('4. Staffing Information'!J46))),AND(NOT(ISBLANK('4. Staffing Information'!T46))),TRUE)","v":true},"HSDV15_36",{"$f":"IF(AND(NOT(ISBLANK('4. Staffing Information'!S47))),AND(NOT(ISBLANK('4. Staffing Information'!I47))),TRUE)","v":true},"HSDV14_37",{"$f":"IF(AND(NOT(ISBLANK('4. Staffing Information'!I48))),AND(NOT(ISBLANK('4. Staffing Information'!S48))),TRUE)","v":true},"HSDV13_38",{"$f":"IF(OR(AND(NOT(ISBLANK('4. Staffing Information'!I50))),AND(NOT(ISBLANK('4. Staffing Information'!J50)))),AND(NOT(ISBLANK('4. Staffing Information'!H50))),TRUE)","v":true},"HSDV11_40"]
[null,null,{"$f":"IF(AND(NOT(ISBLANK('4. Staffing Information'!T46))),AND(NOT(ISBLANK('4. Staffing Information'!J46))),TRUE)","v":true},"HSDV16_36",{"$f":"IF(AND(NOT(ISBLANK('4. Staffing Information'!J47))),AND(NOT(ISBLANK('4. Staffing Information'!T47))),TRUE)","v":true},"HSDV15_37",{"$f":"IF(AND(NOT(ISBLANK('4. Staffing Information'!S48))),AND(NOT(ISBLANK('4. Staffing Information'!I48))),TRUE)","v":true},"HSDV14_38",{"$f":"IF(AND(NOT(ISBLANK('4. Staffing Information'!I49))),AND(NOT(ISBLANK('4. Staffing Information'!S49))),TRUE)","v":true},"HSDV13_39"]
[null,null,{"$f":"IF(AND(NOT(ISBLANK('4. Staffing Information'!T47))),AND(NOT(ISBLANK('4. Staffing Information'!J47))),TRUE)","v":true},"HSDV16_37",{"$f":"IF(AND(NOT(ISBLANK('4. Staffing Information'!J48))),AND(NOT(ISBLANK('4. Staffing Information'!T48))),TRUE)","v":true},"HSDV15_38",{"$f":"IF(AND(NOT(ISBLANK('4. Staffing Information'!S49))),AND(NOT(ISBLANK('4. Staffing Information'!I49))),TRUE)","v":true},"HSDV14_39",{"$f":"IF(AND(NOT(ISBLANK('4. Staffing Information'!I50))),AND(NOT(ISBLANK('4. Staffing Information'!S50))),TRUE)","v":true},"HSDV13_40"]
[null,null,{"$f":"IF(AND(NOT(ISBLANK('4. Staffing Information'!T48))),AND(NOT(ISBLANK('4. Staffing Information'!J48))),TRUE)","v":true},"HSDV16_38",{"$f":"IF(AND(NOT(ISBLANK('4. Staffing Information'!J49))),AND(NOT(ISBLANK('4. Staffing Information'!T49))),TRUE)","v":true},"HSDV15_39",{"$f":"IF(AND(NOT(ISBLANK('4. Staffing Information'!S50))),AND(NOT(ISBLANK('4. Staffing Information'!I50))),TRUE)","v":true},"HSDV14_40"]
[null,null,{"$f":"IF(AND(NOT(ISBLANK('4. Staffing Information'!T49))),AND(NOT(ISBLANK('4. Staffing Information'!J49))),TRUE)","v":true},"HSDV16_39",{"$f":"IF(AND(NOT(ISBLANK('4. Staffing Information'!J50))),AND(NOT(ISBLANK('4. Staffing Information'!T50))),TRUE)","v":true},"HSDV15_40"]
[null,null,{"$f":"IF(AND(NOT(ISBLANK('4. Staffing Information'!T50))),AND(NOT(ISBLANK('4. Staffing Information'!J50))),TRUE)","v":true},"HSDV16_40"]
[{"$f":"IF(SUM('4. Staffing Information'!R24,'4. Staffing Information'!U23,'4. Staffing Information'!V23)='4. Staffing Information'!F24,TRUE,FALSE)","v":true},"HSDV17"]
[{"$f":"IF(AND(NOT(ISBLANK(#REF!)),IF(#REF!>0,TRUE,FALSE)),AND(NOT(ISBLANK(#REF!)),IF(#REF!>0,TRUE,FALSE)),TRUE)","v":{"$error":"#REF!"}},"HSDV18",null,null,null,null,null,null,{"$f":"IF(AND(NOT(ISBLANK('3. Mileage and Transport'!#REF!)),IF('3. Mileage and Transport'!#REF!>0,TRUE,FALSE)),TRUE,FALSE)","v":{"$error":"#REF!"}},"HSDV21_1"]
[{"$f":"IF(AND(NOT(ISBLANK(#REF!)),NOT(ISBLANK(#REF!)),NOT(ISBLANK(#REF!))),TRUE,FALSE)","v":true},"HSDV19",null,null,null,null,null,null,{"$f":"IF(AND(NOT(ISBLANK('3. Mileage and Transport'!D8)),IF('3. Mileage and Transport'!D8>0,TRUE,FALSE)),TRUE,FALSE)","v":false},"HSDV21_2",{"$f":"IF(AND(NOT(ISBLANK('3. Mileage and Transport'!D15)),IF('3. Mileage and Transport'!D15>0,TRUE,FALSE)),TRUE,FALSE)","v":false},"HSDV22_1"]
[{"$f":"IF(AND(NOT(ISBLANK(#REF!)),IF(#REF!>0,TRUE,FALSE)),AND(NOT(ISBLANK(#REF!)),IF(#REF!>0,TRUE,FALSE)),TRUE)","v":{"$error":"#REF!"}},"HSDV20",null,null,null,null,null,null,{"$f":"IF(AND(NOT(ISBLANK('3. Mileage and Transport'!D9)),IF('3. Mileage and Transport'!D9>0,TRUE,FALSE)),TRUE,FALSE)","v":false},"HSDV21_3",{"$f":"IF(AND(NOT(ISBLANK('3. Mileage and Transport'!D16)),IF('3. Mileage and Transport'!D16>0,TRUE,FALSE)),TRUE,FALSE)","v":false},"HSDV22_2",{"$f":"IF(LegalRelationship= \"Select Legal Relationship:\",TRUE,FALSE)","v":{"$error":"#NAME?"}},"HSDV23_1"]
[{"$f":"IF(OR(HSDV21_1,HSDV21_2,HSDV21_3,HSDV21_4),AND(NOT(ISBLANK('3. Mileage and Transport'!D12)),IF('3. Mileage and Transport'!D12>0,TRUE,FALSE)),TRUE)","v":{"$error":"#REF!"}},"HSDV21","–","–","–","–","–","––––––––>",{"$f":"IF(AND(NOT(ISBLANK('3. Mileage and Transport'!D11)),IF('3. Mileage and Transport'!D11>0,TRUE,FALSE)),TRUE,FALSE)","v":false},"HSDV21_4",{"$f":"IF(AND(NOT(ISBLANK('3. Mileage and Transport'!D17)),IF('3. Mileage and Transport'!D17>0,TRUE,FALSE)),TRUE,FALSE)","v":false},"HSDV22_3",{"$f":"IF(FinancialRelationship= \"Select Financial Relationship:\",TRUE,FALSE)","v":{"$error":"#NAME?"}},"HSDV23_2"]
[{"$f":"IF(OR(HSDV22_1,HSDV22_2,HSDV22_3,HSDV22_4),AND(NOT(ISBLANK('3. Mileage and Transport'!F20)),IF('3. Mileage and Transport'!F20>0,TRUE,FALSE)),TRUE)","v":true},"HSDV22","–","–","–","–","–","–","–","––––––––>",{"$f":"IF(AND(NOT(ISBLANK('3. Mileage and Transport'!D18)),IF('3. Mileage and Transport'!D18>0,TRUE,FALSE)),TRUE,FALSE)","v":false},"HSDV22_4",{"$f":"IF(ProgramClientType= \"Select Program Type(s)/Client Types:\",TRUE,FALSE)","v":{"$error":"#NAME?"}},"HSDV23_3"]
[{"$f":"NOT(OR(HSDV23_1,HSDV23_2,HSDV23_3,HSDV23_4))","v":{"$error":"#NAME?"}},"HSDV23","–","–","–","–","–","–","–","–","–","––––––––>",{"$f":"IF(OtherCostReports= \"Select Other Cost Reports:\",TRUE,FALSE)","v":{"$error":"#NAME?"}},"HSDV23_4"]
[{"$f":"AND(HSDV01,HSDV02,HSDV03,HSDV04,HSDV05,HSDV06,HSDV07,HSDV08,HSDV10,HSDV11,HSDV12,HSDV13,HSDV14,HSDV15,HSDV16,HSDV17,HSDV18,HSDV19)","v":{"$error":"#NAME?"}},"vHSDVPassed"]
[{"$f":"AND(IF(#REF!=NAR,TRUE,FALSE),IF(#REF!=NAR,TRUE,FALSE),IF(#REF!=NAR,TRUE,FALSE),IF(#REF!=NAR,TRUE,FALSE),IF(#REF!=NAR,TRUE,FALSE),IF(#REF!=NAR,TRUE,FALSE),IF(#REF!=NAR,TRUE,FALSE),IF(#REF!=NAR,TRUE,FALSE),IF(#REF!=NAR,TRUE,FALSE),IF(#REF!=NAR,TRUE,FALSE),IF(#REF!=NAR,TRUE,FALSE),IF(#REF!=NAR,TRUE,FALSE))","v":{"$error":"#REF!"}},"AoRFields"]
[{"$f":"IF(AND(cfProviderSelected),TRUE,FALSE)","v":false},"vRequiredFieldsSelected"]
[{"$f":"OrgID&\"_\"&ProviderName&\"_AMBCRFY\"&RIGHT(YEAR(FiscalYear),2)&\".xlsm\"","v":{"$error":"#N/A"}},"vFileName"]
[null,"=IF('[ADHCRabMGC-0004.xlsm]1. Agency Information'!C6='[ADHCRabMGC-0004.xlsm]1. Agency Information'!B84,'[ADHCRabMGC-0004.xlsm]1. Agency Information'!B85,'[ADHCRabMGC-0004.xlsm]1. Agency Information'!C6)"]
[{"$f":"AND(IF('10. Accuracy of Report'!E23=\"No Action Required\", TRUE, FALSE),IF('10. Accuracy of Report'!E24=\"No Action Required\", TRUE, FALSE), IF('10. Accuracy of Report'!E25=\"No Action Required\", TRUE, FALSE), IF('10. Accuracy of Report'!E26=\"No Action Required\", TRUE, FALSE),IF('10. Accuracy of Report'!E27=\"No Action Required\", TRUE, FALSE),IF('10. Accuracy of Report'!E28=\"No Action Required\", TRUE, FALSE),IF('10. Accuracy of Report'!E29=\"No Action Required\", TRUE, FALSE),IF('10. Accuracy of Report'!E30=\"No Action Required\", TRUE, FALSE),IF('10. Accuracy of Report'!E31=\"No Action Required\", TRUE, FALSE),IF('10. Accuracy of Report'!E31=\"No Action Required\", TRUE, FALSE),IF('10. Accuracy of Report'!E32=\"No Action Required\", TRUE, FALSE),IF('10. Accuracy of Report'!E33=\"No Action Required\", TRUE, FALSE),IF('10. Accuracy of Report'!E34=\"No Action Required\", TRUE, FALSE),IF('10. Accuracy of Report'!E35=\"No Action Required\", TRUE, FALSE),IF('10. Accuracy of Report'!E36=\"No Action Required\", TRUE, FALSE),IF('10. Accuracy of Report'!E37=\"No Action Required\", TRUE, FALSE),IF('10. Accuracy of Report'!E38=\"No Action Required\", TRUE, FALSE),IF('10. Accuracy of Report'!E39=\"No Action Required\", TRUE, FALSE),IF('10. Accuracy of Report'!E40=\"No Action Required\", TRUE, FALSE))","v":false},"vRequiredFields"]

{"sheet":"Raw Data for Amb","index":14,"n_rows":4,"n_cols":1036,"rows_kept":4,"cut":false,"hidden":true,"merged":[]}
[null,"Tab 1: Agency Information","Tab 1: Agency Information","Tab 1: Agency Information","Tab 1: Agency Information","Tab 1: Agency Information","Tab 1: Agency Information","Tab 1: Agency Information","Tab 1: Agency Information","Tab 1: Agency Information","Tab 1: Agency Information","Tab 1: Agency Information","Tab 1: Agency Information","Tab 1: Agency Information","Tab 1: Agency Information","Tab 1: Agency Information","Tab 1: Agency Information","Tab 1: Agency Information","Tab 1: Agency Information","Tab 1: Agency Information","Tab 1: Agency Information","Tab 1: Agency Information","Tab 1: Agency Information","Tab 1: Agency Information","Tab 1: Agency Information","Tab 2: General Information","Tab 2: General Information","Tab 2: General Information","Tab 2: General Information","Tab 2: General Information","Tab 2: General Information","Tab 2: General Information","Tab 2: General Information","Tab 2: General Information","Tab 2: General Information","Tab 2: General Information","Tab 2: General Information","Tab 2: General Information","Tab 2: General Information","Tab 2: General Information","Tab 2: General Information","Tab 2: General Information","Tab 2: General Information","Tab 2: General Information","Tab 2: General Information","Tab 2: General Information","Tab 2: General Information","Tab 2: General Information","Tab 2: General Information","Tab 2: General Information","Tab 2: General Information","Tab 2: General Information","Tab 2: General Information","Tab 2: General Information","Tab 2: General Information","Tab 2: General Information","Tab 2: General Information","Tab 2: General Information","Tab 3: Mileage and Transport","Tab 3: Mileage and Transport","Tab 3: Mileage and Transport","Tab 3: Mileage and Transport","Tab 3: Mileage and Transport","Tab 3: Mileage and Transport","Tab 3: Mileage and Transport","Tab 3: Mileage and Transport","Tab 3: Mileage and Transport","Tab 3: Mileage and Transport","Tab 3: Mileage and Transport","Tab 3: Mileage and Transport","Tab 3: Mileage and Transport","Tab 3: Mileage and Transport","Tab 3: Mileage and Transport","Tab 3: Mileage and Transport","Tab 3: Mileage and Transport","Tab 3: Mileage and Transport","Tab 3: Mileage and Transport","Tab 3: Mileage and Transport","Tab 3: Mileage and Transport","Tab 3: Mileage and Transport","Tab 3: Mileage and Transport","Tab 4: Staffing Information","Tab 4: Staffing Information","Tab 4: Staffing Information","Tab 4: Staffing Information","Tab 4: Staffing Information","Tab 4: Staffing Information","Tab 4: Staffing Information","Tab 4: Staffing Information","Tab 4: Staffing Information","Tab 4: Staffing Information","Tab 4: Staffing Information","Tab 4: Staffing Information","Tab 4: Staffing Information","Tab 4: Staffing Information","Tab 4: Staffing Information","Tab 4: Staffing Information","Tab 4: Staffing Information","Tab 4: Staffing Information","Tab 4: Staffing Information","Tab 4: Staffing Information","Tab 4: Staffing Information","Tab 4: Staffing Information","Tab 4: Staffing Information","Tab 4: Staffing Information","Tab 4: Staffing Information","Tab 4: Staffing Information","Tab 4: Staffing Information","Tab 4: Staffing Information","Tab 4: Staffing Information","Tab 4: Staffing Information","Tab 4: Staffing Information","Tab 4: Staffing Information","Tab 4: Staffing Information","Tab 4: Staffing Information","Tab 4: Staffing Information","Tab 4: Staffing Information","Tab 4: Staffing Information","Tab 4: Staffing Information","Tab 4: Staffing Information","Tab 4: Staffing Information","Tab 4: Staffing Information","Tab 4: Staffing Information","Tab 4: Staffing Information","Tab 4: Staffing Information","Tab 4: Staffing Information","Tab 4: Staffing Information","Tab 4: Staffing Information","Tab 4: Staffing Information","Tab 4: Staffing Information","Tab 4: Staffing Information","Tab 4: Staffing Information","Tab 4: Staffing Information","Tab 4: Staffing Information","Tab 4: Staffing Information","Tab 4: Staffing Information","Tab 4: Staffing Information","Tab 4: Staffing Information","Tab 4: Staffing Information","Tab 4: Staffing Information","Tab 4: Staffing Information","Tab 4: Staffing Information","Tab 4: Staffing Information","Tab 4: Staffing Information","Tab 4: Staffing Information","Tab 4: Staffing Information","Tab 4: Staffing Information","Tab 4: Staffing Information","Tab 4: Staffing Information","Tab 4: Staffing Information","Tab 4: Staffing Information","Tab 4: Staffing Information","Tab 4: Staffing Information","Tab 4: Staffing Information","Tab 4: Staffing Information","Tab 4: Staffing Information","Tab 4: Staffing Information","Tab 4: Staffing Information","Tab 4: Staffing Information","Tab 4: Staffing Information","Tab 4: Staffing Information","Tab 4: Staffing Information","Tab 4: Staffing Information","Tab 4: Staffing Information","Tab 4: Staffing Information","Tab 4: Staffing Information","Tab 4: Staffing Information","Tab 4: Staffing Information","Tab 4: Staffing Information","Tab 4: Staffing Information","Tab 4: Staffing Information","Tab 4: Staffing Information","Tab 4: Staffing Information","Tab 4: Staffing Information","Tab 4: Staffing Information","Tab 4: Staffing Information","Tab 4: Staffing Information","Tab 4: Staffing Information","Tab 4: Staffing Information","Tab 4: Staffing Information","Tab 4: Staffing Information","Tab 4: Staffing Information","Tab 4: Staffing Information","Tab 4: Staffing Information","Tab 4: Staffing Information","Tab 4: Staffing Information","Tab 4: Staffing Information","Tab 4: Staffing Information","Tab 4: Staffing Information","Tab 4: Staffing Information","Tab 4: Staffing Information","Tab 4: Staffing Information","Tab 4: Staffing Information","Tab 4: Staffing Information","Tab 4: Staffing Information","Tab 4: Staffing Information","Tab 4: Staffing Information","Tab 4: Staffing Information","Tab 4: Staffing Information","Tab 4: Staffing Information","Tab 4: Staffing Information","Tab 4: Staffing Information","Tab 4: Staffing Information","Tab 4: Staffing Information","Tab 4: Staffing Information","Tab 4: Staffing Information","Tab 4: Staffing Information","Tab 4: Staffing Information","Tab 4: Staffing Information","Tab 4: Staffing Information","Tab 4: Staffing Information","Tab 4: Staffing Information","Tab 4: Staffing Information","Tab 4: Staffing Information","Tab 4: Staffing Information","Tab 4: Staffing Information","Tab 4: Staffing Information","Tab 4: Staffing Information","Tab 4: Staffing Information","Tab 4: Staffing Information","Tab 4: Staffing Information","Tab 4: Staffing Information","Tab 4: Staffing Information","Tab 4: Staffing Information","Tab 4: Staffing Information","Tab 4: Staffing Information","Tab 4: Staffing Information","Tab 4: Staffing Information","Tab 4: Staffing Information","Tab 4: Staffing Information","Tab 4: Staffing Information","Tab 4: Staffing Information","Tab 4: Staffing Information","Tab 4: Staffing Information","Tab 4: Staffing Information","Tab 4: Staffing Information","Tab 4: Staffing Information","Tab 4: Staffing Information","Tab 4: Staffing Information","Tab 4: Staffing Information","Tab 4: Staffing Information","Tab 4: Staffing Information","Tab 4: Staffing Information","Tab 4: Staffing Information","Tab 4: Staffing Information","Tab 4: Staffing Information","Tab 4: Staffing Information","Tab 4: Staffing Information","Tab 4: Staffing Information","Tab 4: Staffing Information","Tab 4: Staffing Information","Tab 4: Staffing Information","Tab 4: Staffing Information","Tab 4: Staffing Information","Tab 4: Staffing Information","Tab 4: Staffing Information","Tab 4: Staffing Information","Tab 4: Staffing Information","Tab 4: Staffing Information","Tab 4: Staffing Information","Tab 4: Staffing Information","Tab 4: Staffing Information","Tab 4: Staffing Information","Tab 4: Staffing Information","Tab 4: Staffing Information","Tab 4: Staffing Information","Tab 4: Staffing Information","Tab 4: Staffing Information","Tab 4: Staffing Information","Tab 4: Staffing Information","Tab 4: Staffing Information","Tab 4: Staffing Information","Tab 4: Staffing Information","Tab 4: Staffing Information","Tab 4: Staffing Information","Tab 4: Staffing Information","Tab 4: Staffing Information","Tab 4: Staffing Information","Tab 4: Staffing Information","Tab 4: Staffing Information","Tab 4: Staffing Information","Tab 4: Staffing Information","Tab 4: Staffing Information","Tab 4: Staffing Information","Tab 4: Staffing Information","Tab 4: Staffing Information","Tab 4: Staffing Information","Tab 4: Staffing Information","Tab 4: Staffing Information","Tab 4: Staffing Information","Tab 4: Staffing Information","Tab 4: Staffing Information","Tab 4: Staffing Information","Tab 4: Staffing Information","Tab 4: Staffing Information","Tab 4: Staffing Information","Tab 4: Staffing Information","Tab 4: Staffing Information","Tab 4: Staffing Information","Tab 4: Staffing Information","Tab 4: Staffing Information","Tab 4: Staffing Information","Tab 4: Staffing Information","Tab 4: Staffing Information","Tab 4: Staffing Information","Tab 4: Staffing Information","Tab 4: Staffing Information","Tab 4: Staffing Information","Tab 4: Staffing Information","Tab 4: Staffing Information","Tab 4: Staffing Information","Tab 4: Staffing Information","Tab 4: Staffing Information","Tab 4: Staffing Information","Tab 4: Staffing Information","Tab 4: Staffing Information","Tab 4: Staffing Information","Tab 4: Staffing Information","Tab 4: Staffing Information","Tab 4: Staffing Information","Tab 4: Staffing Information","Tab 4: Staffing Information","Tab 4: Staffing Information","Tab 4: Staffing Information","Tab 4: Staffing Information","Tab 4: Staffing Information","Tab 4: Staffing Information","Tab 4: Staffing Information","Tab 4: Staffing Information","Tab 4: Staffing Information","Tab 4: Staffing Information","Tab 4: Staffing Information","Tab 4: Staffing Information","Tab 4: Staffing Information","Tab 4: Staffing Information","Tab 4: Staffing Information","Tab 4: Staffing Information","Tab 5: Vehicle Expenses","Tab 5: Vehicle Expenses","Tab 5: Vehicle Expenses","Tab 5: Vehicle Expenses","Tab 5: Vehicle Expenses","Tab 5: Vehicle Expenses","Tab 5: Vehicle Expenses","Tab 5: Vehicle Expenses","Tab 5: Vehicle Expenses","Tab 5: Vehicle Expenses","Tab 5: Vehicle Expenses","Tab 5: Vehicle Expenses","Tab 5: Vehicle Expenses","Tab 5: Vehicle Expenses","Tab 5: Vehicle Expenses","Tab 5: Vehicle Expenses","Tab 5: Vehicle Expenses","Tab 5: Vehicle Expenses","Tab 5: Vehicle Expenses","Tab 5: Vehicle Expenses","Tab 5: Vehicle Expenses","Tab 5: Vehicle Expenses","Tab 5: Vehicle Expenses","Tab 5: Vehicle Expenses","Tab 5: Vehicle Expenses","Tab 5: Vehicle Expenses","Tab 5: Vehicle Expenses","Tab 5: Vehicle Expenses","Tab 5: Vehicle Expenses","Tab 5: Vehicle Expenses","Tab 5: Vehicle Expenses","Tab 5: Vehicle Expenses","Tab 5: Vehicle Expenses","Tab 5: Vehicle Expenses","Tab 5: Vehicle Expenses","Tab 5: Vehicle Expenses","Tab 5: Vehicle Expenses","Tab 5: Vehicle Expenses","Tab 5: Vehicle Expenses","Tab 5: Vehicle Expenses","Tab 5: Vehicle Expenses","Tab 5: Vehicle Expenses","Tab 5: Vehicle Expenses","Tab 5: Vehicle Expenses","Tab 5: Vehicle Expenses","Tab 5: Vehicle Expenses","Tab 5: Vehicle Expenses","Tab 5: Vehicle Expenses","Tab 5: Vehicle Expenses","Tab 5: Vehicle Expenses","Tab 5: Vehicle Expenses","Tab 5: Vehicle Expenses","Tab 5: Vehicle Expenses","Tab 5: Vehicle Expenses","Tab 5: Vehicle Expenses","Tab 5: Vehicle Expenses","Tab 5: Vehicle Expenses","Tab 5: Vehicle Expenses","Tab 5: Vehicle Expenses","Tab 5: Vehicle Expenses","Tab 5: Vehicle Expenses","Tab 5: Vehicle Expenses","Tab 5: Vehicle Expenses","Tab 5: Vehicle Expenses","Tab 5: Vehicle Expenses","Tab 5: Vehicle Expenses","Tab 5: Vehicle Expenses","Tab 5: Vehicle Expenses","Tab 5: Vehicle Expenses","Tab 5: Vehicle Expenses","Tab 5: Vehicle Expenses","Tab 5: Vehicle Expenses","Tab 5: Vehicle Expenses","Tab 5: Vehicle Expenses","Tab 5: Vehicle Expenses","Tab 5: Vehicle Expenses","Tab 5: Vehicle Expenses","Tab 5: Vehicle Expenses","Tab 5: Vehicle Expenses","Tab 5: Vehicle Expenses","Tab 5: Vehicle Expenses","Tab 5: Vehicle Expenses","Tab 5: Vehicle Expenses","Tab 5: Vehicle Expenses","Tab 5: Vehicle Expenses","Tab 5: Vehicle Expenses","Tab 5: Vehicle Expenses","Tab 5: Vehicle Expenses","Tab 5: Vehicle Expenses","Tab 5: Vehicle Expenses","Tab 5: Vehicle Expenses","Tab 5: Vehicle Expenses","Tab 5: Vehicle Expenses","Tab 5: Vehicle Expenses","Tab 5: Vehicle Expenses","Tab 5: Vehicle Expenses","Tab 5: Vehicle Expenses","Tab 5: Vehicle Expenses","Tab 5: Vehicle Expenses","Tab 5: Vehicle Expenses","Tab 5: Vehicle Expenses","Tab 5: Vehicle Expenses","Tab 5: Vehicle Expenses","Tab 5: Vehicle Expenses","Tab 5: Vehicle Expenses","Tab 5: Vehicle Expenses","Tab 5: Vehicle Expenses","Tab 5: Vehicle Expenses","Tab 5: Vehicle Expenses","Tab 5: Vehicle Expenses","Tab 5: Vehicle Expenses","Tab 5: Vehicle Expenses","Tab 5: Vehicle Expenses","Tab 5: Vehicle Expenses","Tab 5: Vehicle Expenses","Tab 5: Vehicle Expenses","Tab 5: Vehicle Expenses","Tab 5: Vehicle Expenses","Tab 5: Vehicle Expenses","Tab 5: Vehicle Expenses","Tab 5: Vehicle Expenses","Tab 5: Vehicle Expenses","Tab 5: Vehicle Expenses","Tab 5: Vehicle Expenses","Tab 5: Vehicle Expenses","Tab 5: Vehicle Expenses","Tab 5: Vehicle Expenses","Tab 5: Vehicle Expenses","Tab 5: Vehicle Expenses","Tab 5: Vehicle Expenses","Tab 5: Vehicle Expenses","Tab 6: Occupancy Expenses","Tab 6: Occupancy Expenses","Tab 6: Occupancy Expenses","Tab 6: Occupancy Expenses","Tab 6: Occupancy Expenses","Tab 6: Occupancy Expenses","Tab 6: Occupancy Expenses","Tab 6: Occupancy Expenses","Tab 6: Occupancy Expenses","Tab 6: Occupancy Expenses","Tab 6: Occupancy Expenses","Tab 6: Occupancy Expenses","Tab 6: Occupancy Expenses","Tab 6: Occupancy Expenses","Tab 6: Occupancy Expenses","Tab 6: Occupancy Expenses","Tab 6: Occupancy Expenses","Tab 6: Occupancy Expenses","Tab 6: Occupancy Expenses","Tab 6: Occupancy Expenses","Tab 6: Occupancy Expenses","Tab 6: Occupancy Expenses","Tab 6: Occupancy Expenses","Tab 6: Occupancy Expenses","Tab 6: Occupancy Expenses","Tab 6: Occupancy Expenses","Tab 6: Occupancy Expenses","Tab 6: Occupancy Expenses","Tab 6: Occupancy Expenses","Tab 6: Occupancy Expenses","Tab 6: Occupancy Expenses","Tab 6: Occupancy Expenses","Tab 6: Occupancy Expenses","Tab 6: Occupancy Expenses","Tab 6: Occupancy Expenses","Tab 6: Occupancy Expenses","Tab 6: Occupancy Expenses","Tab 6: Occupancy Expenses","Tab 6: Occupancy Expenses","Tab 6: Occupancy Expenses","Tab 6: Occupancy Expenses","Tab 6: Occupancy Expenses","Tab 6: Occupancy Expenses","Tab 6: Occupancy Expenses","Tab 6: Occupancy Expenses","Tab 6: Occupancy Expenses","Tab 6: Occupancy Expenses","Tab 6: Occupancy Expenses","Tab 6: Occupancy Expenses","Tab 6: Occupancy Expenses","Tab 6: Occupancy Expenses","Tab 6: Occupancy Expenses","Tab 6: Occupancy Expenses","Tab 6: Occupancy Expenses","Tab 6: Occupancy Expenses","Tab 6: Occupancy Expenses","Tab 6: Occupancy Expenses","Tab 6: Occupancy Expenses","Tab 6: Occupancy Expenses","Tab 6: Occupancy Expenses","Tab 6: Occupancy Expenses","Tab 6: Occupancy Expenses","Tab 6: Occupancy Expenses","Tab 6: Occupancy Expenses","Tab 6: Occupancy Expenses","Tab 6: Occupancy Expenses","Tab 6: Occupancy Expenses","Tab 6: Occupancy Expenses","Tab 6: Occupancy Expenses","Tab 6: Occupancy Expenses","Tab 6: Occupancy Expenses","Tab 6: Occupancy Expenses","Tab 6: Occupancy Expenses","Tab 6: Occupancy Expenses","Tab 6: Occupancy Expenses","Tab 6: Occupancy Expenses","Tab 6: Occupancy Expenses","Tab 6: Occupancy Expenses","Tab 6: Occupancy Expenses","Tab 6: Occupancy Expenses","Tab 6: Occupancy Expenses","Tab 6: Occupancy Expenses","Tab 6: Occupancy Expenses","Tab 6: Occupancy Expenses","Tab 6: Occupancy Expenses","Tab 6: Occupancy Expenses","Tab 6: Occupancy Expenses","Tab 6: Occupancy Expenses","Tab 6: Occupancy Expenses","Tab 6: Occupancy Expenses","Tab 6: Occupancy Expenses","Tab 6: Occupancy Expenses","Tab 6: Occupancy Expenses","Tab 6: Occupancy Expenses","Tab 6: Occupancy Expenses","Tab 6: Occupancy Expenses","Tab 6: Occupancy Expenses","Tab 6: Occupancy Expenses","Tab 6: Occupancy Expenses","Tab 6: Occupancy Expenses","Tab 6: Occupancy Expenses","Tab 6: Occupancy Expenses","Tab 6: Occupancy Expenses","Tab 6: Occupancy Expenses","Tab 6: Occupancy Expenses","Tab 6: Occupancy Expenses","Tab 6: Occupancy Expenses","Tab 6: Occupancy Expenses","Tab 6: Occupancy Expenses","Tab 6: Occupancy Expenses","Tab 6: Occupancy Expenses","Tab 6: Occupancy Expenses","Tab 6: Occupancy Expenses","Tab 6: Occupancy Expenses","Tab 6: Occupancy Expenses","Tab 6: Occupancy Expenses","Tab 6: Occupancy Expenses","Tab 6: Occupancy Expenses","Tab 6: Occupancy Expenses","Tab 6: Occupancy Expenses","Tab 6: Occupancy Expenses","Tab 6: Occupancy Expenses","Tab 6: Occupancy Expenses","Tab 6: Occupancy Expenses","Tab 6: Occupancy Expenses","Tab 6: Occupancy Expenses","Tab 6: Occupancy Expenses","Tab 6: Occupancy Expenses","Tab 6: Occupancy Expenses","Tab 6: Occupancy Expenses","Tab 6: Occupancy Expenses","Tab 6: Occupancy Expenses","Tab 6: Occupancy Expenses","Tab 6: Occupancy Expenses","Tab 6: Occupancy Expenses","Tab 6: Occupancy Expenses","Tab 6: Occupancy Expenses","Tab 6: Occupancy Expenses","Tab 6: Occupancy Expenses","Tab 6: Occupancy Expenses","Tab 7: Revenue","Tab 7: Revenue","Tab 7: Revenue","Tab 7: Revenue","Tab 7: Revenue","Tab 7: Revenue","Tab 7: Revenue","Tab 7: Revenue","Tab 7: Revenue","Tab 7: Revenue","Tab 7: Revenue","Tab 7: Revenue","Tab 7: Revenue","Tab 7: Revenue","Tab 7: Revenue","Tab 7: Revenue","Tab 7: Revenue","Tab 7: Revenue","Tab 7: Revenue","Tab 7: Revenue","Tab 7: Revenue","Tab 7: Revenue","Tab 7: Revenue","Tab 7: Revenue","Tab 7: Revenue","Tab 7: Revenue","Tab 7: Revenue","Tab 7: Revenue","Tab 7: Revenue","Tab 7: Revenue","Tab 7: Revenue","Tab 7: Revenue","Tab 7: Revenue","Tab 7: Revenue","Tab 7: Revenue","Tab 7: Revenue","Tab 7: Revenue","Tab 7: Revenue","Tab 7: Revenue","Tab 7: Revenue","Tab 7: Revenue","Tab 7: Revenue","Tab 7: Revenue","Tab 7: Revenue","Tab 7: Revenue","Tab 7: Revenue","Tab 7: Revenue","Tab 7: Revenue","Tab 7: Revenue","Tab 7: Revenue","Tab 7: Revenue","Tab 7: Revenue","Tab 7: Revenue","Tab 7: Revenue","Tab 7: Revenue","Tab 7: Revenue","Tab 7: Revenue","Tab 7: Revenue","Tab 7: Revenue","Tab 7: Revenue","Tab 7: Revenue","Tab 7: Revenue","Tab 7: Revenue","Tab 7: Revenue","Tab 7: Revenue","Tab 7: Revenue","Tab 7: Revenue","Tab 7: Revenue","Tab 7: Revenue","Tab 7: Revenue","Tab 7: Revenue","Tab 7: Revenue","Tab 7: Revenue","Tab 7: Revenue","Tab 7: Revenue","Tab 7: Revenue","Tab 7: Revenue","Tab 7: Revenue","Tab 7: Revenue","Tab 7: Revenue","Tab 7: Revenue","Tab 7: Revenue","Tab 7: Revenue","Tab 7: Revenue","Tab 7: Revenue","Tab 7: Revenue","Tab 7: Revenue","Tab 7: Revenue","Tab 7: Revenue","Tab 7: Revenue","Tab 7: Revenue","Tab 7: Revenue","Tab 7: Revenue","Tab 7: Revenue","Tab 7: Revenue","Tab 7: Revenue","Tab 7: Revenue","Tab 7: Revenue","Tab 7: Revenue","Tab 7: Revenue","Tab 7: Revenue","Tab 7: Revenue","Tab 7: Revenue","Tab 7: Revenue","Tab 7: Revenue","Tab 7: Revenue","Tab 7: Revenue","Tab 7: Revenue","Tab 7: Revenue","Tab 7: Revenue","Tab 7: Revenue","Tab 7: Revenue","Tab 7: Revenue","Tab 7: Revenue","Tab 7: Revenue","Tab 7: Revenue","Tab 7: Revenue","Tab 7: Revenue","Tab 7: Revenue","Tab 7: Revenue","Tab 7: Revenue","Tab 7: Revenue","Tab 7: Revenue","Tab 7: Revenue","Tab 7: Revenue","Tab 7: Revenue","Tab 7: Revenue","Tab 7: Revenue","Tab 7: Revenue","Tab 7: Revenue","Tab 7: Revenue","Tab 7: Revenue","Tab 7: Revenue","Tab 7: Revenue","Tab 7: Revenue","Tab 7: Revenue","Tab 7: Revenue","Tab 7: Revenue","Tab 7: Revenue","Tab 8: Expense","Tab 8: Expense","Tab 8: Expense","Tab 8: Expense","Tab 8: Expense","Tab 8: Expense","Tab 8: Expense","Tab 8: Expense","Tab 8: Expense","Tab 8: Expense","Tab 8: Expense","Tab 8: Expense","Tab 8: Expense","Tab 8: Expense","Tab 8: Expense","Tab 8: Expense","Tab 8: Expense","Tab 8: Expense","Tab 8: Expense","Tab 8: Expense","Tab 8: Expense","Tab 8: Expense","Tab 8: Expense","Tab 8: Expense","Tab 8: Expense","Tab 8: Expense","Tab 8: Expense","Tab 8: Expense","Tab 8: Expense","Tab 8: Expense","Tab 8: Expense","Tab 8: Expense","Tab 8: Expense","Tab 8: Expense","Tab 8: Expense","Tab 8: Expense","Tab 8: Expense","Tab 8: Expense","Tab 8: Expense","Tab 8: Expense","Tab 8: Expense","Tab 8: Expense","Tab 8: Expense","Tab 8: Expense","Tab 8: Expense","Tab 8: Expense","Tab 8: Expense","Tab 8: Expense","Tab 8: Expense","Tab 8: Expense","Tab 8: Expense","Tab 8: Expense","Tab 8: Expense","Tab 8: Expense","Tab 8: Expense","Tab 8: Expense","Tab 8: Expense","Tab 8: Expense","Tab 8: Expense","Tab 8: Expense","Tab 8: Expense","Tab 8: Expense","Tab 8: Expense","Tab 8: Expense","Tab 8: Expense","Tab 8: Expense","Tab 8: Expense","Tab 8: Expense","Tab 8: Expense","Tab 8: Expense","Tab 8: Expense","Tab 8: Expense","Tab 8: Expense","Tab 8: Expense","Tab 8: Expense","Tab 8: Expense","Tab 8: Expense","Tab 8: Expense","Tab 8: Expense","Tab 8: Expense","Tab 8: Expense","Tab 8: Expense","Tab 8: Expense","Tab 8: Expense","Tab 8: Expense","Tab 8: Expense","Tab 8: Expense","Tab 8: Expense","Tab 8: Expense","Tab 8: Expense","Tab 8: Expense","Tab 8: Expense","Tab 8: Expense","Tab 8: Expense","Tab 8: Expense","Tab 8: Expense","Tab 8: Expense","Tab 8: Expense","Tab 8: Expense","Tab 8: Expense","Tab 8: Expense","Tab 8: Expense","Tab 8: Expense","Tab 8: Expense","Tab 8: Expense","Tab 8: Expense","Tab 8: Expense","Tab 8: Expense","Tab 8: Expense","Tab 8: Expense","Tab 8: Expense","Tab 8: Expense","Tab 8: Expense","Tab 8: Expense","Tab 8: Expense","Tab 8: Expense","Tab 8: Expense","Tab 8: Expense","Tab 8: Expense","Tab 8: Expense","Tab 8: Expense","Tab 8: Expense","Tab 8: Expense","Tab 8: Expense","Tab 8: Expense","Tab 8: Expense","Tab 8: Expense","Tab 8: Expense","Tab 8: Expense","Tab 8: Expense","Tab 8: Expense","Tab 8: Expense","Tab 8: Expense","Tab 8: Expense","Tab 8: Expense","Tab 8: Expense","Tab 8: Expense","Tab 8: Expense","Tab 8: Expense","Tab 8: Expense","Tab 8: Expense","Tab 8: Expense","Tab 8: Expense","Tab 8: Expense","Tab 8: Expense","Tab 8: Expense","Tab 8: Expense","Tab 8: Expense","Tab 8: Expense","Tab 8: Expense","Tab 8: Expense","Tab 8: Expense","Tab 8: Expense","Tab 8: Expense","Tab 8: Expense","Tab 8: Expense","Tab 8: Expense","Tab 8: Expense","Tab 8: Expense","Tab 8: Expense","Tab 8: Expense","Tab 8: Expense","Tab 8: Expense","Tab 8: Expense","Tab 8: Expense","Tab 8: Expense","Tab 8: Expense","Tab 8: Expense","Tab 8: Expense","Tab 8: Expense","Tab 8: Expense","Tab 8: Expense","Tab 8: Expense","Tab 8: Expense","Tab 8: Expense","Tab 8: Expense","Tab 8: Expense","Tab 8: Expense","Tab 8: Expense","Tab 8: Expense","Tab 8: Expense","Tab 8: Expense","Tab 8: Expense","Tab 8: Expense","Tab 8: Expense","Tab 8: Expense","Tab 8: Expense","Tab 8: Expense","Tab 8: Expense","Tab 8: Expense","Tab 8: Expense","Tab 8: Expense","Tab 8: Expense","Tab 8: Expense","Tab 8: Expense","Tab 8: Expense","Tab 8: Expense","Tab 8: Expense","Tab 8: Expense","Tab 8: Expense","Tab 8: Expense","Tab 8: Expense","Tab 8: Expense","Tab 8: Expense","Tab 8: Expense","Tab 8: Expense","Tab 8: Expense","Tab 8: Expense","Tab 8: Expense","Tab 8: Expense","Tab 8: Expense","Tab 8: Expense","Tab 8: Expense","Tab 8: Expense","Tab 8: Expense","Tab 8: Expense","Tab 8: Expense","Tab 8: Expense","Tab 8: Expense","Tab 8: Expense","Tab 8: Expense","Tab 8: Expense","Tab 8: Expense","Tab 8: Expense","Tab 8: Expense","Tab 8: Expense","Tab 8: Expense","Tab 8: Expense","Tab 8: Expense","Tab 8: Expense","Tab 8: Expense","Tab 8: Expense","Tab 8: Expense","Tab 8: Expense","Tab 8: Expense","Tab 8: Expense","Tab 8: Expense","Tab 8: Expense","Tab 8: Expense","Tab 8: Expense","Tab 8: Expense","Tab 8: Expense","Tab 8: Expense","Tab 8: Expense","Tab 8: Expense","Tab 8: Expense","Tab 8: Expense","Tab 8: Expense","Tab 8: Expense","Tab 8: Expense","Tab 8: Expense","Tab 8: Expense","Tab 8: Expense","Tab 8: Expense","Tab 8: Expense","Tab 9: Reconciliation","Tab 9: Reconciliation","Tab 9: Reconciliation","Tab 9: Reconciliation","Tab 9: Reconciliation","Tab 9: Reconciliation","Tab 9: Reconciliation","Tab 9: Reconciliation","Tab 9: Reconciliation","Tab 9: Reconciliation","Tab 9: Reconciliation","Tab 9: Reconciliation","Tab 9: Reconciliation","Tab 9: Reconciliation","Tab 9: Reconciliation","Tab 9: Reconciliation","Tab 9: Reconciliation","Tab 9: Reconciliation","Tab 9: Reconciliation","Tab 9: Reconciliation","Tab 9: Reconciliation","Tab 9: Reconciliation","Tab 9: Reconciliation","Tab 9: Reconciliation","Tab 9: Reconciliation","Tab 9: Reconciliation","Tab 9: Reconciliation","Tab 10: Accuracy of Report","Tab 10: Accuracy of Report","Tab 10: Accuracy of Report","Tab 10: Accuracy of Report","Tab 10: Accuracy of Report","Tab 10: Accuracy of Report","Tab 10: Accuracy of Report"]
[null,"Provider Name","Federal Employee ID Number (FEIN)","MassHealth Provider ID","NPI","Mailing Address","City","State","Zip Code","Main Phone Number","Provider Type","Fiscal Year Ending","EMS Region 1 - Western MA","EMS Region 2 - Central MA","EMS Region 3 - Northeastern MA","EMS Region 4 - Metro Boston","EMS Region 5 - Southeastern MA/Cape Cod","Licensure Level","More than $100k?","Name","Title","Phone Number","Extension","Email Address","Fax Number","Provider Type","Profit Type","Hospital Service Type","Level of Services 911 Emergency Contracts","Level of Services Other Emergency","Level of Services Describe Other Emergency Service Type","Level of Services Non-Emergency","Level of Services ALS","Level of Services ALS Other","Level of Services Describe Other ALS Service Type","Level of Services BLS","Level of Services Wheelchair Van","Level of Services Air Ambulance","Level of Services Other","Level of Services Describe Other Service Type","Staffing Type","Describe Other Staffing Type","Hours in Normal Work Week","Hours of Operation ALS Days Per Week","Hours of Operation ALS Hours Per Day","Hours of Operation BLS Days Per Week","Hours of Operation BLS Hours Per Day","Hours of Operation Wheelchair Van Days Per Week","Hours of Operation Wheelchair Van Hours Per Day","Hours of Operation Rotor Wing Days Per Week","Hours of Operation Rotor Wing Hours Per Day","Hours of Operation Fixed Wing Days Per Week","Hours of Operation Fixed Wing Hours Per Day","Class I Vehicles","Class V Vehicles","Wheelchair Van Vehicles","Class IV Vehicles","Other Vehicles (support)","Total Ambulance Mileage for FY","Total Wheelchair Van Mileage for FY","Total Air Ambulance Mileage for FY","Total All Other Mileage for FY","Total Miles for FY","A0425 Ambulance Loaded Mileage","S0215 Wheelchair Van Loaded Mileage","All Other Loaded Miles","Total Loaded Miles","A0426 ALS 1 Number of Trips","A0427 ALS 1 Emergency Number of Trips","A0428 BLS Number of Trips","A0429 BLS Emergency Number of Trips","A0433 ALS 2 Number of Trips","A0434 Speciality Care Transport Number of Trips","A0130 Wheelchair Van Number of Trips","T2001 Wheelchair Van Patient Attendant/Escort Number of Trips","A0120 Nonemergency Wheelchair Van Transport COVID-19 Number of Trips","A0431 Rotor Wing Number of Trips","A0430 Fixed Wing Number of Trips","All Other Transports Number of Trips","All Other Transports Describe","Total Number of Transports","Executive Officer(s) Total FTE","Executive Officer(s) Total Dollars","Executive Officer(s) Admin FTE","Executive Officer(s) Admin Dollars","Executive Officer(s) ALS FTE","Executive Officer(s) ALS Dollars","Executive Officer(s) BLS FTE","Executive Officer(s) BLS Dollars","Executive Officer(s) Wheelchair Van FTE","Executive Officer(s) Wheelchair Van Dollars","Executive Officer(s) Rotor Wing FTE","Executive Officer(s) Rotor Wing Dollars","Executive Officer(s) Fixed Wing FTE","Executive Officer(s) Fixed Wing Dollars","Executive Officer(s) Other Services FTE","Executive Officer(s) Other Services Dollars","Fiscal Officer(s) Total FTE","Fiscal Officer(s) Total Dollars","Fiscal Officer(s) Admin FTE","Fiscal Officer(s) Admin Dollars","Fiscal Officer(s) ALS FTE","Fiscal Officer(s) ALS Dollars","Fiscal Officer(s) BLS FTE","Fiscal Officer(s) BLS Dollars","Fiscal Officer(s) Wheelchair Van FTE","Fiscal Officer(s) Wheelchair Van Dollars","Fiscal Officer(s) Rotor Wing FTE","Fiscal Officer(s) Rotor Wing Dollars","Fiscal Officer(s) Fixed Wing FTE","Fiscal Officer(s) Fixed Wing Dollars","Fiscal Officer(s) Other Services FTE","Fiscal Officer(s) Other Services Dollars","Billing/Collection Total FTEs","Billing/Collection Total Dollars","Billing/Collection Admin FTEs","Billing/Collection Admin Dollars","Billing/Collection ALS FTE","Billing/Collection ALS Dollars","Billing/Collection BLS FTE","Billing/Collection BLS Dollars","Billing/Collection Wheelchair Van FTE","Billing/Collection Wheelchair Van Dollars","Billing/Collection Rotor Wing FTE","Billing/Collection Rotor Wing Dollars","Billing/Collection Fixed Wing FTE","Billing/Collection Fixed Wing Dollars","Billing/Collection Other Services FTE","Billing/Collection Other Services Dollars","Clerical/Support Total FTE","Clerical/Support Total Dollars","Clerical/Support Admin FTE","Clerical/Support Admin Dollars","Clerical/Support ALS FTE","Clerical/Support ALS Dollars","Clerical/Support BLS FTE","Clerical/Support BLS Dollars","Clerical/Support Wheelchair Van FTE","Clerical/Support Wheelchair Van Dollars","Clerical/Support Rotor Wing FTE","Clerical/Support Rotor Wing Dollars","Clerical/Support Fixed Wing FTE","Clerical/Support Fixed Wing Dollars","Clerical/Support Other Services FTE","Clerical/Support Other Services Dollars","Communications Personnel Total FTE","Communications Personnel Total Dollars","Communications Personnel Admin FTE","Communications Personnel Admin Dollars","Communications Personnel ALS FTE","Communications Personnel ALS Dollars","Communications Personnel BLS FTE","Communications Personnel BLS Dollars","Communications Personnel Wheelchair Van FTE","Communications Personnel Wheelchair Van Dollars","Communications Personnel Rotor Wing FTE","Communications Personnel Rotor Wing Dollars","Communications Personnel Fixed Wing FTE","Communications Personnel Fixed Wing Dollars","Communications Personnel Other Services FTE","Communications Personnel Other Services Dollars","Maintenance Staff Total FTE","Maintenance Staff Total Dollars","Maintenance Staff Admin FTE","Maintenance Staff Admin Dollars","Maintenance Staff ALS FTE","Maintenance Staff ALS Dollars","Maintenance Staff BLS FTE","Maintenance Staff BLS Dollars","Maintenance Staff Wheelchair Van FTE","Maintenance Staff Wheelchair Van Dollars","Maintenance Staff Rotor Wing FTE","Maintenance Staff Rotor Wing Dollars","Maintenance Staff Fixed Wing FTE","Maintenance Staff Fixed Wing Dollars","Maintenance Staff Other Services FTE","Maintenance Staff Other Services Dollars","Other Admin Staff Total FTE","Other Admin Staff Total Dollars","Other Admin Staff Admin FTE","Other Admin Staff Admin Dollars","Other Admin Staff ALS FTE","Other Admin Staff ALS Dollars","Other Admin Staff BLS FTE","Other Admin Staff BLS Dollars","Other Admin Staff Wheelchair Van FTE","Other Admin Staff Wheelchair Van Dollars","Other Admin Staff Rotor Wing FTE","Other Admin Staff Rotor Wing Dollars","Other Admin Staff Fixed Wing FTE","Other Admin Staff Fixed Wing Dollars","Other Admin Staff Other Services FTE","Other Admin Staff Other Services FTE","Total Admin Staff Total FTE","Total Admin Staff Total Dollars","Total Admin Staff Admin FTE","Total Admin Staff Admin Dollars","Total Admin Staff ALS FTE","Total Admin Staff ALS Dollars","Total Admin Staff BLS FTE","Total Admin Staff BLS Dollars","Total Admin Staff Wheelchair Van FTE","Total Admin Staff Wheelchair Van Dollars","Total Admin Staff Rotor Wing FTE","Total Admin Staff Rotor Wing Dollars","Total Admin Staff Fixed Wing FTE","Total Admin Staff Fixed Wing Dollars","Total Admin Staff Other Services FTE","Total Admin Staff Other Services Dollars","EMT Basic Total FTE","EMT Basic Total Dollars","EMT Basic Admin FTE","EMT Basic Admin Dollars","EMT Basic ALS FTE","EMT Basic ALS Dollars","EMT Basic BLS FTE","EMT Basic BLS Dollars","EMT Basic Wheelchair Van FTE","EMT Basic Wheelchair Van Dollars","EMT Basic Rotor Wing FTE","EMT Basic Rotor Wing Dollars","EMT Basic Fixed Wing FTE","EMT Basic Fixed Wing Dollars","EMT Basic Other Services FTE","EMT Basic Other Services Dollars","EMT Intermediate Total FTE","EMT Intermediate Total Dollars","EMT Intermediate Admin FTE","EMT Intermediate Admin Dollars","EMT Intermediate ALS FTE","EMT Intermediate ALS Dollars","EMT Intermediate BLS FTE","EMT Intermediate BLS Dollars","EMT Intermediate Wheelchair Van FTE","EMT Intermediate Wheelchair Van Dollars","EMT Intermediate Rotor Wing FTE","EMT Intermediate Rotor Wing Dollars","EMT Intermediate Fixed Wing FTE","EMT Intermediate Fixed Wing Dollars","EMT Intermediate Other Services FTE","EMT Intermediate Other Services Dollars","EMT Paramedic Total FTE","EMT Paramedic Total Dollars","EMT Paramedic Admin FTE","EMT Paramedic Admin Dollars","EMT Paramedic ALS FTE","EMT Paramedic ALS Dollars","EMT Paramedic BLS FTE","EMT Paramedic BLS Dollars","EMT Paramedic Wheelchair Van FTE","EMT Paramedic Wheelchair Van Dollars","EMT Paramedic Rotor Wing FTE","EMT Paramedic Rotor Wing Dollars","EMT Paramedic Fixed Wing FTE","EMT Paramedic Fixed Wing Dollars","EMT Paramedic Other Services FTE","EMT Paramedic Other Services Dollars","Driver Attendant (Wheelchair Van) Total FTE","Driver Attendant (Wheelchair Van) Total Dollars","Driver Attendant (Wheelchair Van) Admin FTE","Driver Attendant (Wheelchair Van) Admin Dollars","Driver Attendant (Wheelchair Van) ALS FTE","Driver Attendant (Wheelchair Van) ALS Dollars","Driver Attendant (Wheelchair Van) BLS FTE","Driver Attendant (Wheelchair Van) BLS Dollars","Driver Attendant (Wheelchair Van) Wheelchair Van FTE","Driver Attendant (Wheelchair Van) Wheelchair Van Dollars","Driver Attendant (Wheelchair Van) Rotor Wing FTE","Driver Attendant (Wheelchair Van) Rotor Wing Dollars","Driver Attendant (Wheelchair Van) Fixed Wing FTE","Driver Attendant (Wheelchair Van) Fixed Wing Dollars","Driver Attendant (Wheelchair Van) Other Services FTE","Driver Attendant (Wheelchair Van) Other Services Dollars","Operations/Field Supervisors Total FTE","Operations/Field Supervisors Total Dollars","Operations/Field Supervisors Admin FTE","Operations/Field Supervisors Admin Dollars","Operations/Field Supervisors ALS FTE","Operations/Field Supervisors ALS Dollars","Operations/Field Supervisors BLS FTE","Operations/Field Supervisors BLS Dollars","Operations/Field Supervisors Wheelchair Van FTE","Operations/Field Supervisors Wheelchair Van Dollars","Operations/Field Supervisors Rotor Wing FTE","Operations/Field Supervisors Rotor Wing Dollars","Operations/Field Supervisors Fixed Wing FTE","Operations/Field Supervisors Fixed Wing Dollars","Operations/Field Supervisors Other Services FTE","Operations/Field Supervisors Other Services Dollars","Clinical Training/Medical Director Total FTE","Clinical Training/Medical Director Total Dollars","Clinical Training/Medical Director Admin FTE","Clinical Training/Medical Director Admin Dollars","Clinical Training/Medical Director ALS FTE","Clinical Training/Medical Director ALS Dollars","Clinical Training/Medical Director BLS FTE","Clinical Training/Medical Director BLS Dollars","Clinical Training/Medical Director Wheelchair Van FTE","Clinical Training/Medical Director Wheelchair Van Dollars","Clinical Training/Medical Director Rotor Wing FTE","Clinical Training/Medical Director Rotor Wing Dollars","Clinical Training/Medical Director Fixed Wing FTE","Clinical Training/Medical Director Fixed Wing Dollars","Clinical Training/Medical Director Other Services FTE","Clinical Training/Medical Director Other Services Dollars","Total Direct Service Staff Total FTE","Total Direct Service Staff Total Dollars","Total Direct Service Staff Admin FTE","Total Direct Service Staff Admin Dollars","Total Direct Service Staff ALS FTE","Total Direct Service Staff ALS Dollars","Total Direct Service Staff BLS FTE","Total Direct Service Staff BLS Dollars","Total Direct Service Staff Wheelchair Van FTE","Total Direct Service Staff Wheelchair Van Dollars","Total Direct Service Staff Rotor Wing FTE","Total Direct Service Staff Rotor Wing Dollars","Total Direct Service Staff Fixed Wing FTE","Total Direct Service Staff Fixed Wing Dollars","Total Direct Service Staff Other Services FTE","Total Direct Service Staff Other Services Dollars","Total Employee Total FTE","Total Employee Total Dollars","Total Employee Admin FTE","Total Employee Admin Dollars","Total Employee ALS FTE","Total Employee ALS Dollars","Total Employee BLS FTE","Total Employee BLS Dollars","Total Employee Wheelchair Van FTE","Total Employee Wheelchair Van Dollars","Total Employee Rotor Wing FTE","Total Employee Rotor Wing Dollars","Total Employee Fixed Wing FTE","Total Employee Fixed Wing Dollars","Total Employee Other Services FTE","Total Employee Other Services Dollars","Leasing Expense Total","Leasing Expense Admin","Leasing Expense ALS","Leasing Expense BLS","Leasing Expense Wheelchair Van","Leasing Expense Rotor Wing","Leasing Expense Fixed Wing","Leasing Expense Other Services","Leasing Expense Not Directly Allocable","Vehicle Insurance Total","Vehicle Insurance Admin","Vehicle Insurance ALS","Vehicle Insurance BLS","Vehicle Insurance Wheelchair Van","Vehicle Insurance Rotor Wing","Vehicle Insurance Fixed Wing","Vehicle Insurance Other Services","Vehicle Insurance Expenses Not Directly Allocable","Interest Expense Total","Interest Expense Admin","Interest Expense ALS","Interest Expense BLS","Interest Expense Wheelchair Van","Interest Expense Rotor Wing","Interest Expense Fixed Wing","Interest Expense Other Services","Interest Expense Not Directly Allocable","Vehicle Depreciation Total","Vehicle Depreciation Admin","Vehicle Depreciation ALS","Vehicle Depreciation BLS","Vehicle Depreciation Wheelchair Van","Vehicle Depreciation Rotor Wing","Vehicle Depreciation Fixed Wing","Vehicle Depreciation Other Services","Vehicle Depreciation Expenses Not Directly Allocable","Repairs and Maintenance Total","Repairs and Maintenance Admin","Repairs and Maintenance ALS","Repairs and Maintenance BLS","Repairs and Maintenance Wheelchair Van","Repairs and Maintenance Rotor Wing","Repairs and Maintenance Fixed Wing","Repairs and Maintenance Other Services","Repairs and Maintenance Expenses Not Directly Allocable","Gas, Oil, and Other Vehicle Related Fluids Total","Gas, Oil, and Other Vehicle Related Fluids Admin","Gas, Oil, and Other Vehicle Related Fluids ALS","Gas, Oil, and Other Vehicle Related Fluids BLS","Gas, Oil, and Other Vehicle Related Fluids Wheelchair Van","Gas, Oil, and Other Vehicle Related Fluids Rotor Wing","Gas, Oil, and Other Vehicle Related Fluids Fixed Wing","Gas, Oil, and Other Vehicle Related Fluids Other Services","Gas, Oil, and Other Vehicle Related Fluids Expenses Not Directly Allocable","Taxes Total","Taxes Admin","Taxes ALS","Taxes BLS","Taxes Wheelchair Van","Taxes Rotor Wing","Taxes Fixed Wing","Taxes Other Services","Taxes Expenses Not Directly Allocable","Vehicle Licenses and Registrations Total","Vehicle Licenses and Registrations Admin","Vehicle Licenses and Registrations ALS","Vehicle Licenses and Registrations BLS","Vehicle Licenses and Registrations Wheelchair Van","Vehicle Licenses and Registrations Rotor Wing","Vehicle Licenses and Registrations Fixed Wing","Vehicle Licenses and Registrations Other Services","Vehicle Licenses and Registrations Expenses Not Directly Allocable","Tolls Total","Tolls Admin","Tolls ALS","Tolls BLS","Tolls Wheelchair Van","Tolls Other Services","Tolls Expenses Not Directly Allocable","Other Vehicle Expenses Total","Other Vehicle Expenses Admin","Other Vehicle Expenses ALS","Other Vehicle Expenses BLS","Other Vehicle Expenses Wheelchair Van","Other Vehicle Expenses Rotor Wing","Other Vehicle Expenses Fixed Wing","Other Vehicle Expenses Other Services","Other Vehicle Expenses Not Directly Allocable","Other Vehicle Expenses Description","Total Vehicle Operating Expenses Total","Total Vehicle Operating Expenses Admin","Total Vehicle Operating Expenses ALS","Total Vehicle Operating Expenses BLS","Total Vehicle Operating Expenses Wheelchair Van","Total Vehicle Operating Expenses Rotor Wing","Total Vehicle Operating Expenses Fixed Wing","Total Vehicle Operating Expenses Other Services","Total Vehicle Operating Expenses Not Directly Allocable","Unallocated Vehicle Operating Expenses","Allocation of Vehicle Expenses Based on Number of Transports - ALS","Allocation of Vehicle Expenses Based on Number of Transports - BLS","Allocation of Vehicle Expenses Based on Number of Transports - Wheelchair Van","Allocation of Vehicle Expenses Based on Number of Transports - Rotor Wing","Allocation of Vehicle Expenses Based on Number of Transports - Fixed Wing","Allocation of Vehicle Expenses Based on Number of Transports - Other Services","Directly Allocated Vehicle Operating Expenses - ALS","Directly Allocated Vehicle Operating Expenses - BLS","Directly Allocated Vehicle Operating Expenses - Wheelchair Van","Directly Allocated Vehicle Operating Expenses - Rotor Wing","Directly Allocated Vehicle Operating Expenses - Fixed Wing","Directly Allocated Vehicle Operating Expenses - Other Services","Total Vehicle Expenses Total","Total Vehicle Expenses ALS","Total Vehicle Expenses BLS","Total Vehicle Expenses Wheelchair Van","Total Vehicle Expenses Rotor Wing","Total Vehicle Expenses Fixed Wing","Total Vehicle Expenses Other Services","Allocation - ALS Number of Transports","Allocation - ALS Percent of Total Transports","Allocation - BLS Number of Transports","Allocation - BLS Percent of Total Transports","Allocation - Wheelchair Van Number of Transports","Allocation - Wheelchair Van Percent of Total Transports","Allocation - Rotor Wing Number of Transports","Allocation - Rotor Wing Percent of Total Transports","Allocation - Fixed Wing Number of Transports","Allocation - Fixed Wing Percent of Total Transports","Allocation - Other Services Number of Transports","Allocation - Other Services Percent of Total Transports","Allocation - Total Transports","Rent Total","Rent Admin","Rent ALS","Rent BLS","Rent Wheelchair Van","Rent Rotor Wing","Rent Fixed Wing","Rent Other Services","Rent Expenses Not Directly Allocable","Mortgage Interest Total","Mortgage Interest Admin","Mortgage Interest ALS","Mortgage Interest BLS","Mortgage Interest Wheelchair Van","Mortgage Interest Rotor Wing","Mortgage Interest Fixed Wing","Mortgage Interest Other Services","Mortgage Interest Expenses Not Directly Allocable","Depreciation (Building) Total","Depreciation (Building) Admin","Depreciation (Building) ALS","Depreciation (Building) BLS","Depreciation (Building) Wheelchair Van","Depreciation (Building) Rotor Wing","Depreciation (Building) Fixed Wing","Depreciation (Building) Other Services","Depreciation (Building) Expenses Not Directly Allocable","Depreciation (Equipment) Total","Depreciation (Equipment) Admin","Depreciation (Equipment) ALS","Depreciation (Equipment) BLS","Depreciation (Equipment) Wheelchair Van","Depreciation (Equipment) Rotor Wing","Depreciation (Equipment) Fixed Wing","Depreciation (Equipment) Other Services","Depreciation (Equipment) Expenses Not Directly Allocable","Repairs and Maintenance (Building) Total","Repairs and Maintenance (Building) Admin","Repairs and Maintenance (Building) ALS","Repairs and Maintenance (Building) BLS","Repairs and Maintenance (Building) Wheelchair Van","Repairs and Maintenance (Building) Rotor Wing","Repairs and Maintenance (Building) Fixed Wing","Repairs and Maintenance (Building) Other Services","Repairs and Maintenance (Building) Expenses Not Directly Allocable","Property Tax Total","Property Tax Admin","Property Tax ALS","Property Tax BLS","Property Tax Wheelchair Van","Property Tax Rotor Wing","Property Tax Fixed Wing","Property Tax Other Services","Property Tax Expenses Not Directly Allocable","Insurance (Billing and Equipment) Total","Insurance (Billing and Equipment) Admin","Insurance (Billing and Equipment) ALS","Insurance (Billing and Equipment) BLS","Insurance (Billing and Equipment) Wheelchair Van","Insurance (Billing and Equipment) Rotor Wing","Insurance (Billing and Equipment) Fixed Wing","Insurance (Billing and Equipment) Other Services","Insurance (Billing and Equipment) Expenses Not Directly Allocable","Utilities Total","Utilities Admin","Utilities ALS","Utilities BLS","Utilities Wheelchair Van","Utilities Rotor Wing","Utilities Fixed Wing","Utilities Other Services","Utilities Expenses Not Directly Allocable","Donated Space Total","Donated Space Admin","Donated Space ALS","Donated Space BLS","Donated Space Wheelchair Van","Donated Space Rotor Wing","Donated Space Fixed Wing","Donated Space Other Services","Donated Space Expenses Not Directly Allocable","Other Occupancy Expenses Total","Other Occupancy Expenses Admin","Other Occupancy Expenses ALS","Other Occupancy Expenses BLS","Other Occupancy Expenses Wheelchair Van","Other Occupancy Expenses Rotor Wing","Other Occupancy Expenses Fixed Wing","Other Occupancy Expenses Other Services","Other Occupancy Expenses Not Directly Allocable","Other Occupancy Expenses Description","Total Occupancy Expenses Total","Total Occupancy Expenses Admin","Total Occupancy Expenses ALS","Total Occupancy Expenses BLS","Total Occupancy Expenses Wheelchair Van","Total Occupancy Expenses Rotor Wing","Total Occupancy Expenses Fixed Wing","Total Occupancy Expenses Other Services","Total Occupancy Expenses Not Directly Allocable","Unallocated Occupancy Expenses","Allocation Based on Square Footage Admin","Allocation Based on Square Footage ALS","Allocation Based on Square Footage BLS","Allocation Based on Square Footage Wheelchair Van","Allocation Based on Square Footage Rotor Wing","Allocation Based on Square Footage Fixed Wing","Allocation Based on Square Footage Other Services","Directly Allocated Occupancy Expenses Admin","Directly Allocated Occupancy Expenses ALS","Directly Allocated Occupancy Expenses BLS","Directly Allocated Occupancy Expenses Wheelchair Van","Directly Allocated Occupancy Expenses Rotor Wing","Directly Allocated Occupancy Expenses Fixed Wing","Directly Allocated Occupancy Expenses Other Services","Total Occupancy Expenses Total","Total Occupancy Expenses Admin","Total Occupancy Expenses ALS","Total Occupancy Expenses BLS","Total Occupancy Expenses Wheelchair Van","Total Occupancy Expenses Rotor Wing","Total Occupancy Expenses Fixed Wing","Total Occupancy Expenses Other Services","Administration Square Footage","Administration Square Footage Percent","ALS Square Footage ","ALS Square Footage Percent","BLS Square Footage","BLS Square Footage Percent","Wheelchair Van Square Footage","Wheelchair Van Square Footage Percent","Rotor Wing Square Footage","Rotor Wing Square Footage Percent","Fixed Wing Square Footage","Fixed Wing Square Footage Percent","Other Programs Square Footage","Other Programs Square Footage Percent","Total Square Footage","Total Square Footage Percent","Other Programs Description","Mass. Self-Pay/Private Pay Total","Mass. Self-Pay/Private Pay ALS","Mass. Self-Pay/Private Pay BLS","Mass. Self-Pay/Private Pay Wheelchair Van","Mass. Self-Pay/Private Pay Rotor Wing","Mass. Self-Pay/Private Pay Fixed Wing","Mass. Self-Pay/Private Pay Other Services","Mass. Medicare Total","Mass. Medicare ALS","Mass. Medicare BLS","Mass. Medicare Wheelchair Van","Mass. Medicare Rotor Wing","Mass. Medicare Fixed Wing","Mass. Medicare Other Services","Mass. Medicaid Total","Mass. Medicaid ALS","Mass. Medicaid BLS","Mass. Medicaid Wheelchair Van","Mass. Medicaid Rotor Wing","Mass. Medicaid Fixed Wing","Mass. Medicaid Other Services","Mass. Commercial Total","Mass. Commercial ALS","Mass. Commercial BLS","Mass. Commercial Wheelchair Van","Mass. Commercial Rotor Wing","Mass. Commercial Fixed Wing","Mass. Commercial Other Services","Mass. Contracts Total","Mass. Contracts ALS","Mass. Contracts BLS","Mass. Contracts Wheelchair Van","Mass. Contracts Rotor Wing","Mass. Contracts Fixed Wing","Mass. Contracts Other Services","Mass. Municipal Subsidy Total","Mass. Municipal Subsidy ALS","Mass. Municipal Subsidy BLS","Mass. Municipal Subsidy Wheelchair Van","Mass. Municipal Subsidy Rotor Wing","Mass. Municipal Subsidy Fixed Wing","Mass. Municipal Subsidy Other Services","Mass. All Other Payers Total","Mass. All Other Payers ALS","Mass. All Other Payers BLS","Mass. All Other Payers Wheelchair Van","Mass. All Other Payers Rotor Wing","Mass. All Other Payers Fixed Wing","Mass. All Other Payers Other Services","Total Mass. Operating Revenue Total","Total Mass. Operating Revenue ALS","Total Mass. Operating Revenue BLS","Total Mass. Operating Revenue Wheelchair Van","Total Mass. Operating Revenue Rotor Wing","Total Mass. Operating Revenue Fixed Wing","Total Mass. Operating Revenue Other Services","Other States Self-Pay/Private Pay Total","Other States Self-Pay/Private Pay ALS","Other States Self-Pay/Private Pay BLS","Other States Self-Pay/Private Pay Wheelchair Van","Other States Self-Pay/Private Pay Rotor Wing","Other States Self-Pay/Private Pay Fixed Wing","Other States Self-Pay/Private Pay Other Services","Other States Medicare Total","Other States Medicare ALS","Other States Medicare BLS","Other States Medicare Wheelchair Van","Other States Medicare Rotor Wing","Other States Medicare Fixed Wing","Other States Medicare Other Services","Other States Medicaid Total","Other States Medicaid ALS","Other States Medicaid BLS","Other States Medicaid Wheelchair Van","Other States Medicaid Rotor Wing","Other States Medicaid Fixed Wing","Other States Medicaid Other Services","Other States Commercial Total","Other States Commercial ALS","Other States Commercial BLS","Other States Commercial Wheelchair Van","Other States Commercial Rotor Wing","Other States Commercial Fixed Wing","Other States Commercial Other Services","Other States Contracts Total","Other States Contracts ALS","Other States Contracts BLS","Other States Contracts Wheelchair Van","Other States Contracts Rotor Wing","Other States Contracts Fixed Wing","Other States Contracts Other Services","Other States Municipal Subsidy Total","Other States Municipal Subsidy ALS","Other States Municipal Subsidy BLS","Other States Municipal Subsidy Wheelchair Van","Other States Municipal Subsidy Rotor Wing","Other States Municipal Subsidy Fixed Wing","Other States Municipal Subsidy Other Services","Other States All Other Payers Total","Other States All Other Payers ALS","Other States All Other Payers BLS","Other States All Other Payers Wheelchair Van","Other States All Other Payers Rotor Wing","Other States All Other Payers Fixed Wing","Other States All Other Payers Other Services","Total Other States Operating Revenue Total","Total Other States Operating Revenue ALS","Total Other States Operating Revenue BLS","Total Other States Operating Revenue Wheelchair Van","Total Other States Operating Revenue Rotor Wing","Total Other States Operating Revenue Fixed Wing","Total Other States Operating Revenue Other Services","Total Operating Revenue Total","Total Operating Revenue ALS","Total Operating Revenue BLS","Total Operating Revenue Wheelchair Van","Total Operating Revenue Rotor Wing","Total Operating Revenue Fixed Wing","Total Operating Revenue Other Services","Unrestricted Government Grants","Unrestricted Private Sources","Unrestricted Donated Services","Unrestricted Donations","Unrestricted Cash Gifts","Unrestricted Other","Unrestricted Other Description","Total Unrestricted Grants, Gifts, Donations","Restricted Government Grants","Restricted Private Sources","Restricted Donated Services","Restricted Donations","Restricted Cash Gifts","Restricted Other","Restricted Other Description","Total Restricted Grants, Gifts, Donations","Non-Operating Income","Non-Operating Income Description","Total Other Income","Total Revenue from all Sources","Total Admin Staff Salary/Wages","Admin Staff Salary/Wages - Admin","Admin Staff Salary/Wages - ALS","Admin Staff Salary/Wages - BLS","Admin Staff Salary/Wages - Wheelchair Van","Admin Staff Salary/Wages - Rotor Wing","Admin Staff Salary/Wages - Fixed Wing","Admin Staff Salary/Wages - Other Services","Total Direct Service Staff Salary/Wages","Direct Service Staff Salary/Wages - Admin","Direct Staff Service Salary/Wages - ALS","Direct ServiceStaff Salary/Wages - BLS","Direct Service Staff Salary/Wages - Wheelchair Van","Direct Service Staff Salary/Wages - Rotor Wing","Direct Service Staff Salary/Wages - Fixed Wing","Direct Service Staff Salary/Wages - Other Services","Total Salary/Wages","Total Salary/Wages - Admin","Total Salary/Wages - ALS","Total Salary/Wages - BLS","Total Salary/Wages - Wheelchair Van","Total Salary/Wages - Rotor Wing","Total Salary/Wages - Fixed Wing","Total Salary/Wages - Other Services","Total Payroll Taxes","Payroll Taxes - Admin","Payroll Taxes - ALS","Payroll Taxes - BLS","Payroll Taxes - Wheelchair Van","Payroll Taxes - Rotor Wing","Payroll Taxes - Fixed Wing","Payroll Taxes - Other Services","Total Non-Salary Related Benefits","Non-Salary Related Benefits - Admin","Non-Salary Related Benefits - ALS","Non-Salary Related Benefits - BLS","Non-Salary Related Benefits - Wheelchair Van","Non-Salary Related Benefits - Rotor Wing","Non-Salary Related Benefits - Fixed Wing","Non-Salary Related Benefits - Other Services","Total Retirement Plan","Retirement Plan - Admin","Retirement Plan - ALS","Retirement Plan - BLS","Retirement Plan - Wheelchair Van","Retirement Plan - Rotor Wing","Retirement Plan - Fixed Wing","Retirement Plan - Other Services","Total Employee Compensation & Related Expense Total","Total Employee Compensation & Related Expense - Admin","Total Employee Compensation & Related Expense - ALS","Total Employee Compensation & Related Expense - BLS","Total Employee Compensation & Related Expense - Wheelchair Van","Total Employee Compensation & Related Expense - Rotor Wing","Total Employee Compensation & Related Expense - Fixed Wing","Total Employee Compensation & Related Expense - Other Services","Total Vehicle Expenses Total","Total Vehicle Expenses Admin","Total Vehicle Expenses ALS","Total Vehicle Expenses BLS","Total Vehicle Expenses Wheelchair Van","Total Vehicle Expenses Rotor Wing","Total Vehicle Expenses Fixed Wing","Total Occupancy Expenses Total","Total Occupancy Expenses Admin","Total Occupancy Expenses ALS","Total Occupancy Expenses BLS","Total Occupancy Expenses Wheelchair Van","Total Occupancy Expenses Rotor Wing","Total Occupancy Expenses Fixed Wing","Total Occupancy Expenses Other Services","Subcontracted Staff Total","Subcontracted Staff Admin","Subcontracted Staff ALS","Subcontracted Staff BLS","Subcontracted Staff Wheelchair Van","Subcontracted Staff Rotor Wing","Subcontracted Staff Fixed Wing","Subcontracted Staff Other Services","Staff Training Total","Staff Training Admin","Staff Training ALS","Staff Training BLS","Staff Training Wheelchair Van","Staff Training Rotor Wing","Staff Training Fixed Wing","Staff Training Other Services","Medicine/Pharmacy Total","Medicine/Pharmacy Admin","Medicine/Pharmacy ALS","Medicine/Pharmacy BLS","Medicine/Pharmacy Wheelchair Van","Medicine/Pharmacy Rotor Wing","Medicine/Pharmacy Fixed Wing","Medicine/Pharmacy Other Services","Medical Supplies and Equipment Total","Medical Supplies and Equipment Admin","Medical Supplies and Equipment ALS","Medical Supplies and Equipment BLS","Medical Supplies and Equipment Wheelchair Van","Medical Supplies and Equipment Rotor Wing","Medical Supplies and Equipment Fixed Wing","Medical Supplies and Equipment Other Services","Communications Equipment Total","Communications Equipment Admin","Communications Equipment ALS","Communications Equipment BLS","Communications Equipment Wheelchair Van","Communications Equipment Rotor Wing","Communications Equipment Fixed Wing","Communications Equipment Other Services","Laundry, Uniform Expense Total","Laundry, Uniform Expense Admin","Laundry, Uniform Expense ALS","Laundry, Uniform Expense BLS","Laundry, Uniform Expense Wheelchair Van","Laundry, Uniform Expense Rotor Wing","Laundry, Uniform Expense Fixed Wing","Laundry, Uniform Expense Other Services","Marketing/Development Total","Marketing/Development Admin","Marketing/Development ALS","Marketing/Development BLS","Marketing/Development Wheelchair Van","Marketing/Development Rotor Wing","Marketing/Development Fixed Wing","Marketing/Development Other Services","Donations Total","Donations Admin","Donations ALS","Donations BLS","Donations Wheelchair Van","Donations Rotor Wing","Donations Fixed Wing","Donations Other Services","Travel/Entertainment Total","Travel/Entertainment Admin","Travel/Entertainment ALS","Travel/Entertainment BLS","Travel/Entertainment Wheelchair Van","Travel/Entertainment Rotor Wing","Travel/Entertainment Fixed Wing","Travel/Entertainment Other Services","Meals Total","Meals Admin","Meals ALS","Meals BLS","Meals Wheelchair Van","Meals Rotor Wing","Meals Fixed Wing","Meals Other Services","Collection Fees Total","Collection Fees Admin","Collection Fees ALS","Collection Fees BLS","Collection Fees Wheelchair Van","Collection Fees Rotor Wing","Collection Fees Fixed Wing","Collection Fees Other Services","Public Relations Total","Public Relations Admin","Public Relations ALS","Public Relations BLS","Public Relations Wheelchair Van","Public Relations Rotor Wing","Public Relations Fixed Wing","Public Relations Other Services","Penalties and Late Charges Total","Penalties and Late Charges Admin","Penalties and Late Charges ALS","Penalties and Late Charges BLS","Penalties and Late Charges Wheelchair Van","Penalties and Late Charges Rotor Wing","Penalties and Late Charges Fixed Wing","Penalties and Late Charges Other Supplies","Other Expenses Total","Other Expenses Admin","Other Expenses ALS","Other Expenses BLS","Other Expenses Wheelchair Van","Other Expenses Rotor Wing","Other Expenses Fixed Wing","Other Expenses Other Services","Other Expenses Description","Total Direct Allocable Expenses Total","Total Direct Allocable Expenses Admin","Total Direct Allocable Expenses ALS","Total Direct Allocable Expenses BLS","Total Direct Allocable Expenses Wheelchair Van","Total Direct Allocable Expenses Rotor Wing","Total Direct Allocable Expenses Fixed Wing","Total Direct Allocable Expenses Other Services","Office Supplies, Postage, Printing Total","Office Supplies, Postage, Printing Admin","Insurance Total","Insurance Admin","Interest (other than vehicle and mortgage) Total","Interest (other than vehicle and mortgage) Admin","Computer and Other Equipment Total","Computer and Other Equipment Admin","Legal Fees Total","Legal Fees Admin","Accounting Fees Total","Accounting Fees Admin","Accounting/Bookkeeping Total","Accounting/Bookkeeping Admin","Payroll Service Total","Payroll Service Admin","Billing Service Total","Billing Service Admin","Business Planning Total","Business Planning Admin","Lobbying Total","Lobbying Admin","Medical Director Total","Medical Director Admin","Information Systems Total","Information Systems Admin","Other Professional Fees Total","Other Professional Fees Admin","Other Professional Fees Description","Income Taxes Total","Income Taxes Admin","Bad Debt Expense Total","Bad Debt Expense Admin","Parent Org Expense Total","Parent Org Expense Admin","Dues/Subscriptions Total","Dues/Subscriptions Admin","Telephone/Internet Total","Telephone/Internet Admin","Subcontractors Total","Subcontractors Admin","Other Admin Expense Total","Other Admin Expense Admin","Other Admin Expense Description","Total General Admin Expense Total","Total General Admin Expense Admin","Directly Allocated Expenses Admin","Directly Allocated Expenses ALS","Directly Allocated Expenses BLS","Directly Allocated Expenses Wheelchair Van","Directly Allocated Expenses Rotor Wing","Directly Allocated Expenses Fixed Wing","Directly Allocated Expenses Other Services","Percent of Directly Allocated Expenses ALS","Percent of Directly Allocated Expenses BLS","Percent of Directly Allocated Expenses Wheelchair Van","Percent of Directly Allocated Expenses Rotor Wing","Percent of Directly Allocated Expenses Fixed Wing","Percent of Directly Allocated Expenses Other Services","Total General Admin Expense","Total Expense","Total Revenue","Excess of Revenue over Expenses","Total Revenue in Cost Report","Total Revenue in Financial Statement","Revenue Variance","Total Expenses in Cost Report","Total Expenses in Financial Statement","Expense Variance","Total Variance","Item 1 Name","Item 2 Name","Item 3 Name","Item 4 Name","Item 5 Name","Item 6 Name","Item 1 Variance","Item 2 Variance","Item 3 Variance","Item 4 Variance","Item 5 Variance","Item 6 Variance","Item 1 Explanation","Item 2 Explanation","Item 3 Explanation","Item 4 Explanation","Item 5 Explanation","Item 6 Explanation","Sum of Items Accounting for Total Variance","Is Line 11 equal to reported differences?","Total Revenue","Total Expense","Profit/Loss","Profitability","Signature of Authorized Submitter","Date of Submission","Submitter's Acknowledgement"]
[null,"01.C.9","01.C.10","01.C.11","01.C.12","01.C.13","01.C.14","01.C.15","01.C.16","01.C.17","01.C.18","01.C.19","01.C.21","01.C.22","01.C.23","01.C.24","01.C.25","01.C.26","01.C.27","01.C.30","01.C.31","01.C.32","01.C.33","01.C.34","01.C.35","02.C.9","02.C.10","02.C.11","02.C.15","02.C.16","02.C.17","02.C.18","02.C.19","02.C.20","02.C.21","02.C.22","02.C.23","02.C.24","02.C.25","02.C.26","02.C.29","02.C.30","02.C.31","02.C.35","02.C.36","02.C.38","02.C.39","02.C.41","02.C.42","02.C.44","02.C.45","02.C.47","02.C.48","02.C.52","02.C.53","02.C.54","02.C.55","02.C.56","03.D.8","03.D.9","03.D.10","03.D.11","03.D.12","03.D.15","03.D.16","03.D.17","03.D.18","03.D.21","03.D.22","03.D.23","03.D.24","03.D.25","03.D.26","03.D.27","03.D.28","03.D.29","03.D.30","03.D.31","03.D.32","03.D.33","03.D.34","04.C.9","04.D.9","04.E.9","04.F.9","04.G.9","04.H.9","04.I.9","04.J.9","04.K.9","04.L.9","04.M.9","04.N.9","04.O.9","04.P.9","04.Q.9","04.R.9","04.C.10","04.D.10","04.E.10","04.F.10","04.G.10","04.H.10","04.I.10","04.J.10","04.K.10","04.L.10","04.M.10","04.N.10","04.O.10","04.P.10","04.Q.10","04.R.10","04.C.11","04.D.11","04.E.11","04.F.11","04.G.11","04.H.11","04.I.11","04.J.11","04.K.11","04.L.11","04.M.11","04.N.11","04.O.11","04.P.11","04.Q.11","04.R.11","04.C.12","04.D.12","04.E.12","04.F.12","04.G.12","04.H.12","04.I.12","04.J.12","04.K.12","04.L.12","04.M.12","04.N.12","04.O.12","04.P.12","04.Q.12","04.R.12","04.C.13","04.D.13","04.E.13","04.F.13","04.G.13","04.H.13","04.I.13","04.J.13","04.K.13","04.L.13","04.M.13","04.N.13","04.O.13","04.P.13","04.Q.13","04.R.13","04.C.14","04.D.14","04.E.14","04.F.14","04.G.14","04.H.14","04.I.14","04.J.14","04.K.14","04.L.14","04.M.14","04.N.14","04.O.14","04.P.14","04.Q.14","04.R.14","04.C.15","04.D.15","04.E.15","04.F.15","04.G.15","04.H.15","04.I.15","04.J.15","04.K.15","04.L.15","04.M.15","04.N.15","04.O.15","04.P.15","04.Q.15","04.R.15","04.C.16","04.D.16","04.E.16","04.F.16","04.G.16","04.H.16","04.I.16","04.J.16","04.K.16","04.L.16","04.M.16","04.N.16","04.O.16","04.P.16","04.Q.16","04.R.16","04.C.17","04.D.17","04.E.17","04.F.17","04.G.17","04.H.17","04.I.17","04.J.17","04.K.17","04.L.17","04.M.17","04.N.17","04.O.17","04.P.17","04.Q.17","04.R.17","04.C.18","04.D.18","04.E.18","04.F.18","04.G.18","04.H.18","04.I.18","04.J.18","04.K.18","04.L.18","04.M.18","04.N.18","04.O.18","04.P.18","04.Q.18","04.R.18","04.C.19","04.D.19","04.E.19","04.F.19","04.G.19","04.H.19","04.I.19","04.J.19","04.K.19","04.L.19","04.M.19","04.N.19","04.O.19","04.P.19","04.Q.19","04.R.19","04.C.20","04.D.20","04.E.20","04.F.20","04.G.20","04.H.20","04.I.20","04.J.20","04.K.20","04.L.20","04.M.20","04.N.20","04.O.20","04.P.20","04.Q.20","04.R.20","04.C.21","04.D.21","04.E.21","04.F.21","04.G.21","04.H.21","04.I.21","04.J.21","04.K.21","04.L.21","04.M.21","04.N.21","04.O.21","04.P.21","04.Q.21","04.R.21","04.C.22","04.D.22","04.E.22","04.F.22","04.G.22","04.H.22","04.I.22","04.J.22","04.K.22","04.L.22","04.M.22","04.N.22","04.O.22","04.P.22","04.Q.22","04.R.22","04.C.23","04.D.23","04.E.23","04.F.23","04.G.23","04.H.23","04.I.23","04.J.23","04.K.23","04.L.23","04.M.23","04.N.23","04.O.23","04.P.23","04.Q.23","04.R.23","04.C.24","04.D.24","04.E.24","04.F.24","04.G.24","04.H.24","04.I.24","04.J.24","04.K.24","04.L.24","04.M.24","04.N.24","04.O.24","04.P.24","04.Q.24","04.R.24","05.C.9","05.D.9","05.E.9","05.F.9","05.G.9","05.H.9","05.I.9","05.J.9","05.K.9","05.C.10","05.D.10","05.E.10","05.F.10","05.G.10","05.H.10","05.I.10","05.J.10","05.K.10","05.C.11","05.D.11","05.E.11","05.F.11","05.G.11","05.H.11","05.I.11","05.J.11","05.K.11","05.C.12","05.D.12","05.E.12","05.F.12","05.G.12","05.H.12","05.I.12","05.J.12","05.K.12","05.C.13","05.D.13","05.E.13","05.F.13","05.G.13","05.H.13","05.I.13","05.J.13","05.K.13","05.C.14","05.D.14","05.E.14","05.F.14","05.G.14","05.H.14","05.I.14","05.J.14","05.K.14","05.C.15","05.D.15","05.E.15","05.F.15","05.G.15","05.H.15","05.I.15","05.J.15","05.K.15","05.C.16","05.D.16","05.E.16","05.F.16","05.G.16","05.H.16","05.I.16","05.J.16","05.K.16","05.C.17","05.D.17","05.E.17","05.F.17","05.G.17","05.J.17","05.K.17","05.C.18","05.D.18","05.E.18","05.F.18","05.G.18","05.H.18","05.I.18","05.J.18","05.K.18","05.C.19","05.C.20","05.D.20","05.E.20","05.F.20","05.G.20","05.H.20","05.I.20","05.J.20","05.K.20","05.K.23","05.E.24","05.F.24","05.G.24","05.H.24","05.I.24","05.J.24","05.E.25","05.F.25","05.G.25","05.H.25","05.I.25","05.J.25","05.C.26","05.E.26","05.F.26","05.G.26","05.H.26","05.I.26","05.J.26","05.C.30","05.D.30","05.C.31","05.D.31","05.C.32","05.D.32","05.C.33","05.D.33","05.C.34","05.D.34","05.C.35","05.D.35","05.C.36","06.C.9","06.D.9","06.E.9","06.F.9","06.G.9","06.H.9","06.I.9","06.J.9","06.K.9","06.C.10","06.D.10","06.E.10","06.F.10","06.G.10","06.H.10","06.I.10","06.J.10","06.K.10","06.C.11","06.D.11","06.E.11","06.F.11","06.G.11","06.H.11","06.I.11","06.J.11","06.K.11","06.C.12","06.D.12","06.E.12","06.F.12","06.G.12","06.H.12","06.I.12","06.J.12","06.K.12","06.C.13","06.D.13","06.E.13","06.F.13","06.G.13","06.H.13","06.I.13","06.J.13","06.K.13","06.C.14","06.D.14","06.E.14","06.F.14","06.G.14","06.H.14","06.I.14","06.J.14","06.K.14","06.C.15","06.D.15","06.E.15","06.F.15","06.G.15","06.H.15","06.I.15","06.J.15","06.K.15","06.C.16","06.D.16","06.E.16","06.F.16","06.G.16","06.H.16","06.I.16","06.J.16","06.K.16","06.C.17","06.D.17","06.E.17","06.F.17","06.G.17","06.H.17","06.I.17","06.J.17","06.K.17","06.C.18","06.D.18","06.E.18","06.F.18","06.G.18","06.H.18","06.I.18","06.J.18","06.K.18","06.C.19","06.C.20","06.D.20","06.E.20","06.F.20","06.G.20","06.H.20","06.I.20","06.J.20","06.K.20","06.K.23","06.D.24","06.E.24","06.F.24","06.G.24","06.H.24","06.I.24","06.J.24","06.D.25","06.E.25","06.F.25","06.G.25","06.H.25","06.I.25","06.J.25","06.C.26","06.D.26","06.E.26","06.F.26","06.G.26","06.H.26","06.I.26","06.J.26","06.C.30","06.D.30","06.C.31","06.D.31","06.C.32","06.D.32","06.C.33","06.D.33","06.C.34","06.D.34","06.C.35","06.D.35","06.C.36","06.D.36","06.C.37","06.D.37","06.C.38","07.C.10","07.D.10","07.E.10","07.F.10","07.G.10","07.H.10","07.I.10","07.C.11","07.D.11","07.E.11","07.F.11","07.G.11","07.H.11","07.I.11","07.C.12","07.D.12","07.E.12","07.F.12","07.G.12","07.H.12","07.I.12","07.C.13","07.D.13","07.E.13","07.F.13","07.G.13","07.H.13","07.I.13","07.C.14","07.D.14","07.E.14","07.F.14","07.G.14","07.H.14","07.I.14","07.C.15","07.D.15","07.E.15","07.F.15","07.G.15","07.H.15","07.I.15","07.C.16","07.D.16","07.E.16","07.F.16","07.G.16","07.H.16","07.I.16","07.C.17","07.D.17","07.E.17","07.F.17","07.G.17","07.H.17","07.I.17","07.C.20","07.D.20","07.E.20","07.F.20","07.G.20","07.H.20","07.I.20","07.C.21","07.D.21","07.E.21","07.F.21","07.G.21","07.H.21","07.I.21","07.C.22","07.D.22","07.E.22","07.F.22","07.G.22","07.H.22","07.I.22","07.C.23","07.D.23","07.E.23","07.F.23","07.G.23","07.H.23","07.I.23","07.C.24","07.D.24","07.E.24","07.F.24","07.G.24","07.H.24","07.I.24","07.C.25","07.D.25","07.E.25","07.F.25","07.G.25","07.H.25","07.I.25","07.C.26","07.D.26","07.E.26","07.F.26","07.G.26","07.H.26","07.I.26","07.C.27","07.D.27","07.E.27","07.F.27","07.G.27","07.H.27","07.I.27","07.C.28","07.D.28","07.E.28","07.F.28","07.G.28","07.H.28","07.I.28","07.C.30","07.C.31","07.C.32","07.C.33","07.C.34","07.C.35","07.C.36","07.C.37","07.C.39","07.C.40","07.C.41","07.C.42","07.C.43","07.C.44","07.C.45","07.C.46","07.C.48","07.C.49","07.C.50","07.C.52","08.C.9","08.D.9","08.E.9","08.F.9","08.G.9","08.H.9","08.I.9","08.J.9","08.C.10","08.D.10","08.E.10","08.F.10","08.G.10","08.H.10","08.I.10","08.J.10","08.C.11","08.D.11","08.E.11","08.F.11","08.G.11","08.H.11","08.I.11","08.J.11","08.C.13","08.D.13","08.E.13","08.F.13","08.G.13","08.H.13","08.I.13","08.J.13","08.C.14","08.D.14","08.E.14","08.F.14","08.G.14","08.H.14","08.I.14","08.J.14","08.C.15","08.D.15","08.E.15","08.F.15","08.G.15","08.H.15","08.I.15","08.J.15","08.C.16","08.D.16","08.E.16","08.F.16","08.G.16","08.H.16","08.I.16","08.J.16","08.C.18","08.D.18","08.E.18","08.F.18","08.G.18","08.H.18","08.I.18","08.C.19","08.D.19","08.E.19","08.F.19","08.G.19","08.H.19","08.I.19","08.J.19","08.C.20","08.D.20","08.E.20","08.F.20","08.G.20","08.H.20","08.I.20","08.J.20","08.C.21","08.D.21","08.E.21","08.F.21","08.G.21","08.H.21","08.I.21","08.J.21","08.C.22","08.D.22","08.E.22","08.F.22","08.G.22","08.H.22","08.I.22","08.J.22","08.C.23","08.D.23","08.E.23","08.F.23","08.G.23","08.H.23","08.I.23","08.J.23","08.C.24","08.D.24","08.E.24","08.F.24","08.G.24","08.H.24","08.I.24","08.J.24","08.C.25","08.D.25","08.E.25","08.F.25","08.G.25","08.H.25","08.I.25","08.J.25","08.C.26","08.D.26","08.E.26","08.F.26","08.G.26","08.H.26","08.I.26","08.J.26","08.C.27","08.D.27","08.E.27","08.F.27","08.G.27","08.H.27","08.I.27","08.J.27","08.C.28","08.D.28","08.E.28","08.F.28","08.G.28","08.H.28","08.I.28","08.J.28","08.C.29","08.D.29","08.E.29","08.F.29","08.G.29","08.H.29","08.I.29","08.J.29","08.C.30","08.D.30","08.E.30","08.F.30","08.G.30","08.H.30","08.I.30","08.J.30","08.C.31","08.D.31","08.E.31","08.F.31","08.G.31","08.H.31","08.I.31","08.J.31","08.C.32","08.D.32","08.E.32","08.F.32","08.G.32","08.H.32","08.I.32","08.J.32","08.C.33","08.D.33","08.E.33","08.F.33","08.G.33","08.H.33","08.I.33","08.J.33","08.C.34","08.C.35","08.D.35","08.E.35","08.F.35","08.G.35","08.H.35","08.I.35","08.J.35","08.C.38","08.D.38","08.C.39","08.D.39","08.C.40","08.D.40","08.C.41","08.D.41","08.C.42","08.D.42","08.C.43","08.D.43","08.C.44","08.D.44","08.C.45","08.D.45","08.C.46","08.D.46","08.C.47","08.D.47","08.C.48","08.D.48","08.C.49","08.D.49","08.C.50","08.D.50","08.C.51","08.D.51","08.C.52","08.C.53","08.D.53","08.C.54","08.D.54","08.C.55","08.D.55","08.C.56","08.D.56","08.C.57","08.D.57","08.C.58","08.D.58","08.C.59","08.D.59","08.C.60","08.C.61","08.D.61","08.D.63","08.E.63","08.F.63","08.G.63","08.H.63","08.I.63","08.J.63","08.E.64","08.F.64","08.G.64","08.F.64","08.G.64","08.I.64","08.D.65","08.C.66","08.C.67","08.C.68","09.C.7","09.C.8","09.C.9","09.C.11","09.C.12","09.C.13","09.C.15","09.C.21","09.D.21","09.E.21","09.F.21","09.G.21","09.H.21","09.C.22","09.D.22","09.E.22","09.F.22","09.G.22","09.H.22","09.C.23","09.D.23","09.E.23","09.F.23","09.G.23","09.H.23","09.C.27","09.C.29","06.E.13","06.E.14","06.E.15","06.E.16","06.E.18","06.E.19","06.E.20"]
[null,{"$f":"'1. Agency Information'!C9","v":0},{"$f":"'1. Agency Information'!C10","v":0},{"$f":"'1. Agency Information'!C11","v":0},{"$f":"'1. Agency Information'!C12","v":0},{"$f":"'1. Agency Information'!C13","v":0},{"$f":"'1. Agency Information'!C14","v":0},{"$f":"'1. Agency Information'!C15","v":0},{"$f":"'1. Agency Information'!C16","v":0},{"$f":"'1. Agency Information'!C17","v":0},{"$f":"'1. Agency Information'!C18","v":0},{"$f":"'1. Agency Information'!C19","v":"00:00:00"},{"$f":"'1. Agency Information'!C21","v":0},{"$f":"'1. Agency Information'!C22","v":0},{"$f":"'1. Agency Information'!C23","v":0},{"$f":"'1. Agency Information'!C24","v":0},{"$f":"'1. Agency Information'!C25","v":0},{"$f":"'1. Agency Information'!C26","v":0},{"$f":"'1. Agency Information'!C27","v":"Yes - Earned greater than $100k in MassHealth revenue in your organization's FY"},{"$f":"'1. Agency Information'!C30","v":0},{"$f":"'1. Agency Information'!C31","v":0},{"$f":"'1. Agency Information'!C32","v":0},{"$f":"'1. Agency Information'!C33","v":0},{"$f":"'1. Agency Information'!C34","v":0},{"$f":"'1. Agency Information'!C35","v":0},{"$f":"'2. General Information'!ProviderName","v":0},{"$f":"'2. General Information'!C10","v":0},{"$f":"'2. General Information'!C11","v":0},{"$f":"'2. General Information'!C15","v":0},{"$f":"'2. General Information'!C16","v":0},{"$f":"'2. General Information'!C17","v":0},{"$f":"'2. General Information'!C18","v":0},{"$f":"'2. General Information'!C19","v":0},{"$f":"'2. General Information'!C20","v":0},{"$f":"'2. General Information'!C21","v":0},{"$f":"'2. General Information'!C22","v":0},{"$f":"'2. General Information'!C23","v":0},{"$f":"'2. General Information'!C24","v":0},{"$f":"'2. General Information'!C25","v":0},{"$f":"'2. General Information'!C26","v":0},{"$f":"'2. General Information'!C29","v":0},{"$f":"'2. General Information'!C30","v":0},{"$f":"'2. General Information'!C31","v":0},{"$f":"'2. General Information'!C35","v":0},{"$f":"'2. General Information'!C36","v":0},{"$f":"'2. General Information'!C38","v":0},{"$f":"'2. General Information'!C39","v":0},{"$f":"'2. General Information'!C41","v":0},{"$f":"'2. General Information'!C42","v":0},{"$f":"'2. General Information'!C44","v":0},{"$f":"'2. General Information'!C45","v":0},{"$f":"'2. General Information'!C47","v":0},{"$f":"'2. General Information'!C48","v":0},{"$f":"'2. General Information'!C52","v":0},{"$f":"'2. General Information'!C53","v":0},{"$f":"'2. General Information'!C54","v":0},{"$f":"'2. General Information'!C55","v":0},{"$f":"'2. General Information'!C56","v":0},{"$f":"'3. Mileage and Transport'!D8","v":0},{"$f":"'3. Mileage and Transport'!D9","v":0},{"$f":"'3. Mileage and Transport'!D10","v":0},{"$f":"'3. Mileage and Transport'!D11","v":0},{"$f":"'3. Mileage and Transport'!D12","v":0},{"$f":"'3. Mileage and Transport'!D15","v":0},{"$f":"'3. Mileage and Transport'!D16","v":0},{"$f":"'3. Mileage and Transport'!D17","v":0},{"$f":"'3. Mileage and Transport'!D18","v":0},{"$f":"'3. Mileage and Transport'!D21","v":0},{"$f":"'3. Mileage and Transport'!D22","v":0},{"$f":"'3. Mileage and Transport'!D23","v":0},{"$f":"'3. Mileage and Transport'!D24","v":0},{"$f":"'3. Mileage and Transport'!D25","v":0},{"$f":"'3. Mileage and Transport'!D26","v":0},{"$f":"'3. Mileage and Transport'!D27","v":0},{"$f":"'3. Mileage and Transport'!D28","v":0},{"$f":"'3. Mileage and Transport'!D29","v":0},{"$f":"'3. Mileage and Transport'!D30","v":0},{"$f":"'3. Mileage and Transport'!D31","v":0},{"$f":"'3. Mileage and Transport'!D32","v":0},{"$f":"'3. Mileage and Transport'!D33","v":0},{"$f":"'3. Mileage and Transport'!D34","v":0},{"$f":"'4. Staffing Information'!C9","v":0},{"$f":"'4. Staffing Information'!D9","v":0},{"$f":"'4. Staffing Information'!E9","v":0},{"$f":"'4. Staffing Information'!F9","v":0},{"$f":"'4. Staffing Information'!G9","v":0},{"$f":"'4. Staffing Information'!H9","v":0},{"$f":"'4. Staffing Information'!I9","v":0},{"$f":"'4. Staffing Information'!J9","v":0},{"$f":"'4. Staffing Information'!K9","v":0},{"$f":"'4. Staffing Information'!L9","v":0},{"$f":"'4. Staffing Information'!M9","v":0},{"$f":"'4. Staffing Information'!N9","v":0},{"$f":"'4. Staffing Information'!O9","v":0},{"$f":"'4. Staffing Information'!P9","v":0},{"$f":"'4. Staffing Information'!Q9","v":0},{"$f":"'4. Staffing Information'!R9","v":0},{"$f":"'4. Staffing Information'!C10","v":0},{"$f":"'4. Staffing Information'!D10","v":0},{"$f":"'4. Staffing Information'!E10","v":0},{"$f":"'4. Staffing Information'!F10","v":0},{"$f":"'4. Staffing Information'!G10","v":0},{"$f":"'4. Staffing Information'!H10","v":0},{"$f":"'4. Staffing Information'!I10","v":0},{"$f":"'4. Staffing Information'!J10","v":0},{"$f":"'4. Staffing Information'!K10","v":0},{"$f":"'4. Staffing Information'!L10","v":0},{"$f":"'4. Staffing Information'!M10","v":0},{"$f":"'4. Staffing Information'!N10","v":0},{"$f":"'4. Staffing Information'!O10","v":0},{"$f":"'4. Staffing Information'!P10","v":0},{"$f":"'4. Staffing Information'!Q10","v":0},{"$f":"'4. Staffing Information'!R10","v":0},{"$f":"'4. Staffing Information'!C11","v":0},{"$f":"'4. Staffing Information'!D11","v":0},{"$f":"'4. Staffing Information'!E11","v":0},{"$f":"'4. Staffing Information'!F11","v":0},{"$f":"'4. Staffing Information'!G11","v":0},{"$f":"'4. Staffing Information'!H11","v":0},{"$f":"'4. Staffing Information'!I11","v":0},{"$f":"'4. Staffing Information'!J11","v":0},{"$f":"'4. Staffing Information'!K11","v":0},{"$f":"'4. Staffing Information'!L11","v":0},{"$f":"'4. Staffing Information'!M11","v":0},{"$f":"'4. Staffing Information'!N11","v":0},{"$f":"'4. Staffing Information'!O11","v":0},{"$f":"'4. Staffing Information'!P11","v":0},{"$f":"'4. Staffing Information'!Q11","v":0},{"$f":"'4. Staffing Information'!R11","v":0},{"$f":"'4. Staffing Information'!C12","v":0},{"$f":"'4. Staffing Information'!D12","v":0},{"$f":"'4. Staffing Information'!E12","v":0},{"$f":"'4. Staffing Information'!F12","v":0},{"$f":"'4. Staffing Information'!G12","v":0},{"$f":"'4. Staffing Information'!H12","v":0},{"$f":"'4. Staffing Information'!I12","v":0},{"$f":"'4. Staffing Information'!J12","v":0},{"$f":"'4. Staffing Information'!K12","v":0},{"$f":"'4. Staffing Information'!L12","v":0},{"$f":"'4. Staffing Information'!M12","v":0},{"$f":"'4. Staffing Information'!N12","v":0},{"$f":"'4. Staffing Information'!O12","v":0},{"$f":"'4. Staffing Information'!P12","v":0},{"$f":"'4. Staffing Information'!Q12","v":0},{"$f":"'4. Staffing Information'!R12","v":0},{"$f":"'4. Staffing Information'!C13","v":0},{"$f":"'4. Staffing Information'!D13","v":0},{"$f":"'4. Staffing Information'!E13","v":0},{"$f":"'4. Staffing Information'!F13","v":0},{"$f":"'4. Staffing Information'!G13","v":0},{"$f":"'4. Staffing Information'!H13","v":0},{"$f":"'4. Staffing Information'!I13","v":0},{"$f":"'4. Staffing Information'!J13","v":0},{"$f":"'4. Staffing Information'!K13","v":0},{"$f":"'4. Staffing Information'!L13","v":0},{"$f":"'4. Staffing Information'!M13","v":0},{"$f":"'4. Staffing Information'!N13","v":0},{"$f":"'4. Staffing Information'!O13","v":0},{"$f":"'4. Staffing Information'!P13","v":0},{"$f":"'4. Staffing Information'!Q13","v":0},{"$f":"'4. Staffing Information'!R13","v":0},{"$f":"'4. Staffing Information'!C14","v":0},{"$f":"'4. Staffing Information'!D14","v":0},{"$f":"'4. Staffing Information'!E14","v":0},{"$f":"'4. Staffing Information'!F14","v":0},{"$f":"'4. Staffing Information'!G14","v":0},{"$f":"'4. Staffing Information'!H14","v":0},{"$f":"'4. Staffing Information'!I14","v":0},{"$f":"'4. Staffing Information'!J14","v":0},{"$f":"'4. Staffing Information'!K14","v":0},{"$f":"'4. Staffing Information'!L14","v":0},{"$f":"'4. Staffing Information'!M14","v":0},{"$f":"'4. Staffing Information'!N14","v":0},{"$f":"'4. Staffing Information'!O14","v":0},{"$f":"'4. Staffing Information'!P14","v":0},{"$f":"'4. Staffing Information'!Q14","v":0},{"$f":"'4. Staffing Information'!R14","v":0},{"$f":"'4. Staffing Information'!C15","v":0},{"$f":"'4. Staffing Information'!D15","v":0},{"$f":"'4. Staffing Information'!E15","v":0},{"$f":"'4. Staffing Information'!F15","v":0},{"$f":"'4. Staffing Information'!G15","v":0},{"$f":"'4. Staffing Information'!H15","v":0},{"$f":"'4. Staffing Information'!I15","v":0},{"$f":"'4. Staffing Information'!J15","v":0},{"$f":"'4. Staffing Information'!K15","v":0},{"$f":"'4. Staffing Information'!L15","v":0},{"$f":"'4. Staffing Information'!M15","v":0},{"$f":"'4. Staffing Information'!N15","v":0},{"$f":"'4. Staffing Information'!O15","v":0},{"$f":"'4. Staffing Information'!P15","v":0},{"$f":"'4. Staffing Information'!Q15","v":0},{"$f":"'4. Staffing Information'!R15","v":0},{"$f":"'4. Staffing Information'!C16","v":0},{"$f":"'4. Staffing Information'!D16","v":0},{"$f":"'4. Staffing Information'!E16","v":0},{"$f":"'4. Staffing Information'!F16","v":0},{"$f":"'4. Staffing Information'!G16","v":0},{"$f":"'4. Staffing Information'!H16","v":0},{"$f":"'4. Staffing Information'!I16","v":0},{"$f":"'4. Staffing Information'!J16","v":0},{"$f":"'4. Staffing Information'!K16","v":0},{"$f":"'4. Staffing Information'!L16","v":0},{"$f":"'4. Staffing Information'!M16","v":0},{"$f":"'4. Staffing Information'!N16","v":0},{"$f":"'4. Staffing Information'!O16","v":0},{"$f":"'4. Staffing Information'!P16","v":0},{"$f":"'4. Staffing Information'!Q16","v":0},{"$f":"'4. Staffing Information'!R16","v":0},{"$f":"'4. Staffing Information'!C17","v":0},{"$f":"'4. Staffing Information'!D17","v":0},{"$f":"'4. Staffing Information'!E17","v":0},{"$f":"'4. Staffing Information'!F17","v":0},{"$f":"'4. Staffing Information'!G17","v":0},{"$f":"'4. Staffing Information'!H17","v":0},{"$f":"'4. Staffing Information'!I17","v":0},{"$f":"'4. Staffing Information'!J17","v":0},{"$f":"'4. Staffing Information'!K17","v":0},{"$f":"'4. Staffing Information'!L17","v":0},{"$f":"'4. Staffing Information'!M17","v":0},{"$f":"'4. Staffing Information'!N17","v":0},{"$f":"'4. Staffing Information'!O17","v":0},{"$f":"'4. Staffing Information'!P17","v":0},{"$f":"'4. Staffing Information'!Q17","v":0},{"$f":"'4. Staffing Information'!R17","v":0},{"$f":"'4. Staffing Information'!C18","v":0},{"$f":"'4. Staffing Information'!D18","v":0},{"$f":"'4. Staffing Information'!E18","v":0},{"$f":"'4. Staffing Information'!F18","v":0},{"$f":"'4. Staffing Information'!G18","v":0},{"$f":"'4. Staffing Information'!H18","v":0},{"$f":"'4. Staffing Information'!I18","v":0},{"$f":"'4. Staffing Information'!J18","v":0},{"$f":"'4. Staffing Information'!K18","v":0},{"$f":"'4. Staffing Information'!L18","v":0},{"$f":"'4. Staffing Information'!M18","v":0},{"$f":"'4. Staffing Information'!N18","v":0},{"$f":"'4. Staffing Information'!O18","v":0},{"$f":"'4. Staffing Information'!P18","v":0},{"$f":"'4. Staffing Information'!Q18","v":0},{"$f":"'4. Staffing Information'!R18","v":0},{"$f":"'4. Staffing Information'!C19","v":0},{"$f":"'4. Staffing Information'!D19","v":0},{"$f":"'4. Staffing Information'!E19","v":0},{"$f":"'4. Staffing Information'!F19","v":0},{"$f":"'4. Staffing Information'!G19","v":0},{"$f":"'4. Staffing Information'!H19","v":0},{"$f":"'4. Staffing Information'!I19","v":0},{"$f":"'4. Staffing Information'!J19","v":0},{"$f":"'4. Staffing Information'!K19","v":0},{"$f":"'4. Staffing Information'!L19","v":0},{"$f":"'4. Staffing Information'!M19","v":0},{"$f":"'4. Staffing Information'!N19","v":0},{"$f":"'4. Staffing Information'!O19","v":0},{"$f":"'4. Staffing Information'!P19","v":0},{"$f":"'4. Staffing Information'!Q19","v":0},{"$f":"'4. Staffing Information'!R19","v":0},{"$f":"'4. Staffing Information'!C20","v":0},{"$f":"'4. Staffing Information'!D20","v":0},{"$f":"'4. Staffing Information'!E20","v":0},{"$f":"'4. Staffing Information'!F20","v":0},{"$f":"'4. Staffing Information'!G20","v":0},{"$f":"'4. Staffing Information'!H20","v":0},{"$f":"'4. Staffing Information'!I20","v":0},{"$f":"'4. Staffing Information'!J20","v":0},{"$f":"'4. Staffing Information'!K20","v":0},{"$f":"'4. Staffing Information'!L20","v":0},{"$f":"'4. Staffing Information'!M20","v":0},{"$f":"'4. Staffing Information'!N20","v":0},{"$f":"'4. Staffing Information'!O20","v":0},{"$f":"'4. Staffing Information'!P20","v":0},{"$f":"'4. Staffing Information'!Q20","v":0},{"$f":"'4. Staffing Information'!R20","v":0},{"$f":"'4. Staffing Information'!C21","v":0},{"$f":"'4. Staffing Information'!D21","v":0},{"$f":"'4. Staffing Information'!E21","v":0},{"$f":"'4. Staffing Information'!F21","v":0},{"$f":"'4. Staffing Information'!G21","v":0},{"$f":"'4. Staffing Information'!H21","v":0},{"$f":"'4. Staffing Information'!I21","v":0},{"$f":"'4. Staffing Information'!J21","v":0},{"$f":"'4. Staffing Information'!K21","v":0},{"$f":"'4. Staffing Information'!L21","v":0},{"$f":"'4. Staffing Information'!M21","v":0},{"$f":"'4. Staffing Information'!N21","v":0},{"$f":"'4. Staffing Information'!O21","v":0},{"$f":"'4. Staffing Information'!P21","v":0},{"$f":"'4. Staffing Information'!Q21","v":0},{"$f":"'4. Staffing Information'!R21","v":0},{"$f":"'4. Staffing Information'!C22","v":0},{"$f":"'4. Staffing Information'!D22","v":0},{"$f":"'4. Staffing Information'!E22","v":0},{"$f":"'4. Staffing Information'!F22","v":0},{"$f":"'4. Staffing Information'!G22","v":0},{"$f":"'4. Staffing Information'!H22","v":0},{"$f":"'4. Staffing Information'!I22","v":0},{"$f":"'4. Staffing Information'!J22","v":0},{"$f":"'4. Staffing Information'!K22","v":0},{"$f":"'4. Staffing Information'!L22","v":0},{"$f":"'4. Staffing Information'!M22","v":0},{"$f":"'4. Staffing Information'!N22","v":0},{"$f":"'4. Staffing Information'!O22","v":0},{"$f":"'4. Staffing Information'!P22","v":0},{"$f":"'4. Staffing Information'!Q22","v":0},{"$f":"'4. Staffing Information'!R22","v":0},{"$f":"'4. Staffing Information'!C23","v":0},{"$f":"'4. Staffing Information'!D23","v":0},{"$f":"'4. Staffing Information'!E23","v":0},{"$f":"'4. Staffing Information'!F23","v":0},{"$f":"'4. Staffing Information'!G23","v":0},{"$f":"'4. Staffing Information'!H23","v":0},{"$f":"'4. Staffing Information'!I23","v":0},{"$f":"'4. Staffing Information'!J23","v":0},{"$f":"'4. Staffing Information'!K23","v":0},{"$f":"'4. Staffing Information'!L23","v":0},{"$f":"'4. Staffing Information'!M23","v":0},{"$f":"'4. Staffing Information'!N23","v":0},{"$f":"'4. Staffing Information'!O23","v":0},{"$f":"'4. Staffing Information'!P23","v":0},{"$f":"'4. Staffing Information'!Q23","v":0},{"$f":"'4. Staffing Information'!R23","v":0},{"$f":"'4. Staffing Information'!C24","v":0},{"$f":"'4. Staffing Information'!D24","v":0},{"$f":"'4. Staffing Information'!E24","v":0},{"$f":"'4. Staffing Information'!F24","v":0},{"$f":"'4. Staffing Information'!G24","v":0},{"$f":"'4. Staffing Information'!H24","v":0},{"$f":"'4. Staffing Information'!I24","v":0},{"$f":"'4. Staffing Information'!J24","v":0},{"$f":"'4. Staffing Information'!K24","v":0},{"$f":"'4. Staffing Information'!L24","v":0},{"$f":"'4. Staffing Information'!M24","v":0},{"$f":"'4. Staffing Information'!N24","v":0},{"$f":"'4. Staffing Information'!O24","v":0},{"$f":"'4. Staffing Information'!P24","v":0},{"$f":"'4. Staffing Information'!Q24","v":0},{"$f":"'4. Staffing Information'!R24","v":0},{"$f":"'5. Vehicle Expenses'!C9","v":0},{"$f":"'5. Vehicle Expenses'!D9","v":0},{"$f":"'5. Vehicle Expenses'!E9","v":0},{"$f":"'5. Vehicle Expenses'!F9","v":0},{"$f":"'5. Vehicle Expenses'!G9","v":0},{"$f":"'5. Vehicle Expenses'!H9","v":0},{"$f":"'5. Vehicle Expenses'!I9","v":0},{"$f":"'5. Vehicle Expenses'!J9","v":0},{"$f":"'5. Vehicle Expenses'!K9","v":0},{"$f":"'5. Vehicle Expenses'!C10","v":0},{"$f":"'5. Vehicle Expenses'!D10","v":0},{"$f":"'5. Vehicle Expenses'!E10","v":0},{"$f":"'5. Vehicle Expenses'!F10","v":0},{"$f":"'5. Vehicle Expenses'!G10","v":0},{"$f":"'5. Vehicle Expenses'!H10","v":0},{"$f":"'5. Vehicle Expenses'!I10","v":0},{"$f":"'5. Vehicle Expenses'!J10","v":0},{"$f":"'5. Vehicle Expenses'!K10","v":0},{"$f":"'5. Vehicle Expenses'!C11","v":0},{"$f":"'5. Vehicle Expenses'!D11","v":0},{"$f":"'5. Vehicle Expenses'!E11","v":0},{"$f":"'5. Vehicle Expenses'!F11","v":0},{"$f":"'5. Vehicle Expenses'!G11","v":0},{"$f":"'5. Vehicle Expenses'!H11","v":0},{"$f":"'5. Vehicle Expenses'!I11","v":0},{"$f":"'5. Vehicle Expenses'!J11","v":0},{"$f":"'5. Vehicle Expenses'!K11","v":0},{"$f":"'5. Vehicle Expenses'!C12","v":0},{"$f":"'5. Vehicle Expenses'!D12","v":0},{"$f":"'5. Vehicle Expenses'!E12","v":0},{"$f":"'5. Vehicle Expenses'!F12","v":0},{"$f":"'5. Vehicle Expenses'!G12","v":0},{"$f":"'5. Vehicle Expenses'!H12","v":0},{"$f":"'5. Vehicle Expenses'!I12","v":0},{"$f":"'5. Vehicle Expenses'!J12","v":0},{"$f":"'5. Vehicle Expenses'!K12","v":0},{"$f":"'5. Vehicle Expenses'!C13","v":0},{"$f":"'5. Vehicle Expenses'!D13","v":0},{"$f":"'5. Vehicle Expenses'!E13","v":0},{"$f":"'5. Vehicle Expenses'!F13","v":0},{"$f":"'5. Vehicle Expenses'!G13","v":0},{"$f":"'5. Vehicle Expenses'!H13","v":0},{"$f":"'5. Vehicle Expenses'!I13","v":0},{"$f":"'5. Vehicle Expenses'!J13","v":0},{"$f":"'5. Vehicle Expenses'!K13","v":0},{"$f":"'5. Vehicle Expenses'!C14","v":0},{"$f":"'5. Vehicle Expenses'!D14","v":0},{"$f":"'5. Vehicle Expenses'!E14","v":0},{"$f":"'5. Vehicle Expenses'!F14","v":0},{"$f":"'5. Vehicle Expenses'!G14","v":0},{"$f":"'5. Vehicle Expenses'!H14","v":0},{"$f":"'5. Vehicle Expenses'!I14","v":0},{"$f":"'5. Vehicle Expenses'!J14","v":0},{"$f":"'5. Vehicle Expenses'!K14","v":0},{"$f":"'5. Vehicle Expenses'!C15","v":0},{"$f":"'5. Vehicle Expenses'!D15","v":0},{"$f":"'5. Vehicle Expenses'!E15","v":0},{"$f":"'5. Vehicle Expenses'!F15","v":0},{"$f":"'5. Vehicle Expenses'!G15","v":0},{"$f":"'5. Vehicle Expenses'!H15","v":0},{"$f":"'5. Vehicle Expenses'!I15","v":0},{"$f":"'5. Vehicle Expenses'!J15","v":0},{"$f":"'5. Vehicle Expenses'!K15","v":0},{"$f":"'5. Vehicle Expenses'!C16","v":0},{"$f":"'5. Vehicle Expenses'!D16","v":0},{"$f":"'5. Vehicle Expenses'!E16","v":0},{"$f":"'5. Vehicle Expenses'!F16","v":0},{"$f":"'5. Vehicle Expenses'!G16","v":0},{"$f":"'5. Vehicle Expenses'!H16","v":0},{"$f":"'5. Vehicle Expenses'!I16","v":0},{"$f":"'5. Vehicle Expenses'!J16","v":0},{"$f":"'5. Vehicle Expenses'!K16","v":0},{"$f":"'5. Vehicle Expenses'!C17","v":0},{"$f":"'5. Vehicle Expenses'!D17","v":0},{"$f":"'5. Vehicle Expenses'!E17","v":0},{"$f":"'5. Vehicle Expenses'!F17","v":0},{"$f":"'5. Vehicle Expenses'!G17","v":0},{"$f":"'5. Vehicle Expenses'!J17","v":0},{"$f":"'5. Vehicle Expenses'!K17","v":0},{"$f":"'5. Vehicle Expenses'!C18","v":0},{"$f":"'5. Vehicle Expenses'!D18","v":0},{"$f":"'5. Vehicle Expenses'!E18","v":0},{"$f":"'5. Vehicle Expenses'!F18","v":0},{"$f":"'5. Vehicle Expenses'!G18","v":0},{"$f":"'5. Vehicle Expenses'!H18","v":0},{"$f":"'5. Vehicle Expenses'!I18","v":0},{"$f":"'5. Vehicle Expenses'!J18","v":0},{"$f":"'5. Vehicle Expenses'!K18","v":0},{"$f":"'5. Vehicle Expenses'!C19","v":0},{"$f":"'5. Vehicle Expenses'!C20","v":0},{"$f":"'5. Vehicle Expenses'!D20","v":0},{"$f":"'5. Vehicle Expenses'!E20","v":0},{"$f":"'5. Vehicle Expenses'!F20","v":0},{"$f":"'5. Vehicle Expenses'!G20","v":0},{"$f":"'5. Vehicle Expenses'!H20","v":0},{"$f":"'5. Vehicle Expenses'!I20","v":0},{"$f":"'5. Vehicle Expenses'!J20","v":0},{"$f":"'5. Vehicle Expenses'!K20","v":0},{"$f":"'5. Vehicle Expenses'!K23","v":0},{"$f":"'5. Vehicle Expenses'!E24","v":0},{"$f":"'5. Vehicle Expenses'!F24","v":0},{"$f":"'5. Vehicle Expenses'!G24","v":0},{"$f":"'5. Vehicle Expenses'!H24","v":0},{"$f":"'5. Vehicle Expenses'!I24","v":0},{"$f":"'5. Vehicle Expenses'!J24","v":0},{"$f":"'5. Vehicle Expenses'!E25","v":0},{"$f":"'5. Vehicle Expenses'!F25","v":0},{"$f":"'5. Vehicle Expenses'!G25","v":0},{"$f":"'5. Vehicle Expenses'!H25","v":0},{"$f":"'5. Vehicle Expenses'!I25","v":0},{"$f":"'5. Vehicle Expenses'!J25","v":0},{"$f":"'5. Vehicle Expenses'!C26","v":0},{"$f":"'5. Vehicle Expenses'!E26","v":0},{"$f":"'5. Vehicle Expenses'!F26","v":0},{"$f":"'5. Vehicle Expenses'!G26","v":0},{"$f":"'5. Vehicle Expenses'!H26","v":0},{"$f":"'5. Vehicle Expenses'!I26","v":0},{"$f":"'5. Vehicle Expenses'!J26","v":0},{"$f":"'5. Vehicle Expenses'!C30","v":0},{"$f":"'5. Vehicle Expenses'!D30","v":0},{"$f":"'5. Vehicle Expenses'!C31","v":0},{"$f":"'5. Vehicle Expenses'!D31","v":0},{"$f":"'5. Vehicle Expenses'!C32","v":0},{"$f":"'5. Vehicle Expenses'!D32","v":0},{"$f":"'5. Vehicle Expenses'!C33","v":0},{"$f":"'5. Vehicle Expenses'!D33","v":0},{"$f":"'5. Vehicle Expenses'!C34","v":0},{"$f":"'5. Vehicle Expenses'!D34","v":0},{"$f":"'5. Vehicle Expenses'!C35","v":0},{"$f":"'5. Vehicle Expenses'!D35","v":0},{"$f":"'5. Vehicle Expenses'!C36","v":0},{"$f":"'6. Occupancy Expenses'!C9","v":0},{"$f":"'6. Occupancy Expenses'!D9","v":0},{"$f":"'6. Occupancy Expenses'!E9","v":0},{"$f":"'6. Occupancy Expenses'!F9","v":0},{"$f":"'6. Occupancy Expenses'!G9","v":0},{"$f":"'6. Occupancy Expenses'!H9","v":0},{"$f":"'6. Occupancy Expenses'!I9","v":0},{"$f":"'6. Occupancy Expenses'!J9","v":0},{"$f":"'6. Occupancy Expenses'!K9","v":0},{"$f":"'6. Occupancy Expenses'!C10","v":0},{"$f":"'6. Occupancy Expenses'!D10","v":0},{"$f":"'6. Occupancy Expenses'!E10","v":0},{"$f":"'6. Occupancy Expenses'!F10","v":0},{"$f":"'6. Occupancy Expenses'!G10","v":0},{"$f":"'6. Occupancy Expenses'!H10","v":0},{"$f":"'6. Occupancy Expenses'!I10","v":0},{"$f":"'6. Occupancy Expenses'!J10","v":0},{"$f":"'6. Occupancy Expenses'!K10","v":0},{"$f":"'6. Occupancy Expenses'!C11","v":0},{"$f":"'6. Occupancy Expenses'!D11","v":0},{"$f":"'6. Occupancy Expenses'!E11","v":0},{"$f":"'6. Occupancy Expenses'!F11","v":0},{"$f":"'6. Occupancy Expenses'!G11","v":0},{"$f":"'6. Occupancy Expenses'!H11","v":0},{"$f":"'6. Occupancy Expenses'!I11","v":0},{"$f":"'6. Occupancy Expenses'!J11","v":0},{"$f":"'6. Occupancy Expenses'!K11","v":0},{"$f":"'6. Occupancy Expenses'!C12","v":0},{"$f":"'6. Occupancy Expenses'!D12","v":0},{"$f":"'6. Occupancy Expenses'!E12","v":0},{"$f":"'6. Occupancy Expenses'!F12","v":0},{"$f":"'6. Occupancy Expenses'!G12","v":0},{"$f":"'6. Occupancy Expenses'!H12","v":0},{"$f":"'6. Occupancy Expenses'!I12","v":0},{"$f":"'6. Occupancy Expenses'!J12","v":0},{"$f":"'6. Occupancy Expenses'!K12","v":0},{"$f":"'6. Occupancy Expenses'!C13","v":0},{"$f":"'6. Occupancy Expenses'!D13","v":0},{"$f":"'6. Occupancy Expenses'!E13","v":0},{"$f":"'6. Occupancy Expenses'!F13","v":0},{"$f":"'6. Occupancy Expenses'!G13","v":0},{"$f":"'6. Occupancy Expenses'!H13","v":0},{"$f":"'6. Occupancy Expenses'!I13","v":0},{"$f":"'6. Occupancy Expenses'!J13","v":0},{"$f":"'6. Occupancy Expenses'!K13","v":0},{"$f":"'6. Occupancy Expenses'!C14","v":0},{"$f":"'6. Occupancy Expenses'!D14","v":0},{"$f":"'6. Occupancy Expenses'!E14","v":0},{"$f":"'6. Occupancy Expenses'!F14","v":0},{"$f":"'6. Occupancy Expenses'!G14","v":0},{"$f":"'6. Occupancy Expenses'!H14","v":0},{"$f":"'6. Occupancy Expenses'!I14","v":0},{"$f":"'6. Occupancy Expenses'!J14","v":0},{"$f":"'6. Occupancy Expenses'!K14","v":0},{"$f":"'6. Occupancy Expenses'!C15","v":0},{"$f":"'6. Occupancy Expenses'!D15","v":0},{"$f":"'6. Occupancy Expenses'!E15","v":0},{"$f":"'6. Occupancy Expenses'!F15","v":0},{"$f":"'6. Occupancy Expenses'!G15","v":0},{"$f":"'6. Occupancy Expenses'!H15","v":0},{"$f":"'6. Occupancy Expenses'!I15","v":0},{"$f":"'6. Occupancy Expenses'!J15","v":0},{"$f":"'6. Occupancy Expenses'!K15","v":0},{"$f":"'6. Occupancy Expenses'!C16","v":0},{"$f":"'6. Occupancy Expenses'!D16","v":0},{"$f":"'6. Occupancy Expenses'!E16","v":0},{"$f":"'6. Occupancy Expenses'!F16","v":0},{"$f":"'6. Occupancy Expenses'!G16","v":0},{"$f":"'6. Occupancy Expenses'!H16","v":0},{"$f":"'6. Occupancy Expenses'!I16","v":0},{"$f":"'6. Occupancy Expenses'!J16","v":0},{"$f":"'6. Occupancy Expenses'!K16","v":0},{"$f":"'6. Occupancy Expenses'!C17","v":0},{"$f":"'6. Occupancy Expenses'!D17","v":0},{"$f":"'6. Occupancy Expenses'!E17","v":0},{"$f":"'6. Occupancy Expenses'!F17","v":0},{"$f":"'6. Occupancy Expenses'!G17","v":0},{"$f":"'6. Occupancy Expenses'!H17","v":0},{"$f":"'6. Occupancy Expenses'!I17","v":0},{"$f":"'6. Occupancy Expenses'!J17","v":0},{"$f":"'6. Occupancy Expenses'!K17","v":0},{"$f":"'6. Occupancy Expenses'!C18","v":0},{"$f":"'6. Occupancy Expenses'!D18","v":0},{"$f":"'6. Occupancy Expenses'!E18","v":0},{"$f":"'6. Occupancy Expenses'!F18","v":0},{"$f":"'6. Occupancy Expenses'!G18","v":0},{"$f":"'6. Occupancy Expenses'!H18","v":0},{"$f":"'6. Occupancy Expenses'!I18","v":0},{"$f":"'6. Occupancy Expenses'!J18","v":0},{"$f":"'6. Occupancy Expenses'!K18","v":0},{"$f":"'6. Occupancy Expenses'!C19","v":0},{"$f":"'6. Occupancy Expenses'!C20","v":0},{"$f":"'6. Occupancy Expenses'!D20","v":0},{"$f":"'6. Occupancy Expenses'!E20","v":0},{"$f":"'6. Occupancy Expenses'!F20","v":0},{"$f":"'6. Occupancy Expenses'!G20","v":0},{"$f":"'6. Occupancy Expenses'!H20","v":0},{"$f":"'6. Occupancy Expenses'!I20","v":0},{"$f":"'6. Occupancy Expenses'!J20","v":0},{"$f":"'6. Occupancy Expenses'!K20","v":0},{"$f":"'6. Occupancy Expenses'!K23","v":0},{"$f":"'6. Occupancy Expenses'!D24","v":0},{"$f":"'6. Occupancy Expenses'!E24","v":0},{"$f":"'6. Occupancy Expenses'!F24","v":0},{"$f":"'6. Occupancy Expenses'!G24","v":0},{"$f":"'6. Occupancy Expenses'!H24","v":0},{"$f":"'6. Occupancy Expenses'!I24","v":0},{"$f":"'6. Occupancy Expenses'!J24","v":0},{"$f":"'6. Occupancy Expenses'!D25","v":0},{"$f":"'6. Occupancy Expenses'!E25","v":0},{"$f":"'6. Occupancy Expenses'!F25","v":0},{"$f":"'6. Occupancy Expenses'!G25","v":0},{"$f":"'6. Occupancy Expenses'!H25","v":0},{"$f":"'6. Occupancy Expenses'!I25","v":0},{"$f":"'6. Occupancy Expenses'!J25","v":0},{"$f":"'6. Occupancy Expenses'!C26","v":0},{"$f":"'6. Occupancy Expenses'!D26","v":0},{"$f":"'6. Occupancy Expenses'!E26","v":0},{"$f":"'6. Occupancy Expenses'!F26","v":0},{"$f":"'6. Occupancy Expenses'!G26","v":0},{"$f":"'6. Occupancy Expenses'!H26","v":0},{"$f":"'6. Occupancy Expenses'!I26","v":0},{"$f":"'6. Occupancy Expenses'!J26","v":0},{"$f":"'6. Occupancy Expenses'!C30","v":0},{"$f":"'6. Occupancy Expenses'!D30","v":0},{"$f":"'6. Occupancy Expenses'!C31","v":0},{"$f":"'6. Occupancy Expenses'!D31","v":0},{"$f":"'6. Occupancy Expenses'!C32","v":0},{"$f":"'6. Occupancy Expenses'!D32","v":0},{"$f":"'6. Occupancy Expenses'!C33","v":0},{"$f":"'6. Occupancy Expenses'!D33","v":0},{"$f":"'6. Occupancy Expenses'!C34","v":0},{"$f":"'6. Occupancy Expenses'!D34","v":0},{"$f":"'6. Occupancy Expenses'!C35","v":0},{"$f":"'6. Occupancy Expenses'!D35","v":0},{"$f":"'6. Occupancy Expenses'!C36","v":0},{"$f":"'6. Occupancy Expenses'!D36","v":0},{"$f":"'6. Occupancy Expenses'!C37","v":0},{"$f":"'6. Occupancy Expenses'!D37","v":0},{"$f":"'6. Occupancy Expenses'!C38","v":0},{"$f":"'7. Revenue'!C10","v":0},{"$f":"'7. Revenue'!D10","v":0},{"$f":"'7. Revenue'!E10","v":0},{"$f":"'7. Revenue'!F10","v":0},{"$f":"'7. Revenue'!G10","v":0},{"$f":"'7. Revenue'!H10","v":0},{"$f":"'7. Revenue'!I10","v":0},{"$f":"'7. Revenue'!C11","v":0},{"$f":"'7. Revenue'!D11","v":0},{"$f":"'7. Revenue'!E11","v":0},{"$f":"'7. Revenue'!F11","v":0},{"$f":"'7. Revenue'!G11","v":0},{"$f":"'7. Revenue'!H11","v":0},{"$f":"'7. Revenue'!I11","v":0},{"$f":"'7. Revenue'!C12","v":0},{"$f":"'7. Revenue'!D12","v":0},{"$f":"'7. Revenue'!E12","v":0},{"$f":"'7. Revenue'!F12","v":0},{"$f":"'7. Revenue'!G12","v":0},{"$f":"'7. Revenue'!H12","v":0},{"$f":"'7. Revenue'!I12","v":0},{"$f":"'7. Revenue'!C13","v":0},{"$f":"'7. Revenue'!D13","v":0},{"$f":"'7. Revenue'!E13","v":0},{"$f":"'7. Revenue'!F13","v":0},{"$f":"'7. Revenue'!G13","v":0},{"$f":"'7. Revenue'!H13","v":0},{"$f":"'7. Revenue'!I13","v":0},{"$f":"'7. Revenue'!C14","v":0},{"$f":"'7. Revenue'!D14","v":0},{"$f":"'7. Revenue'!E14","v":0},{"$f":"'7. Revenue'!F14","v":0},{"$f":"'7. Revenue'!G14","v":0},{"$f":"'7. Revenue'!H14","v":0},{"$f":"'7. Revenue'!I14","v":0},{"$f":"'7. Revenue'!C15","v":0},{"$f":"'7. Revenue'!D15","v":0},{"$f":"'7. Revenue'!E15","v":0},{"$f":"'7. Revenue'!F15","v":0},{"$f":"'7. Revenue'!G15","v":0},{"$f":"'7. Revenue'!H15","v":0},{"$f":"'7. Revenue'!I15","v":0},{"$f":"'7. Revenue'!C16","v":0},{"$f":"'7. Revenue'!D16","v":0},{"$f":"'7. Revenue'!E16","v":0},{"$f":"'7. Revenue'!F16","v":0},{"$f":"'7. Revenue'!G16","v":0},{"$f":"'7. Revenue'!H16","v":0},{"$f":"'7. Revenue'!I16","v":0},{"$f":"'7. Revenue'!C17","v":0},{"$f":"'7. Revenue'!D17","v":0},{"$f":"'7. Revenue'!E17","v":0},{"$f":"'7. Revenue'!F17","v":0},{"$f":"'7. Revenue'!G17","v":0},{"$f":"'7. Revenue'!H17","v":0},{"$f":"'7. Revenue'!I17","v":0},{"$f":"'7. Revenue'!C20","v":0},{"$f":"'7. Revenue'!D20","v":0},{"$f":"'7. Revenue'!E20","v":0},{"$f":"'7. Revenue'!F20","v":0},{"$f":"'7. Revenue'!G20","v":0},{"$f":"'7. Revenue'!H20","v":0},{"$f":"'7. Revenue'!I20","v":0},{"$f":"'7. Revenue'!C21","v":0},{"$f":"'7. Revenue'!D21","v":0},{"$f":"'7. Revenue'!E21","v":0},{"$f":"'7. Revenue'!F21","v":0},{"$f":"'7. Revenue'!G21","v":0},{"$f":"'7. Revenue'!H21","v":0},{"$f":"'7. Revenue'!I21","v":0},{"$f":"'7. Revenue'!C22","v":0},{"$f":"'7. Revenue'!D22","v":0},{"$f":"'7. Revenue'!E22","v":0},{"$f":"'7. Revenue'!F22","v":0},{"$f":"'7. Revenue'!G22","v":0},{"$f":"'7. Revenue'!H22","v":0},{"$f":"'7. Revenue'!I22","v":0},{"$f":"'7. Revenue'!C23","v":0},{"$f":"'7. Revenue'!D23","v":0},{"$f":"'7. Revenue'!E23","v":0},{"$f":"'7. Revenue'!F23","v":0},{"$f":"'7. Revenue'!G23","v":0},{"$f":"'7. Revenue'!H23","v":0},{"$f":"'7. Revenue'!I23","v":0},{"$f":"'7. Revenue'!C24","v":0},{"$f":"'7. Revenue'!D24","v":0},{"$f":"'7. Revenue'!E24","v":0},{"$f":"'7. Revenue'!F24","v":0},{"$f":"'7. Revenue'!G24","v":0},{"$f":"'7. Revenue'!H24","v":0},{"$f":"'7. Revenue'!I24","v":0},{"$f":"'7. Revenue'!C25","v":0},{"$f":"'7. Revenue'!D25","v":0},{"$f":"'7. Revenue'!E25","v":0},{"$f":"'7. Revenue'!F25","v":0},{"$f":"'7. Revenue'!G25","v":0},{"$f":"'7. Revenue'!H25","v":0},{"$f":"'7. Revenue'!I25","v":0},{"$f":"'7. Revenue'!C26","v":0},{"$f":"'7. Revenue'!D26","v":0},{"$f":"'7. Revenue'!E26","v":0},{"$f":"'7. Revenue'!F26","v":0},{"$f":"'7. Revenue'!G26","v":0},{"$f":"'7. Revenue'!H26","v":0},{"$f":"'7. Revenue'!I26","v":0},{"$f":"'7. Revenue'!C27","v":0},{"$f":"'7. Revenue'!D27","v":0},{"$f":"'7. Revenue'!E27","v":0},{"$f":"'7. Revenue'!F27","v":0},{"$f":"'7. Revenue'!G27","v":0},{"$f":"'7. Revenue'!H27","v":0},{"$f":"'7. Revenue'!I27","v":0},{"$f":"'7. Revenue'!C28","v":0},{"$f":"'7. Revenue'!D28","v":0},{"$f":"'7. Revenue'!E28","v":0},{"$f":"'7. Revenue'!F28","v":0},{"$f":"'7. Revenue'!G28","v":0},{"$f":"'7. Revenue'!H28","v":0},{"$f":"'7. Revenue'!I28","v":0},{"$f":"'7. Revenue'!C30","v":0},{"$f":"'7. Revenue'!C31","v":0},{"$f":"'7. Revenue'!C32","v":0},{"$f":"'7. Revenue'!C33","v":0},{"$f":"'7. Revenue'!C34","v":0},{"$f":"'7. Revenue'!C35","v":0},{"$f":"'7. Revenue'!C36","v":0},{"$f":"'7. Revenue'!C37","v":0},{"$f":"'7. Revenue'!C39","v":0},{"$f":"'7. Revenue'!C40","v":0},{"$f":"'7. Revenue'!C41","v":0},{"$f":"'7. Revenue'!C42","v":0},{"$f":"'7. Revenue'!C43","v":0},{"$f":"'7. Revenue'!C44","v":0},{"$f":"'7. Revenue'!C45","v":0},{"$f":"'7. Revenue'!C46","v":0},{"$f":"'7. Revenue'!C48","v":0},{"$f":"'7. Revenue'!C49","v":0},{"$f":"'7. Revenue'!C50","v":0},{"$f":"'7. Revenue'!C52","v":0},{"$f":"'8. Expense'!C9","v":0},{"$f":"'8. Expense'!D9","v":0},{"$f":"'8. Expense'!E9","v":0},{"$f":"'8. Expense'!F9","v":0},{"$f":"'8. Expense'!G9","v":0},{"$f":"'8. Expense'!H9","v":0},{"$f":"'8. Expense'!I9","v":0},{"$f":"'8. Expense'!J9","v":0},{"$f":"'8. Expense'!C10","v":0},{"$f":"'8. Expense'!D10","v":0},{"$f":"'8. Expense'!E10","v":0},{"$f":"'8. Expense'!F10","v":0},{"$f":"'8. Expense'!G10","v":0},{"$f":"'8. Expense'!H10","v":0},{"$f":"'8. Expense'!I10","v":0},{"$f":"'8. Expense'!J10","v":0},{"$f":"'8. Expense'!C11","v":0},{"$f":"'8. Expense'!D11","v":0},{"$f":"'8. Expense'!E11","v":0},{"$f":"'8. Expense'!F11","v":0},{"$f":"'8. Expense'!G11","v":0},{"$f":"'8. Expense'!H11","v":0},{"$f":"'8. Expense'!I11","v":0},{"$f":"'8. Expense'!J11","v":0},{"$f":"'8. Expense'!C13","v":0},{"$f":"'8. Expense'!D13","v":0},{"$f":"'8. Expense'!E13","v":0},{"$f":"'8. Expense'!F13","v":0},{"$f":"'8. Expense'!G13","v":0},{"$f":"'8. Expense'!H13","v":0},{"$f":"'8. Expense'!I13","v":0},{"$f":"'8. Expense'!J13","v":0},{"$f":"'8. Expense'!C14","v":0},{"$f":"'8. Expense'!D14","v":0},{"$f":"'8. Expense'!E14","v":0},{"$f":"'8. Expense'!F14","v":0},{"$f":"'8. Expense'!G14","v":0},{"$f":"'8. Expense'!H14","v":0},{"$f":"'8. Expense'!I14","v":0},{"$f":"'8. Expense'!J14","v":0},{"$f":"'8. Expense'!C15","v":0},{"$f":"'8. Expense'!D15","v":0},{"$f":"'8. Expense'!E15","v":0},{"$f":"'8. Expense'!F15","v":0},{"$f":"'8. Expense'!G15","v":0},{"$f":"'8. Expense'!H15","v":0},{"$f":"'8. Expense'!I15","v":0},{"$f":"'8. Expense'!J15","v":0},{"$f":"'8. Expense'!C16","v":0},{"$f":"'8. Expense'!D16","v":0},{"$f":"'8. Expense'!E16","v":0},{"$f":"'8. Expense'!F16","v":0},{"$f":"'8. Expense'!G16","v":0},{"$f":"'8. Expense'!H16","v":0},{"$f":"'8. Expense'!I16","v":0},{"$f":"'8. Expense'!J16","v":0},{"$f":"'8. Expense'!C18","v":0},{"$f":"'8. Expense'!D18","v":0},{"$f":"'8. Expense'!E18","v":0},{"$f":"'8. Expense'!F18","v":0},{"$f":"'8. Expense'!G18","v":0},{"$f":"'8. Expense'!H18","v":0},{"$f":"'8. Expense'!I18","v":0},{"$f":"'8. Expense'!C19","v":0},{"$f":"'8. Expense'!D19","v":0},{"$f":"'8. Expense'!E19","v":0},{"$f":"'8. Expense'!F19","v":0},{"$f":"'8. Expense'!G19","v":0},{"$f":"'8. Expense'!H19","v":0},{"$f":"'8. Expense'!I19","v":0},{"$f":"'8. Expense'!J19","v":0},{"$f":"'8. Expense'!C20","v":0},{"$f":"'8. Expense'!D20","v":0},{"$f":"'8. Expense'!E20","v":0},{"$f":"'8. Expense'!F20","v":0},{"$f":"'8. Expense'!G20","v":0},{"$f":"'8. Expense'!H20","v":0},{"$f":"'8. Expense'!I20","v":0},{"$f":"'8. Expense'!J20","v":0},{"$f":"'8. Expense'!C21","v":0},{"$f":"'8. Expense'!D21","v":0},{"$f":"'8. Expense'!E21","v":0},{"$f":"'8. Expense'!F21","v":0},{"$f":"'8. Expense'!G21","v":0},{"$f":"'8. Expense'!H21","v":0},{"$f":"'8. Expense'!I21","v":0},{"$f":"'8. Expense'!J21","v":0},{"$f":"'8. Expense'!C22","v":0},{"$f":"'8. Expense'!D22","v":0},{"$f":"'8. Expense'!E22","v":0},{"$f":"'8. Expense'!F22","v":0},{"$f":"'8. Expense'!G22","v":0},{"$f":"'8. Expense'!H22","v":0},{"$f":"'8. Expense'!I22","v":0},{"$f":"'8. Expense'!J22","v":0},{"$f":"'8. Expense'!C23","v":0},{"$f":"'8. Expense'!D23","v":0},{"$f":"'8. Expense'!E23","v":0},{"$f":"'8. Expense'!F23","v":0},{"$f":"'8. Expense'!G23","v":0},{"$f":"'8. Expense'!H23","v":0},{"$f":"'8. Expense'!I23","v":0},{"$f":"'8. Expense'!J23","v":0},{"$f":"'8. Expense'!C24","v":0},{"$f":"'8. Expense'!D24","v":0},{"$f":"'8. Expense'!E24","v":0},{"$f":"'8. Expense'!F24","v":0},{"$f":"'8. Expense'!G24","v":0},{"$f":"'8. Expense'!H24","v":0},{"$f":"'8. Expense'!I24","v":0},{"$f":"'8. Expense'!J24","v":0},{"$f":"'8. Expense'!C25","v":0},{"$f":"'8. Expense'!D25","v":0},{"$f":"'8. Expense'!E25","v":0},{"$f":"'8. Expense'!F25","v":0},{"$f":"'8. Expense'!G25","v":0},{"$f":"'8. Expense'!H25","v":0},{"$f":"'8. Expense'!I25","v":0},{"$f":"'8. Expense'!J25","v":0},{"$f":"'8. Expense'!C26","v":0},{"$f":"'8. Expense'!D26","v":0},{"$f":"'8. Expense'!E26","v":0},{"$f":"'8. Expense'!F26","v":0},{"$f":"'8. Expense'!G26","v":0},{"$f":"'8. Expense'!H26","v":0},{"$f":"'8. Expense'!I26","v":0},{"$f":"'8. Expense'!J26","v":0},{"$f":"'8. Expense'!C27","v":0},{"$f":"'8. Expense'!D27","v":0},{"$f":"'8. Expense'!E27","v":0},{"$f":"'8. Expense'!F27","v":0},{"$f":"'8. Expense'!G27","v":0},{"$f":"'8. Expense'!H27","v":0},{"$f":"'8. Expense'!I27","v":0},{"$f":"'8. Expense'!J27","v":0},{"$f":"'8. Expense'!C28","v":0},{"$f":"'8. Expense'!D28","v":0},{"$f":"'8. Expense'!E28","v":0},{"$f":"'8. Expense'!F28","v":0},{"$f":"'8. Expense'!G28","v":0},{"$f":"'8. Expense'!H28","v":0},{"$f":"'8. Expense'!I28","v":0},{"$f":"'8. Expense'!J28","v":0},{"$f":"'8. Expense'!C29","v":0},{"$f":"'8. Expense'!D29","v":0},{"$f":"'8. Expense'!E29","v":0},{"$f":"'8. Expense'!F29","v":0},{"$f":"'8. Expense'!G29","v":0},{"$f":"'8. Expense'!H29","v":0},{"$f":"'8. Expense'!I29","v":0},{"$f":"'8. Expense'!J29","v":0},{"$f":"'8. Expense'!C30","v":0},{"$f":"'8. Expense'!D30","v":0},{"$f":"'8. Expense'!E30","v":0},{"$f":"'8. Expense'!F30","v":0},{"$f":"'8. Expense'!G30","v":0},{"$f":"'8. Expense'!H30","v":0},{"$f":"'8. Expense'!I30","v":0},{"$f":"'8. Expense'!J30","v":0},{"$f":"'8. Expense'!C31","v":0},{"$f":"'8. Expense'!D31","v":0},{"$f":"'8. Expense'!E31","v":0},{"$f":"'8. Expense'!F31","v":0},{"$f":"'8. Expense'!G31","v":0},{"$f":"'8. Expense'!H31","v":0},{"$f":"'8. Expense'!I31","v":0},{"$f":"'8. Expense'!J31","v":0},{"$f":"'8. Expense'!C32","v":0},{"$f":"'8. Expense'!D32","v":0},{"$f":"'8. Expense'!E32","v":0},{"$f":"'8. Expense'!F32","v":0},{"$f":"'8. Expense'!G32","v":0},{"$f":"'8. Expense'!H32","v":0},{"$f":"'8. Expense'!I32","v":0},{"$f":"'8. Expense'!J32","v":0},{"$f":"'8. Expense'!C33","v":0},{"$f":"'8. Expense'!D33","v":0},{"$f":"'8. Expense'!E33","v":0},{"$f":"'8. Expense'!F33","v":0},{"$f":"'8. Expense'!G33","v":0},{"$f":"'8. Expense'!H33","v":0},{"$f":"'8. Expense'!I33","v":0},{"$f":"'8. Expense'!J33","v":0},{"$f":"'8. Expense'!C34","v":0},{"$f":"'8. Expense'!C35","v":0},{"$f":"'8. Expense'!D35","v":0},{"$f":"'8. Expense'!E35","v":0},{"$f":"'8. Expense'!F35","v":0},{"$f":"'8. Expense'!G35","v":0},{"$f":"'8. Expense'!H35","v":0},{"$f":"'8. Expense'!I35","v":0},{"$f":"'8. Expense'!J35","v":0},{"$f":"'8. Expense'!C38","v":0},{"$f":"'8. Expense'!D38","v":0},{"$f":"'8. Expense'!C39","v":0},{"$f":"'8. Expense'!D39","v":0},{"$f":"'8. Expense'!C40","v":0},{"$f":"'8. Expense'!D40","v":0},{"$f":"'8. Expense'!C41","v":0},{"$f":"'8. Expense'!D41","v":0},{"$f":"'8. Expense'!C42","v":0},{"$f":"'8. Expense'!D42","v":0},{"$f":"'8. Expense'!C43","v":0},{"$f":"'8. Expense'!D43","v":0},{"$f":"'8. Expense'!C44","v":0},{"$f":"'8. Expense'!D44","v":0},{"$f":"'8. Expense'!C45","v":0},{"$f":"'8. Expense'!D45","v":0},{"$f":"'8. Expense'!C46","v":0},{"$f":"'8. Expense'!D46","v":0},{"$f":"'8. Expense'!C47","v":0},{"$f":"'8. Expense'!D47","v":0},{"$f":"'8. Expense'!C48","v":0},{"$f":"'8. Expense'!D48","v":0},{"$f":"'8. Expense'!C49","v":0},{"$f":"'8. Expense'!D49","v":0},{"$f":"'8. Expense'!C50","v":0},{"$f":"'8. Expense'!D50","v":0},{"$f":"'8. Expense'!C51","v":0},{"$f":"'8. Expense'!D51","v":0},{"$f":"'8. Expense'!C52","v":0},{"$f":"'8. Expense'!C53","v":0},{"$f":"'8. Expense'!D53","v":0},{"$f":"'8. Expense'!C54","v":0},{"$f":"'8. Expense'!D54","v":0},{"$f":"'8. Expense'!C55","v":0},{"$f":"'8. Expense'!D55","v":0},{"$f":"'8. Expense'!C56","v":0},{"$f":"'8. Expense'!D56","v":0},{"$f":"'8. Expense'!C57","v":0},{"$f":"'8. Expense'!D57","v":0},{"$f":"'8. Expense'!C58","v":0},{"$f":"'8. Expense'!D58","v":0},{"$f":"'8. Expense'!C59","v":0},{"$f":"'8. Expense'!D59","v":0},{"$f":"'8. Expense'!C60","v":0},{"$f":"'8. Expense'!C61","v":0},{"$f":"'8. Expense'!D61","v":0},{"$f":"'8. Expense'!D63","v":0},{"$f":"'8. Expense'!E63","v":0},{"$f":"'8. Expense'!F63","v":0},{"$f":"'8. Expense'!G63","v":0},{"$f":"'8. Expense'!H63","v":0},{"$f":"'8. Expense'!I63","v":0},{"$f":"'8. Expense'!J63","v":0},{"$f":"'8. Expense'!E64","v":0},{"$f":"'8. Expense'!F64","v":0},{"$f":"'8. Expense'!G64","v":0},{"$f":"'8. Expense'!H64","v":0},{"$f":"'8. Expense'!I64","v":0},{"$f":"'8. Expense'!J64","v":0},{"$f":"'8. Expense'!D65","v":0},{"$f":"'8. Expense'!C66","v":0},{"$f":"'8. Expense'!C67","v":0},{"$f":"'8. Expense'!C68","v":0},{"$f":"'9. Reconciliation'!C7","v":0},{"$f":"'9. Reconciliation'!C8","v":0},{"$f":"'9. Reconciliation'!C9","v":0},{"$f":"'9. Reconciliation'!C11","v":0},{"$f":"'9. Reconciliation'!C12","v":0},{"$f":"'9. Reconciliation'!C13","v":0},{"$f":"'9. Reconciliation'!C15","v":0},{"$f":"'9. Reconciliation'!C21","v":0},{"$f":"'9. Reconciliation'!D21","v":0},{"$f":"'9. Reconciliation'!E21","v":0},{"$f":"'9. Reconciliation'!F21","v":0},{"$f":"'9. Reconciliation'!G21","v":0},{"$f":"'9. Reconciliation'!H21","v":0},{"$f":"'9. Reconciliation'!C22","v":0},{"$f":"'9. Reconciliation'!D22","v":0},{"$f":"'9. Reconciliation'!E22","v":0},{"$f":"'9. Reconciliation'!F22","v":0},{"$f":"'9. Reconciliation'!G22","v":0},{"$f":"'9. Reconciliation'!H22","v":0},{"$f":"'9. Reconciliation'!C23","v":0},{"$f":"'9. Reconciliation'!D23","v":0},{"$f":"'9. Reconciliation'!E23","v":0},{"$f":"'9. Reconciliation'!F23","v":0},{"$f":"'9. Reconciliation'!G23","v":0},{"$f":"'9. Reconciliation'!H23","v":0},{"$f":"'9. Reconciliation'!C27","v":0},{"$f":"'9. Reconciliation'!C29","v":"Yes"},{"$f":"'10. Accuracy of Report'!E13","v":0},{"$f":"'10. Accuracy of Report'!E14","v":0},{"$f":"'10. Accuracy of Report'!E15","v":0},{"$f":"'10. Accuracy of Report'!E16","v":"0"},{"$f":"'10. Accuracy of Report'!E18","v":0},{"$f":"'10. Accuracy of Report'!E19","v":"00:00:00"},{"$f":"'10. Accuracy of Report'!E20","v":0}]